Workbook

Sheet Instructions
B1: Project: | D1: NYISO ICAP Demand Curve
B2: Date: | D2: 2024-06-01
B3: Worksheet: | D3: Instructions
B5: Instructions for Using NYISO ICAP Demand Curve Workbook
B8: Steps:
B10: 1 | C10: Collect index information from BLS and BEA websites and update Escalation Factor in "Escalation Factor" Worksheet
B11: 2 | C11: Update Net EAS Revenues in "Net EAS" Worksheet
B12: 3 | C12: Update Winter-Summer Ratio in "Winter-Summer Ratio" Worksheet
B13: 4 | C13: Update and run DCR model, using "Multiple Scenario Output" Worksheet

Sheet Glossary
B1: Project: | C1: NYISO ICAP Demand Curve
B2: Date: | C2: 2024-06-01
B3: Worksheet: | C3: Glossary
B5: Glossary of Named Ranges
B8: Named Range | C8: Name
B9: Annual_Reference_Value | C9: Annual Reference Value ($/kW-Year)
B10: ATWACC | C10: After Tax Weighted Average Cost of Capital (%)
B11: ATWACC_Real | C11: After Tax Weighted Average Cost of Capital (Real, %)
B12: Capability_Year | C12: Capability Year
B13: Capacity_at_LOE | C13: Capacity at LOE Conditions (%)
B14: Capital_Costs | C14: Overnight Capital Costs ($/kW-Year)
B15: Debt_Fraction | C15: Debt Fraction (%)
B16: Debt_Rate | C16: Debt Rate (%)
B17: Debt_Rate_Real | C17: Debt Rate (Real, %)
B18: DMNC_ICAP | C18: DMNC ICAP (MW)
B19: DMNC_Summer | C19: DMNC Summer (MW)
B20: DMNC_Winter | C20: DMNC Winter (MW)
B21: EAS | C21: Net Energy and Ancillary Services ($/kW-Year)
B22: EAS_Fuel_Type | C22: EAS Fuel Type
B23: Effective_Tax_Rate | C23: Effective Tax Rate (%)
B24: Equity_Rate | C24: Equity Rate (%)
B25: Equity_Rate_Real | C25: Equity Rate (Real, %)
B26: Escalation_Factor | C26: Escalation Factor (%)
B27: Escalation_Factor_Table | C27: Table of all Escalation Factors for all units
B28: FixedOM_Site_Lease | C28: Fixed O&M + Site Lease (Includes Property Taxes and Insurance, $/kW-Year)
B29: Fuel_Type | C29: Fuel Type
B30: Gross CONE | C30: Gross CONE ($/kW-Year)
B31: Inflation_Factor | C31: Inflation Factor (%)
B32: Insurance_Rate | C32: Insurance Rate (%)
B33: IRM | C33: Installed Reserve Margin (or Locational Capacity Requirement, %)
B34: Levelized_Charge | C34: Levelized Fixed Charge (%)
B35: Maximum_Price_Multiple | C35: Maximum price (Multiple of Annualized Capital Cost)
B36: Maximum_Price_Type | C36: Specifies which Maximum Clearing Price calculation is used in the model (either "Original Max Price" or "NYISO Staff Recommendation")
B37: Multiple_Scenario_Lookup | C37: Array of Values Used to Lookup Model Results from the Multiple Scenario Output
B38: Multiple_Scenario_Output | C38: Output from the Multiple Scenario Output
B39: Multiple_Scenario_Vars | C39: Variables Included in Multiple Scenario Output
B40: Peak_Load | C40: Peak Load (Average of Gold Book Peak Load Values for 2017 - 2021, MW)
B41: Plant_Life | C41: Plant Life (Years)
B42: Property_Tax_Rate | C42: Property Tax Rate (%)
B43: PropTax_Abate | C43: Property Tax Abatement Flag
B44: Region | C44: Region (Zone)
B45: Total_EPC_Capital_Costs | C45: Total EPC Costs ($/kW-Year)
B46: Unit | C46: Unit/Technology
B47: VSS_Adder | C47: Estimated Voltage Support Services revenues for all non-CC resources ($/kW-Year)
B48: WSR | C48: Winter-to-Summer Ratio
B49: ZCP | C49: Zero Crossing Point (Margin Over 100%)

Sheet Model-->

Sheet Model
A1: Project: | B1: NYISO ICAP Demand Curve
A2: Date: | B2: 2024-06-01
A3: Worksheet: | B3: Model
A5: Instructions: | B5: Values highlighted in yellow can be toggled to the values on their right, in grey, to view the reference point price for different zones, peaking plant technologies, and fuel assumptions.
A7: Notes: | B7: 1. All fossil technologies are modeled as equipped with SCR and using dual fuel.
B8: 2. Service Life and AFUDC automatically update to match unit type. Tax rates automatically update to match region.
B9: 3. Changing toggle selections on this page will not interfere with or edit the data on the "Multiple Scenario Output" tab.
A12: NYISO ICAP Demand Curve Model
A14: Inputs
A16: Timing
A17: Capability Year | B17: 2024-2025 | F17: 2024-2025
A19: Plant
A20: Region | B20: C - Central | C20: C - Central | D20: F - Capital | E20: G - Hudson Valley (Dutchess) | F20: G - Hudson Valley (Rockland) | G20: J - New York City | H20: K - Long Island
A21: Technology | B21: SCGT J Class | C21: SCGT J Class | D21: SCGT 7HA.02 | E21: BESS 2h | F21: BESS 4h | G21: BESS 6h | H21: BESS 8h
A22: Service Life (Years) | B22: =IF(OR(Unit="BESS 2h", Unit="BESS 4h",Unit="BESS 6h",Unit="BESS 8h"),G22,E22) -> 13 | C22: Maximum 20 | D22: Fossil Units | E22: 13 | F22: Battery Units: | G22: 15
A23: Maximum Price (Multiple of Monthly Gross CONE) | B23: 1.5
A24: Fuel and SCR Specification | B24: Dual fuel with SCR | C24: Dual fuel with SCR | D24: Gas only with SCR | E24: Dual fuel without SCR | F24: Gas only without SCR | G24: Battery
A25: CC Plant | B25: =IF(Unit="8000J CC", TRUE, FALSE) -> FALSE | C25: TRUE | D25: FALSE
A26: Capital Costs without AFUDC($/kW) | B26: =IFERROR(INDEX('Capital Costs'!$C$14:$BH$70, MATCH("Capital Costs without AFUDC"&Capability_Year, 'Capital Costs'!$C$14:$C$70, 0), MATCH(Region&Unit&Fuel_Type, 'Capital Costs'!$C$14:$BH$14, 0)), "-") -> 1535.198816 | E26: AFUDC Table | F26: J - New York City | G26: All Others
A27: AFUDC (%) | B27: =IF(Region=F26,_xlfn.XLOOKUP(Unit,E27:E32,F27:F32),_xlfn.XLOOKUP(Unit,E27:E32,G27:G32)) -> 0.0926 | E27: SCGT J Class | F27: 0.0912 | G27: 0.0926
A28: Overnight Capital Costs including AFUDC($/kW) | B28: =B26*(1+B27) -> 1677.358227 | E28: SCGT 7HA.02 | F28: 0.0912 | G28: 0.0926
A29: Total EPC Capital Costs pre ITC | B29: =IFERROR(INDEX('Capital Costs'!$C$14:$BH$72, MATCH("Total EPC Costs"&Capability_Year, 'Capital Costs'!$C$14:$C$72, 0), MATCH(Region&Unit&Fuel_Type, 'Capital Costs'!$C$14:$BH$14, 0)), "-") -> 1155.604113 | E29: BESS 2h | F29: 0.0785 | G29: 0.0797
A30: Fixed O&M + Site Lease ($/kW-Year) | B30: =IFERROR(INDEX('Performance and O&M'!$C$12:$AQ$33, MATCH("FO&M Costs "&Capability_Year, 'Performance and O&M'!$C$12:$C$33, 0), MATCH(Region&Unit, 'Performance and O&M'!$C$12:$AQ$12, 0)), "-") -> 7.976812339 | E30: BESS 4h | F30: 0.0792 | G30: 0.0804
A31: DMNC Summer (MW) | B31: =IFERROR(INDEX('Performance and O&M'!$C$12:$AQ$26, MATCH($A31, 'Performance and O&M'!$C$12:$C$26, 0), MATCH(Region&Unit, 'Performance and O&M'!$C$12:$AQ$12, 0)), "-") -> 394.5 | E31: BESS 6h | F31: 0.0932 | G31: 0.0947
A32: DMNC Winter (MW) | B32: =IFERROR(INDEX('Performance and O&M'!$C$12:$AQ$26, MATCH($A32, 'Performance and O&M'!$C$12:$C$26, 0), MATCH(Region&Unit, 'Performance and O&M'!$C$12:$AQ$12, 0)), "-") -> 419.5 | E32: BESS 8h | F32: 0.1158 | G32: 0.1176
A33: DMNC ICAP (MW) | B33: =IFERROR(INDEX('Performance and O&M'!$C$12:$AQ$26, MATCH($A33, 'Performance and O&M'!$C$12:$C$26, 0), MATCH(Region&Unit, 'Performance and O&M'!$C$12:$AQ$12, 0)), "-") -> 389
A34: Winter-to-Summer Ratio | B34: =IFERROR(INDEX('Winter-to-Summer Ratio'!$D$11:$E$17, MATCH(Region&Capability_Year, 'Winter-to-Summer Ratio'!$D$11:$D$17, 0), MATCH("Winter-to-Summer Ratio", 'Winter-to-Summer Ratio'!$D$11:$E$11, 0)), "-") -> 1.033
A35: Summer-to-Winter Ratio | B35: =1/WSR -> 0.968054211
A36: Escalation Factor (%) | B36: =IFERROR(INDEX(Escalation_Factor_Table,MATCH(Capability_Year,'Escalation Factor'!$C$36:$C$40,0),MATCH(Unit,'Escalation Factor'!$C$36:$K$36,0)),"-") -> 0.165641337
A38: Finance
A39: Inflation Factor (%) | B39: 0.0212
A40: Debt Fraction (%) | B40: 0.55
A41: Debt Rate (%)
A42: Nominal | B42: 0.067
A43: Real | B43: =(Debt_Rate-Inflation_Factor)/(1+Inflation_Factor) -> 0.04484919702
A44: Equity Rate (%)
A45: Nominal | B45: 0.14
A46: Real | B46: =(Equity_Rate-Inflation_Factor)/(1+Inflation_Factor) -> 0.116333725
A47: Composite Tax Rate (%) | B47: =IF(Region="J - New York City", D47, F47) -> 0.2614 | C47: NYC: | D47: 0.3313 | E47: Non-NYC: | F47: 0.2614
A48: ATWACC Nominal (%) | B48: =(1-Debt_Fraction)*Equity_Rate+Debt_Fraction*Debt_Rate*(1-Effective_Tax_Rate) -> 0.09021741
A49: ATWACC Real (%) | B49: =(ATWACC-Inflation_Factor)/(1+Inflation_Factor) -> 0.06758461614 | C49: Discount rate
A51: Fixed Property Tax Rate (%) | B51: =IF(Region="J - New York City", D51, F51) -> 0.006 | C51: NYC: | D51: 0.047664 | E51: Non-NYC: | F51: 0.006
A52: Insurance Rate (%) | B52: 0.006
A54: Levelized Fixed Charge
A55: Property Tax Abatement (NYC or Battery Unit) | B55: FALSE | C55: TRUE | D55: FALSE
A57: Levelized Fixed Charge (%) | B57: =IFERROR('Levelized Factor'!C54, "-") -> 0.1465461875
A58: Levelized Fixed Charge ($/kW-Year) | B58: =IFERROR(Levelized_Charge*Capital_Costs, "-") -> 245.8104532
A60: ICAP Demand Curve
A61: Zero Crossing Point (Margin Over 100%) | B61: =IF(Region=C61,D61, IF(Region=E61, F61, IF(Region=G61,H61, IF(Region=I61, J61, IF(Region=K61, N61, Q61))))) -> 0.12 | C61: F - Capital | D61: 0.12 | E61: C - Central | F61: 0.12 | G61: J - New York City | H61: 0.18 | I61: K - Long Island | J61: 0.18 | K61: G - Hudson Valley (Rockland) | N61: 0.15 | O61: G - Hudson Valley (Dutchess) | Q61: 0.15
A62: Winter Zero Crossing Point (Margin Over 100%) | B62: =IF(Region=C62,D62, IF(Region=E62, F62, IF(Region=G62,H62, IF(Region=I62, J62, IF(Region=K62, N62, Q62))))) -> 0.12 | C62: F - Capital | D62: 0.12 | E62: C - Central | F62: 0.12 | G62: J - New York City | H62: 0.18 | I62: K - Long Island | J62: 0.18 | K62: G - Hudson Valley (Rockland) | N62: 0.15 | O62: G - Hudson Valley (Dutchess) | Q62: 0.15
A63: Capacity at LOE Conditions (%) - Summer DMNC | B63: =IFERROR(((Peak_Load*IRM)+DMNC_Summer)/(Peak_Load*IRM),"-") -> 1.010251879
A64: Capacity at LOE Conditions (%) - Winter DMNC | B64: =IFERROR(((Peak_Load*IRM)+DMNC_Winter)/(Peak_Load*IRM),"-") -> 1.010901554
A65: Capacity at LOE Conditions (%) | B65: =IFERROR(( (Peak_Load*IRM) + DMNC_ICAP ) / (Peak_Load*IRM), "-") -> 1.01010895
A66: Peak Load (2024) | B66: =INDEX('Peak Load and IRM'!$B$8:$E$13, MATCH(IF(OR(LEFT(Region,1)="F", LEFT(Region,1)="C"), "NYCA", LEFT(Region,1)), 'Peak Load and IRM'!$B$8:$B$13, 0), MATCH("Peak Load (2024)", 'Peak Load and IRM'!$B$8:$E$8, 0)) -> 31541.6
A67: IRM/LCR | B67: =INDEX('Peak Load and IRM'!$B$8:$E$13, MATCH(IF(OR(LEFT(Region,1)="F", LEFT(Region,1)="C"), "NYCA", LEFT(Region,1)), 'Peak Load and IRM'!$B$8:$B$13, 0), MATCH("Installed Reserve Margin / Locational Capacity Requirement", 'Peak Load and IRM'!$B$8:$E$8, 0)) -> 1.22
A69: Net EAS ($/kW-Year) | B69: =Fuel_Type -> Dual fuel with SCR | C69: Dual fuel with SCR | D69: Dual fuel without SCR | E69: Gas only with SCR | F69: Gas only without SCR | G69: Battery
A70: ="Not escalated ($"&VALUE(LEFT(Capability_Year,4))-2&")" -> Not escalated ($2022) | B70: =IFERROR(IF(CC_Flag=TRUE,INDEX('Net EAS'!$J$13:$R$49, MATCH(Region&Unit&Capability_Year, 'Net EAS'!$J$13:$J$49, 0), MATCH($B$69, 'Net EAS'!$J$13:$R$13, 0))+CC_Adder,INDEX('Net EAS'!$J$13:$R$49, MATCH(Region&Unit&Capability_Year, 'Net EAS'!$J$13:$J$49, 0), MATCH($B$69, 'Net EAS'!$J$13:$R$13, 0))+VSS_Adder),"-") -> 66.6656064
A71: ="Escalated ($"&VALUE(LEFT(Capability_Year,4))&")" -> Escalated ($2024) | B71: =IFERROR(B70*(1+D71), "-") -> 72.82305372 | C71: EAS Inflation rate: | D71: =IFERROR(H71/F71-1, "-") -> 0.09236317879 | E71: ="GDP Deflator ("&VALUE(LEFT(Capability_Year,4))-3&")" -> GDP Deflator (2021) | F71: =INDEX('Escalation Factor'!$C$209:$S$223, MATCH(VALUE(LEFT(Capability_Year,4))-3, 'Escalation Factor'!$C$209:$C$223, 0), MATCH("IV", 'Escalation Factor'!$C$209:$S$209, 0)) -> 112.848 | G71: ="GDP Deflator ("&VALUE(LEFT(Capability_Year,4)-1)&")" -> GDP Deflator (2023) | H71: =INDEX('Escalation Factor'!$C$209:$S$223, MATCH(VALUE(LEFT(Capability_Year,4))-1, 'Escalation Factor'!$C$209:$C$223, 0), MATCH("IV", 'Escalation Factor'!$C$209:$S$209, 0)) -> 123.271
A72: 2024-2025 CAF
A73: Unit | B73: C - Central | C73: F - Capital | D73: G - Hudson Valley (Dutchess) | E73: G - Hudson Valley (Rockland) | F73: J - New York City | G73: K - Long Island
A74: BESS 2H | B74: 0.5542 | C74: 0.5542 | D74: 0.5616 | E74: 0.5616 | F74: 0.5593 | G74: 0.5276
A75: BESS 4H | B75: 0.6447 | C75: 0.6447 | D75: 0.6795 | E75: 0.6795 | F75: 0.6884 | G75: 0.7894
A76: BESS 6H | B76: 0.9177 | C76: 0.9177 | D76: 0.9192 | E76: 0.9192 | F76: 0.9041 | G76: 0.9153
A77: BESS 8H | B77: 1 | C77: 1 | D77: 1 | E77: 1 | F77: 1 | G77: 0.9972
A79: CAF | B79: =IFERROR(INDEX($A$73:$G$77, MATCH(Unit, $A$73:$A$77, 0), MATCH(Region, $A$73:$G$73, 0)), 1) -> 1
A80: 2024-205 Finalized CAF | B80: =IFERROR(INDEX($A$73:$G$77, MATCH(Unit, $A$73:$A$77, 0), MATCH(Region, $A$73:$G$73, 0)), 1) -> 1
A82: CP
A83: CPMax | B83: 0.65
A84: CPMin | B84: 0.35
A85: New Variables
A86: LOE | B86: =Capacity_at_LOE -> 1.01010895
A87: SLOLE | B87: 1
A88: WLOLE | B88: =1-$B$87 -> 0
A89: Derating Factor
A90: Unit | B90: Factor
A91: SCGT J Class | B91: 0.041
A92: SCGT 7HA.02 | B92: 0.041
A93: BESS 2h | B93: 0.02
A94: BESS 4h | B94: 0.02
A95: BESS 6h | B95: 0.02
A96: BESS 8h | B96: 0.02
A97: Derating Factor | B97: =INDEX($B$90:$B$96, MATCH(Unit, $A$90:$A$96, 0)) -> 0.041
A98: Calculations and Output
A100: Summary of Cash Flows ($/kW-Year)
A102: Project Year | B102: NPV | C102: 1 | D102: 2 | E102: 3 | F102: 4 | G102: 5 | H102: 6 | I102: 7 | J102: 8 | K102: 9 | L102: 10 | M102: 11 | N102: 12 | O102: 13 | P102: 14 | Q102: 15 | R102: 16 | S102: 17 | T102: 18 | U102: 19 | V102: 20
A104: Discount Rate Adjustment (%) | B104: - | C104: =IF(C102<=Plant_Life, 1/(1+ATWACC_Real)^C102,0) -> 0.9366939022 | D104: =IF(D102<=Plant_Life, 1/(1+ATWACC_Real)^D102,0) -> 0.8773954664 | E104: 0.8218509832 | F104: 0.7698228044 | G104: 0.7210883267 | H104: 0.6754390385 | I104: 0.6326796287 | J104: 0.5926271502 | K104: 0.5551102379 | L104: 0.5199683749 | M104: 0.4870512061 | N104: 0.4562178948 | O104: 0.4273365201 | P104: 0 | Q104: 0 | R104: 0 | S104: 0 | T104: 0 | U104: 0 | V104: 0
A106: Energy and Ancillary Services Revenue | B106: =SUMPRODUCT($C$104:$V$104, C106:V106) -> 617.0502364 | C106: =IF(C136=TRUE, EAS, 0) -> 72.82305372 | D106: =IF(D136=TRUE, EAS, 0) -> 72.82305372 | E106: 72.82305372 | F106: 72.82305372 | G106: 72.82305372 | H106: 72.82305372 | I106: 72.82305372 | J106: 72.82305372 | K106: 72.82305372 | L106: 72.82305372 | M106: 72.82305372 | N106: 72.82305372 | O106: 72.82305372 | P106: 0 | Q106: 0 | R106: 0 | S106: 0 | T106: 0 | U106: 0 | V106: 0
A108: Fixed O&M (Excludes Property Tax and Insurance) | B108: =SUMPRODUCT($C$104:$V$104, C108:V108) -> 67.58977669 | C108: =IF(C102<=Plant_Life, FixedOM_Site_Lease, 0) -> 7.976812339 | D108: =IF(D102<=Plant_Life, FixedOM_Site_Lease, 0) -> 7.976812339 | E108: 7.976812339 | F108: 7.976812339 | G108: 7.976812339 | H108: 7.976812339 | I108: 7.976812339 | J108: 7.976812339 | K108: 7.976812339 | L108: 7.976812339 | M108: 7.976812339 | N108: 7.976812339 | O108: 7.976812339 | P108: 0 | Q108: 0 | R108: 0 | S108: 0 | T108: 0 | U108: 0 | V108: 0
A109: Insurance | B109: =IFERROR(SUMPRODUCT($C$104:$V$104, C109:V109), "-") -> 58.75055395 | C109: =IFERROR(IF(C102<=Plant_Life, Insurance_Rate*Total_EPC_Capital_Costs, 0), "-") -> 6.933624679 | D109: =IFERROR(IF(D102<=Plant_Life, Insurance_Rate*Total_EPC_Capital_Costs, 0), "-") -> 6.933624679 | E109: 6.933624679 | F109: 6.933624679 | G109: 6.933624679 | H109: 6.933624679 | I109: 6.933624679 | J109: 6.933624679 | K109: 6.933624679 | L109: 6.933624679 | M109: 6.933624679 | N109: 6.933624679 | O109: 6.933624679 | P109: 0 | Q109: 0 | R109: 0 | S109: 0 | T109: 0 | U109: 0 | V109: 0
A110: Levelized Fixed Charge | B110: =IFERROR(SUMPRODUCT($C$104:$V$104, C110:V110), "-") -> 2082.821174 | C110: =IFERROR(IF(C102<=Plant_Life, Capital_Costs*Levelized_Charge, 0), "-") -> 245.8104532 | D110: =IFERROR(IF(D102<=Plant_Life, Capital_Costs*Levelized_Charge, 0), "-") -> 245.8104532 | E110: 245.8104532 | F110: 245.8104532 | G110: 245.8104532 | H110: 245.8104532 | I110: 245.8104532 | J110: 245.8104532 | K110: 245.8104532 | L110: 245.8104532 | M110: 245.8104532 | N110: 245.8104532 | O110: 245.8104532 | P110: 0 | Q110: 0 | R110: 0 | S110: 0 | T110: 0 | U110: 0 | V110: 0
A111: Total Costs | B111: =IFERROR(SUMPRODUCT($C$104:$V$104, C111:V111), "-") -> 2209.161505 | C111: =SUM(C108:C110) -> 260.7208902 | D111: =SUM(D108:D110) -> 260.7208902 | E111: 260.7208902 | F111: 260.7208902 | G111: 260.7208902 | H111: 260.7208902 | I111: 260.7208902 | J111: 260.7208902 | K111: 260.7208902 | L111: 260.7208902 | M111: 260.7208902 | N111: 260.7208902 | O111: 260.7208902 | P111: 0 | Q111: 0 | R111: 0 | S111: 0 | T111: 0 | U111: 0 | V111: 0
A113: Annual Reference Value | B113: =IFERROR(SUMPRODUCT($C$104:$V$104, C113:V113), "-") -> 1592.111268 | C113: =IFERROR(C111-C106, "-") -> 187.8978365 | D113: =IFERROR(D111-D106, "-") -> 187.8978365 | E113: 187.8978365 | F113: 187.8978365 | G113: 187.8978365 | H113: 187.8978365 | I113: 187.8978365 | J113: 187.8978365 | K113: 187.8978365 | L113: 187.8978365 | M113: 187.8978365 | N113: 187.8978365 | O113: 187.8978365 | P113: 0 | Q113: 0 | R113: 0 | S113: 0 | T113: 0 | U113: 0 | V113: 0
A116: Annual Reference Value ($/kW - Year) | B116: =-PMT(ATWACC_Real,Plant_Life,B113) -> 187.8978365
A117: Adjusted Net EAS for No Net EAS after 2040 | B117: =-PMT(ATWACC_Real,Plant_Life,B106) -> 72.82305372
A118: Adjusted Gross CONE for No Net EAS after 2040 | B118: =-PMT(ATWACC_Real,Plant_Life,B111) -> 260.7208902
A119: Reference Point Price Finalized CAF
A120: Monthly Reference Point Price ($/kW-Month) | B120: =IFERROR((Annual_Reference_Value*DMNC_ICAP) /(6*( DMNC_Summer*(1 - (Capacity_at_LOE-1)/ZCP) + DMNC_Winter*(1 - ((WSR-1+Capacity_at_LOE-1) / ZCP ) )))/(CAF*(1-Derate)), "-") -> 20.16118635
A121: Summer, ICAP RP | B121: =IFERROR((Annual_Reference_Value*DMNC_ICAP*MAX(MIN(CPMax,SLOLE),CPMin))/(6*DMNC_Summer*(1-(Capacity_at_LOE_Summer-1+MAX(0,SWR-1))/ZCP)),"-") -> 21.94677094
A122: Winter, ICAP RP | B122: =IFERROR((Annual_Reference_Value*DMNC_ICAP*MAX(MIN(CPMax,WLOLE),CPMin))/(6*DMNC_Winter*(1-(Capacity_at_LOE_Winter-1+MAX(0,WSR-1))/ZCP)),"-") -> 16.02734805
A123: Summer, UCAP RP | B123: =IFERROR((Annual_Reference_Value*DMNC_ICAP*MAX(MIN(CPMax,SLOLE),CPMin))/(6*DMNC_Summer*(1-(Capacity_at_LOE_Summer-1+MAX(0,SWR-1))/ZCP))/(CAF*(1-Derate)),"-") -> 22.88505833
A124: Winter, UCAP RP | B124: =IFERROR((Annual_Reference_Value*DMNC_ICAP*MAX(MIN(CPMax,WLOLE),CPMin))/(6*DMNC_Winter*(1-(Capacity_at_LOE_Winter-1+MAX(0,WSR-1))/ZCP))/(CAF*(1-Derate)),"-") -> 16.71256314
A126: Other Outputs
A127: Gross CONE ($/kW-Year) | B127: =Gross_CONE_Adj -> 260.7208902
A128: Summer ICAP Demand Curve Slope | B128: =IFERROR((B121-0)/(1-ZCP-1), "-") -> -182.8897578
A129: Winter ICAP Demand Curve Slope | B129: =IFERROR((B122-0)/(1-ZCP-1), "-") -> -133.5612337
A130: Level of Excess Clearing Price (Summer, $/kW-Year) | B130: =IFERROR(B128*(Capacity_at_LOE-1)+B121, "-") -> 20.09794751
A131: Level of Excess Clearing Price (Winter, $/kW-Year) | B131: =IFERROR(B122*(1-(Capacity_at_LOE-1+WSR-1)/ZCP), "-") -> 10.2696635
A132: Maximum Clearing Price Summer | B132: =(1.5*Gross_CONE*DMNC_ICAP*MAX(MIN(CPMax,SLOLE),CPMin))/(6*DMNC_Summer*(1-(Capacity_at_LOE_Summer-1+MAX(0,SWR-1))/ZCP)) -> 45.67893194
A133: Maximum Clearing Price Winter | B133: =(1.5*Gross_CONE*DMNC_ICAP*MAX(MIN(CPMax,WLOLE),CPMin))/(6*DMNC_Winter*(1-(Capacity_at_LOE_Winter-1+MAX(0,WSR-1))/ZCP)) -> 33.35853565
A135: Toggle Key for Applying Net EAS after 2040
B136: Net EAS Applied | C136: =IF(Fuel_Type<>$E$24,IF(AND(C102<=Plant_Life,C102<=15),TRUE,FALSE),IF(C102<=Plant_Life,TRUE,FALSE)) -> TRUE | D136: TRUE | E136: TRUE | F136: TRUE | G136: TRUE | H136: TRUE | I136: TRUE | J136: TRUE | K136: TRUE | L136: TRUE | M136: TRUE | N136: TRUE | O136: TRUE | P136: FALSE | Q136: FALSE | R136: FALSE | S136: FALSE | T136: FALSE | U136: FALSE | V136: FALSE

Sheet Multiple Scenario Output
A1: Project: | B1: NYISO ICAP Demand Curve
A2: Date: | B2: 2024-06-01
A3: Worksheet: | B3: Multiple Scenario Output
A5: Instructions: | B5: After updating the escalation factor, winter-summer ratios, and net EAS and after saving the previous year's demand curve results, update this sheet by completing the following steps:
B6: Columns 2 through 13 contain default inputs used to calculate reference point prices. Adjust these inputs as desired.
B7: Then, Click the "Perform Runs" button.
A16: Inputs (Current Parameters from "Model")
A19: =COLUMN() -> 1 | B19: =COLUMN() -> 2 | C19: =COLUMN() -> 3 | D19: =COLUMN() -> 4 | E19: =COLUMN() -> 5 | F19: =COLUMN() -> 6 | G19: =COLUMN() -> 7 | H19: =COLUMN() -> 8 | I19: =COLUMN() -> 9 | J19: =COLUMN() -> 10 | K19: =COLUMN() -> 11 | L19: =COLUMN() -> 12 | M19: =COLUMN() -> 13 | N19: =COLUMN() -> 14 | O19: =COLUMN() -> 15 | P19: =COLUMN() -> 16 | Q19: =COLUMN() -> 17 | R19: =COLUMN() -> 18 | S19: =COLUMN() -> 19 | T19: =COLUMN() -> 20 | U19: =COLUMN() -> 21 | V19: =COLUMN() -> 22 | W19: =COLUMN() -> 23 | X19: =COLUMN() -> 24 | Y19: =COLUMN() -> 25 | Z19: =COLUMN() -> 26 | AA19: =COLUMN() -> 27 | AB19: =COLUMN() -> 28 | AC19: =COLUMN() -> 29 | AD19: =COLUMN() -> 30 | AE19: =COLUMN() -> 31 | AF19: =COLUMN() -> 32 | AG19: =COLUMN() -> 33 | AI19: =COLUMN() -> 35 | AJ19: =COLUMN() -> 36 | AK19: =COLUMN() -> 37 | AL19: =COLUMN() -> 38 | AM19: =COLUMN() -> 39 | AN19: =COLUMN() -> 40 | AO19: =COLUMN() -> 41 | AR19: =COLUMN() -> 44
B20: Adjustable Inputs | N20: Linked Inputs | AI20: Results
A21: Value: | B21: Capability Year | C21: Region | D21: Unit | E21: Equity Rate (Nominal) | F21: Debt Rate (Nominal) | G21: Debt Fraction | H21: Service life (Years) | I21: NYC/Battery Property Tax Abatement? | J21: Insurance Rate | K21: AFUDC Percent | L21: Fuel Type | N21: Overnight Capital Costs ($/kW) | O21: DMNC Summer (MW) | P21: DMNC Winter (MW) | Q21: DMNC ICAP (MW) | R21: Winter-Summer Ratio | S21: Escalation Factor (%) | T21: ATWACC (Real, %) | U21: Levelized Fixed Charge (%) | V21: Levelized Fixed Charge ($/kW-Year) | W21: Net EAS ($/kW-Year) | X21: Zero Crossing Point (Margin Over 100%) | Y21: Fixed Property Tax Rate (%) | Z21: Fixed O&M + Site Lease ($/kW-Year) | AA21: Peak Load | AB21: IRM | AC21: Capacity at LOE Conditions | AD21: CC Plant | AE21: Gross CONE ($/kW-Year) | AF21: 2024-205 Finalized CAF | AG21: Insurance ($/kW-Year) | AI21: Annual Reference Value ($/kW-Year) | AJ21: Monthly Reference Point Price ($/kW-Month) | AK21: Summer, ICAP RP | AL21: Winter, ICAP RP | AM21: Summer, UCAP RP | AN21: Winter, UCAP RP | AO21: Level of Excess Clearing Price (Summer) | AP21: Level of Excess Clearing Price (Winter) | AQ21: Maximum Clearing Price (Summer) | AR21: Maximum Clearing Price (Winter)
A22: Named Range: | B22: Capability_Year | C22: Region | D22: Unit | E22: Equity_Rate | F22: Debt_Rate | G22: Debt_Fraction | H22: Plant_life | I22: PropTax_Abate | J22: Insurance_Rate | K22: AFUDC_Pct | L22: Fuel_Type | N22: Capital_Costs | O22: DMNC_Summer | P22: DMNC_Winter | Q22: DMNC_ICAP | R22: WSR | S22: Escalation_Factor | T22: ATWACC_Real | U22: Levelized_Charge | W22: EAS_Adjusted | X22: ZCP | Y22: Property_Tax_Rate | Z22: FixedOM_Site_Lease | AA22: Peak_Load | AB22: IRM | AC22: Capacity_at_LOE | AD22: CC_Plant | AE22: Gross_CONE_Adj
A24: Value: | B24: 2024-2025 | C24: =Region -> C - Central | D24: =Unit -> SCGT J Class | E24: =Equity_Rate -> 0.14 | F24: =Debt_Rate -> 0.067 | G24: =Debt_Fraction -> 0.55 | H24: =Plant_Life -> 13 | I24: =PropTax_Abate -> FALSE | J24: =Insurance_Rate -> 0.006 | K24: =AFUDC_Pct -> 0.0926 | L24: =Fuel_Type -> Dual fuel with SCR | N24: =Capital_Costs -> 1677.358227 | O24: =DMNC_Summer -> 394.5 | P24: =DMNC_Winter -> 419.5 | Q24: =DMNC_ICAP -> 389 | R24: =WSR -> 1.033 | S24: =Escalation_Factor -> 0.165641337 | T24: =ATWACC_Real -> 0.06758461614 | U24: =Levelized_Charge -> 0.1465461875 | V24: =Model!B58 -> 245.8104532 | W24: =EAS_Adjusted -> 72.82305372 | X24: =ZCP -> 0.12 | Y24: =Property_Tax_Rate -> 0.006 | Z24: =FixedOM_Site_Lease -> 7.976812339 | AA24: =Peak_Load -> 31541.6 | AB24: =IRM -> 1.22 | AC24: =Capacity_at_LOE -> 1.01010895 | AD24: =CC_Flag -> FALSE | AE24: =Gross_CONE -> 260.7208902 | AF24: =CAF -> 1 | AG24: =Model!C109 -> 6.933624679 | AI24: =Annual_Reference_Value -> 187.8978365 | AJ24: =Model!B120 -> 20.16118635 | AK24: =Model!B121 -> 21.94677094 | AL24: =Model!B122 -> 16.02734805 | AM24: =Model!B123 -> 22.88505833 | AN24: =Model!B124 -> 16.71256314 | AO24: =Model!B130 -> 20.09794751 | AP24: =Model!B131 -> 10.2696635 | AQ24: =Model!B132 -> 45.67893194 | AR24: =Model!B133 -> 33.35853565
A28: Output from Multiple Scenarios
A31: Scenario | B31: Capability Year | C31: Region | D31: Unit | E31: Equity Rate (Nominal) | F31: Debt Rate (Nominal) | G31: Debt Fraction | H31: Service life (Years) | I31: Property Tax Abatement? | J31: Insurance Rate | K31: AFUDC Percent | L31: Fuel Type | N31: Overnight Capital Costs ($/kW) | O31: DMNC Summer (MW) | P31: DMNC Winter (MW) | Q31: DMNC ICAP (MW) | R31: Winter-Summer Ratio | S31: Escalation Factor (%) | T31: ATWACC (Real, %) | U31: Levelized Fixed Charge (%) | V31: Levelized Fixed Charge ($/kW-Year) | W31: Net EAS ($/kW-Year) | X31: Zero Crossing Point (Margin Over 100%) | Y31: Fixed Property Tax Rate (%) | Z31: Fixed O&M + Site Lease ($/kW-Year) | AA31: Peak Load | AB31: IRM | AC31: Capacity at LOE Conditions | AD31: CC Plant | AE31: Gross CONE ($/kW-Year) | AF31: 2024-205 Finalized CAF | AG31: Insurance ($/kW-Year) | AI31: Annual Reference Value ($/kW-Year) | AJ31: Monthly Reference Point Price ($/kW-Month) | AK31: Summer, ICAP RP | AL31: Winter, ICAP RP | AM31: Summer, UCAP RP | AN31: Winter, UCAP RP | AO31: Level of Excess Clearing Price (Summer) | AP31: Level of Excess Clearing Price (Winter) | AQ31: Maximum Clearing Price (Summer) | AR31: Maximum Clearing Price (Winter)
A32: Fossil 13 Year - Dual Fuel with SCR
A33: =C33&" "&D33&" "&E33&F33&G33&H33&L33&K33 -> F - Capital SCGT J Class 0.140.0670.5513Dual fuel with SCR0.0926 | B33: 2024-2025 | C33: F - Capital | D33: SCGT J Class | E33: 0.14 | F33: 0.067 | G33: 0.55 | H33: 13 | I33: FALSE | J33: 0.006 | K33: 0.0926 | L33: Dual fuel with SCR | N33: 1656.3476 | O33: 406.5 | P33: 431.7 | Q33: 400.3 | R33: 1.033 | S33: 0.165641337 | T33: 0.06758461614 | U33: 0.1465461875 | V33: 242.7314 | W33: 96.3728 | X33: 0.12 | Y33: 0.006 | Z33: 8.0264 | AA33: 31541.6 | AB33: 1.22 | AC33: 1.010402603 | AD33: FALSE | AE33: 257.6329 | AF33: 1 | AG33: 6.875 | AI33: 161.2601 | AJ33: 17.3444 | AK33: 18.864 | AL33: 13.8123 | AM33: 19.6705 | AN33: 14.4028 | AO33: 17.2287 | AP33: 8.8166 | AQ33: 45.2064 | AR33: 33.1003
A34: J - New York City SCGT J Class 0.140.0670.5513Dual fuel with SCR0.0912 | B34: 2024-2025 | C34: J - New York City | D34: SCGT J Class | E34: 0.14 | F34: 0.067 | G34: 0.55 | H34: 13 | I34: TRUE | J34: 0.006 | K34: 0.0912 | L34: Dual fuel with SCR | N34: 1948.4653 | O34: 404.4 | P34: 435 | Q34: 404.1 | R34: 1.067 | S34: 0.165641337 | T34: 0.06506227477 | U34: 0.1465964935 | V34: 285.6382 | W34: 80.3989 | X34: 0.18 | Y34: 0.047664 | Z34: 27.8842 | AA34: 11167.9 | AB34: 0.804 | AC34: 1.045005054 | AD34: FALSE | AE34: 321.7014 | AF34: 1 | AG34: 8.1791 | AI34: 241.3025 | AJ34: 36.2408 | AK34: 34.8389 | AL34: 36.4612 | AM34: 36.3283 | AN34: 38.02 | AO34: 26.1282 | AP34: 13.7732 | AQ34: 69.6701 | AR34: 72.9143
A35: K - Long Island SCGT J Class 0.140.0670.5513Dual fuel with SCR0.0926 | B35: 2024-2025 | C35: K - Long Island | D35: SCGT J Class | E35: 0.14 | F35: 0.067 | G35: 0.55 | H35: 13 | I35: FALSE | J35: 0.006 | K35: 0.0926 | L35: Dual fuel with SCR | N35: 1823.2862 | O35: 407.1 | P35: 438.1 | Q35: 404 | R35: 1.072 | S35: 0.165641337 | T35: 0.06758461614 | U35: 0.1465461875 | V35: 267.1956 | W35: 134.157 | X35: 0.18 | Y35: 0.006 | Z35: 9.8824 | AA35: 5043.4 | AB35: 1.053 | AC35: 1.076072831 | AD35: FALSE | AE35: 285.0596 | AF35: 1 | AG35: 7.9815 | AI35: 150.9025 | AJ35: 33.8768 | AK35: 28.2572 | AL35: 57.286 | AM35: 29.4652 | AN35: 59.7352 | AO35: 16.3149 | AP35: 10.161 | AQ35: 80.068 | AR35: 162.3226
A36: =C36&" "&D36&" "&E36&F36&G36&H36&L36&K36 -> C - Central SCGT J Class 0.140.0670.5513Dual fuel with SCR0.0926 | B36: 2024-2025 | C36: C - Central | D36: SCGT J Class | E36: 0.14 | F36: 0.067 | G36: 0.55 | H36: 13 | I36: FALSE | J36: 0.006 | K36: 0.0926 | L36: Dual fuel with SCR | N36: 1677.3582 | O36: 394.5 | P36: 419.5 | Q36: 389 | R36: 1.033 | S36: 0.165641337 | T36: 0.06758461614 | U36: 0.1465461875 | V36: 245.8105 | W36: 72.8231 | X36: 0.12 | Y36: 0.006 | Z36: 7.9768 | AA36: 31541.6 | AB36: 1.22 | AC36: 1.01010895 | AD36: FALSE | AE36: 260.7209 | AF36: 1 | AG36: 6.9336 | AI36: 187.8978 | AJ36: 20.1612 | AK36: 21.9468 | AL36: 16.0273 | AM36: 22.8851 | AN36: 16.7126 | AO36: 20.0979 | AP36: 10.2697 | AQ36: 45.6789 | AR36: 33.3585
A37: G - Hudson Valley (Rockland) SCGT J Class 0.140.0670.5513Dual fuel with SCR0.0926 | B37: 2024-2025 | C37: G - Hudson Valley (Rockland) | D37: SCGT J Class | E37: 0.14 | F37: 0.067 | G37: 0.55 | H37: 13 | I37: FALSE | J37: 0.006 | K37: 0.0926 | L37: Dual fuel with SCR | N37: 1753.9676 | O37: 400.9 | P37: 428.5 | Q37: 397.4 | R37: 1.058 | S37: 0.165641337 | T37: 0.06758461614 | U37: 0.1465461875 | V37: 257.0373 | W37: 67.8599 | X37: 0.15 | Y37: 0.006 | Z37: 9.5445 | AA37: 15220 | AB37: 0.81 | AC37: 1.032235038 | AD37: FALSE | AE37: 274.0484 | AF37: 1 | AG37: 7.4666 | AI37: 206.1885 | AJ37: 29.3329 | AK37: 28.271 | AL37: 29.2302 | AM37: 29.4797 | AN37: 30.4799 | AO37: 22.1956 | AP37: 11.6463 | AQ37: 56.3632 | AR37: 58.2756
A38: G - Hudson Valley (Dutchess) SCGT J Class 0.140.0670.5513Dual fuel with SCR0.0926 | B38: 2024-2025 | C38: G - Hudson Valley (Dutchess) | D38: SCGT J Class | E38: 0.14 | F38: 0.067 | G38: 0.55 | H38: 13 | I38: FALSE | J38: 0.006 | K38: 0.0926 | L38: Dual fuel with SCR | N38: 1658.6194 | O38: 400.9 | P38: 428.5 | Q38: 397.4 | R38: 1.058 | S38: 0.165641337 | T38: 0.06758461614 | U38: 0.1465461875 | V38: 243.0644 | W38: 66.0684 | X38: 0.15 | Y38: 0.006 | Z38: 8.6386 | AA38: 15220 | AB38: 0.81 | AC38: 1.032235038 | AD38: FALSE | AE38: 258.6732 | AF38: 1 | AG38: 6.9702 | AI38: 192.6048 | AJ38: 27.4005 | AK38: 26.4085 | AL38: 27.3046 | AM38: 27.5376 | AN38: 28.4719 | AO38: 20.7333 | AP38: 10.879 | AQ38: 53.201 | AR38: 55.0061
A39: Fossil 13 Year - Gas Only with SCR
A40: F - Capital SCGT J Class 0.140.0670.5513Gas only with SCR0.0926 | B40: 2024-2025 | C40: F - Capital | D40: SCGT J Class | E40: 0.14 | F40: 0.067 | G40: 0.55 | H40: 13 | I40: FALSE | J40: 0.006 | K40: 0.0926 | L40: Gas only with SCR | N40: 1582.9253 | O40: 406.5 | P40: 431.7 | Q40: 400.3 | R40: 1.033 | S40: 0.165641337 | T40: 0.06758461614 | U40: 0.1465461875 | V40: 231.9717 | W40: 95.7623 | X40: 0.12 | Y40: 0.006 | Z40: 8.0264 | AA40: 31541.6 | AB40: 1.22 | AC40: 1.010402603 | AD40: FALSE | AE40: 246.4699 | AF40: 1 | AG40: 6.4718 | AI40: 150.7077 | AJ40: 16.2094 | AK40: 17.6296 | AL40: 12.9085 | AM40: 18.3833 | AN40: 13.4603 | AO40: 16.1013 | AP40: 8.2396 | AQ40: 43.2476 | AR40: 31.6661
A41: C - Central SCGT J Class 0.140.0670.5513Gas only with SCR0.0926 | B41: 2024-2025 | C41: C - Central | D41: SCGT J Class | E41: 0.14 | F41: 0.067 | G41: 0.55 | H41: 13 | I41: FALSE | J41: 0.006 | K41: 0.0926 | L41: Gas only with SCR | N41: 1601.8031 | O41: 394.5 | P41: 419.5 | Q41: 389 | R41: 1.033 | S41: 0.165641337 | T41: 0.06758461614 | U41: 0.1465461875 | V41: 234.7381 | W41: 72.8231 | X41: 0.12 | Y41: 0.006 | Z41: 7.9768 | AA41: 31541.6 | AB41: 1.22 | AC41: 1.01010895 | AD41: FALSE | AE41: 249.2337 | AF41: 1 | AG41: 6.5187 | AI41: 176.4106 | AJ41: 18.9286 | AK41: 20.605 | AL41: 15.0475 | AM41: 21.486 | AN41: 15.6908 | AO41: 18.8692 | AP41: 9.6418 | AQ41: 43.6663 | AR41: 31.8888
A42: G - Hudson Valley (Rockland) SCGT J Class 0.140.0670.5513Gas only with SCR0.0926 | B42: 2024-2025 | C42: G - Hudson Valley (Rockland) | D42: SCGT J Class | E42: 0.14 | F42: 0.067 | G42: 0.55 | H42: 13 | I42: FALSE | J42: 0.006 | K42: 0.0926 | L42: Gas only with SCR | N42: 1680.0095 | O42: 400.9 | P42: 428.5 | Q42: 397.4 | R42: 1.058 | S42: 0.165641337 | T42: 0.06758461614 | U42: 0.1465461875 | V42: 246.199 | W42: 59.8939 | X42: 0.15 | Y42: 0.006 | Z42: 9.5445 | AA42: 15220 | AB42: 0.81 | AC42: 1.032235038 | AD42: FALSE | AE42: 262.804 | AF42: 1 | AG42: 7.0605 | AI42: 202.9101 | AJ42: 28.8665 | AK42: 27.8215 | AL42: 28.7655 | AM42: 29.011 | AN42: 29.9953 | AO42: 21.8427 | AP42: 11.4611 | AQ42: 54.0506 | AR42: 55.8845
A43: =C43&" "&D43&" "&E43&F43&G43&H43&L43&K43 -> G - Hudson Valley (Dutchess) SCGT J Class 0.140.0670.5513Gas only with SCR0.0926 | B43: 2024-2025 | C43: G - Hudson Valley (Dutchess) | D43: SCGT J Class | E43: 0.14 | F43: 0.067 | G43: 0.55 | H43: 13 | I43: FALSE | J43: 0.006 | K43: 0.0926 | L43: Gas only with SCR | N43: 1584.6613 | O43: 400.9 | P43: 428.5 | Q43: 397.4 | R43: 1.058 | S43: 0.165641337 | T43: 0.06758461614 | U43: 0.1465461875 | V43: 232.2261 | W43: 58.6448 | X43: 0.15 | Y43: 0.006 | Z43: 8.6386 | AA43: 15220 | AB43: 0.81 | AC43: 1.032235038 | AD43: FALSE | AE43: 247.4287 | AF43: 1 | AG43: 6.5641 | AI43: 188.784 | AJ43: 26.8569 | AK43: 25.8847 | AL43: 26.7629 | AM43: 26.9913 | AN43: 27.9071 | AO43: 20.322 | AP43: 10.6632 | AQ43: 50.8884 | AR43: 52.615
A44: Fossil 13 Year - Dual Fuel without SCR
A45: F - Capital SCGT 7HA.02 0.140.0670.5513Dual fuel without SCR0.0926 | B45: 2024-2025 | C45: F - Capital | D45: SCGT 7HA.02 | E45: 0.14 | F45: 0.067 | G45: 0.55 | H45: 13 | I45: FALSE | J45: 0.006 | K45: 0.0926 | L45: Dual fuel without SCR | N45: 1737.6977 | O45: 335.79449 | P45: 363.72214 | Q45: 330.68231 | R45: 1.033 | S45: 0.165641337 | T45: 0.06758461614 | U45: 0.1465461875 | V45: 254.653 | W45: 62.4108 | X45: 0.12 | Y45: 0.006 | Z45: 9.6255 | AA45: 31541.6 | AB45: 1.22 | AC45: 1.008593447 | AD45: FALSE | AE45: 271.2089 | AF45: 1 | AG45: 6.9304 | AI45: 208.798 | AJ45: 21.8413 | AK45: 24.0223 | AL45: 17.1354 | AM45: 25.0493 | AN45: 17.868 | AO45: 22.302 | AP45: 11.1961 | AQ45: 46.804 | AR45: 33.386
A46: C - Central SCGT 7HA.02 0.140.0670.5513Dual fuel without SCR0.0926 | B46: 2024-2025 | C46: C - Central | D46: SCGT 7HA.02 | E46: 0.14 | F46: 0.067 | G46: 0.55 | H46: 13 | I46: FALSE | J46: 0.006 | K46: 0.0926 | L46: Dual fuel without SCR | N46: 1760.4954 | O46: 325.6648 | P46: 352.1724 | Q46: 321.02597 | R46: 1.033 | S46: 0.165641337 | T46: 0.06758461614 | U46: 0.1465461875 | V46: 257.9939 | W46: 56.1585 | X46: 0.12 | Y46: 0.006 | Z46: 9.6035 | AA46: 31541.6 | AB46: 1.22 | AC46: 1.008342508 | AD46: FALSE | AE46: 274.5828 | AF46: 1 | AG46: 6.9854 | AI46: 218.4244 | AJ46: 22.8265 | AK46: 25.0955 | AL46: 17.9034 | AM46: 26.1684 | AN46: 18.6688 | AO46: 23.3508 | AP46: 11.7353 | AQ46: 47.3215 | AR46: 33.7598
A47: =C47&" "&D47&" "&E47&F47&G47&H47&L47&K47 -> G - Hudson Valley (Dutchess) SCGT 7HA.02 0.140.0670.5513Dual fuel without SCR0.0926 | B47: 2024-2025 | C47: G - Hudson Valley (Dutchess) | D47: SCGT 7HA.02 | E47: 0.14 | F47: 0.067 | G47: 0.55 | H47: 13 | I47: FALSE | J47: 0.006 | K47: 0.0926 | L47: Dual fuel without SCR | N47: 1734.0558 | O47: 331.25033 | P47: 331.25033 | Q47: 328.12622 | R47: 1.058 | S47: 0.165641337 | T47: 0.06758461614 | U47: 0.1465461875 | V47: 254.1193 | W47: 54.7771 | X47: 0.15 | Y47: 0.006 | Z47: 9.7005 | AA47: 15220 | AB47: 0.81 | AC47: 1.026615907 | AD47: FALSE | AE47: 270.8312 | AF47: 1 | AG47: 7.0114 | AI47: 216.0541 | AJ47: 29.5556 | AK47: 28.2445 | AL47: 28.7521 | AM47: 29.4521 | AN47: 29.9813 | AO47: 23.2328 | AP47: 12.5329 | AQ47: 53.1082 | AR47: 54.0626
A48: Fossil 13 Year - Gas Only without SCR
A49: F - Capital SCGT 7HA.02 0.140.0670.5513Gas only without SCR0.0926 | B49: 2024-2025 | C49: F - Capital | D49: SCGT 7HA.02 | E49: 0.14 | F49: 0.067 | G49: 0.55 | H49: 13 | I49: FALSE | J49: 0.006 | K49: 0.0926 | L49: Gas only without SCR | N49: 1648.818 | O49: 335.79449 | P49: 363.72214 | Q49: 330.68231 | R49: 1.033 | S49: 0.165641337 | T49: 0.06758461614 | U49: 0.1465461875 | V49: 241.628 | W49: 63.0362 | X49: 0.12 | Y49: 0.006 | Z49: 9.6255 | AA49: 31541.6 | AB49: 1.22 | AC49: 1.008593447 | AD49: FALSE | AE49: 257.6958 | AF49: 1 | AG49: 6.4423 | AI49: 194.6596 | AJ49: 20.3624 | AK49: 22.3957 | AL49: 15.9751 | AM49: 23.3532 | AN49: 16.6581 | AO49: 20.7919 | AP49: 10.438 | AQ49: 44.472 | AR49: 31.7225
A50: C - Central SCGT 7HA.02 0.140.0670.5513Gas only without SCR0.0926 | B50: 2024-2025 | C50: C - Central | D50: SCGT 7HA.02 | E50: 0.14 | F50: 0.067 | G50: 0.55 | H50: 13 | I50: FALSE | J50: 0.006 | K50: 0.0926 | L50: Gas only without SCR | N50: 1668.9423 | O50: 325.6648 | P50: 352.1724 | Q50: 321.02597 | R50: 1.033 | S50: 0.165641337 | T50: 0.06758461614 | U50: 0.1465461875 | V50: 244.5771 | W50: 56.1585 | X50: 0.12 | Y50: 0.006 | Z50: 9.6035 | AA50: 31541.6 | AB50: 1.22 | AC50: 1.008342508 | AD50: FALSE | AE50: 260.6633 | AF50: 1 | AG50: 6.4827 | AI50: 204.5048 | AJ50: 21.3718 | AK50: 23.4962 | AL50: 16.7625 | AM50: 24.5007 | AN50: 17.4791 | AO50: 21.8627 | AP50: 10.9875 | AQ50: 44.9226 | AR50: 32.0484
A51: =C51&" "&D51&" "&E51&F51&G51&H51&L51&K51 -> G - Hudson Valley (Dutchess) SCGT 7HA.02 0.140.0670.5513Gas only without SCR0.0926 | B51: 2024-2025 | C51: G - Hudson Valley (Dutchess) | D51: SCGT 7HA.02 | E51: 0.14 | F51: 0.067 | G51: 0.55 | H51: 13 | I51: FALSE | J51: 0.006 | K51: 0.0926 | L51: Gas only without SCR | N51: 1644.4837 | O51: 331.25033 | P51: 331.25033 | Q51: 328.12622 | R51: 1.058 | S51: 0.165641337 | T51: 0.06758461614 | U51: 0.1465461875 | V51: 240.9928 | W51: 45.2328 | X51: 0.15 | Y51: 0.006 | Z51: 9.7005 | AA51: 15220 | AB51: 0.81 | AC51: 1.026615907 | AD51: FALSE | AE51: 257.2129 | AF51: 1 | AG51: 6.5196 | AI51: 211.98 | AJ51: 28.9983 | AK51: 27.7119 | AL51: 28.2099 | AM51: 28.8967 | AN51: 29.416 | AO51: 22.7947 | AP51: 12.2965 | AQ51: 50.4377 | AR51: 51.3442
A52: Battery
A53: BESS 2h
A54: =C54&" "&D54&" "&E54&F54&G54&H54&L54&K54 -> F - Capital BESS 2h 0.140.0670.5515Battery0.0797 | B54: 2024-2025 | C54: F - Capital | D54: BESS 2h | E54: 0.14 | F54: 0.067 | G54: 0.55 | H54: 15 | I54: TRUE | J54: 0.006 | K54: 0.0797 | L54: Battery | N54: 870.8212 | O54: 200 | P54: 200 | Q54: 200 | R54: 1.033 | S54: 0.193193057 | T54: 0.06758461614 | U54: 0.1191612148 | V54: 103.7681 | W54: 78.7805 | X54: 0.12 | Y54: 0.006 | Z54: 17.65 | AA54: 31541.6 | AB54: 1.22 | AC54: 1.005197404 | AD54: FALSE | AE54: 126.4938 | AF54: 0.5542 | AG54: 5.0757 | AI54: 47.7134 | AJ54: 8.9368 | AK54: 5.403 | AL54: 4.0829 | AM54: 9.9481 | AN54: 7.5176 | AO54: 5.1689 | AP54: 2.7833 | AQ54: 21.4858 | AR54: 16.2365
A55: J - New York City BESS 2h 0.140.0670.5515Battery0.0785 | B55: 2024-2025 | C55: J - New York City | D55: BESS 2h | E55: 0.14 | F55: 0.067 | G55: 0.55 | H55: 15 | I55: TRUE | J55: 0.006 | K55: 0.0785 | L55: Battery | N55: 1165.4541 | O55: 200 | P55: 200 | Q55: 200 | R55: 1.067 | S55: 0.193193057 | T55: 0.06506227477 | U55: 0.1209197498 | V55: 140.9264 | W55: 73.9992 | X55: 0.18 | Y55: 0.047664 | Z55: 35.67 | AA55: 11167.9 | AB55: 0.804 | AC55: 1.022274216 | AD55: FALSE | AE55: 182.7794 | AF55: 0.5593 | AG55: 6.183 | AI55: 108.7802 | AJ55: 23.9639 | AK55: 13.4487 | AL55: 12.5895 | AM55: 24.5364 | AN55: 22.9688 | AO55: 11.7845 | AP55: 6.3455 | AQ55: 33.8962 | AR55: 31.7305
A56: K - Long Island BESS 2h 0.140.0670.5515Battery0.0797 | B56: 2024-2025 | C56: K - Long Island | D56: BESS 2h | E56: 0.14 | F56: 0.067 | G56: 0.55 | H56: 15 | I56: TRUE | J56: 0.006 | K56: 0.0797 | L56: Battery | N56: 872.7863 | O56: 200 | P56: 200 | Q56: 200 | R56: 1.072 | S56: 0.193193057 | T56: 0.06758461614 | U56: 0.1191612148 | V56: 104.0023 | W56: 98.8694 | X56: 0.18 | Y56: 0.006 | Z56: 17.7 | AA56: 5043.4 | AB56: 1.053 | AC56: 1.037659817 | AD56: FALSE | AE56: 127.0369 | AF56: 0.5276 | AG56: 5.3346 | AI56: 28.1674 | AJ56: 7.6844 | AK56: 3.8588 | AL56: 4.2047 | AM56: 7.4632 | AN56: 8.1321 | AO56: 3.0515 | AP56: 1.6431 | AQ56: 26.1053 | AR56: 28.4451
A57: C - Central BESS 2h 0.140.0670.5515Battery0.0797 | B57: 2024-2025 | C57: C - Central | D57: BESS 2h | E57: 0.14 | F57: 0.067 | G57: 0.55 | H57: 15 | I57: TRUE | J57: 0.006 | K57: 0.0797 | L57: Battery | N57: 865.4551 | O57: 200 | P57: 200 | Q57: 200 | R57: 1.033 | S57: 0.193193057 | T57: 0.06758461614 | U57: 0.1191612148 | V57: 103.1287 | W57: 61.5845 | X57: 0.12 | Y57: 0.006 | Z57: 17.65 | AA57: 31541.6 | AB57: 1.22 | AC57: 1.005197404 | AD57: FALSE | AE57: 125.8136 | AF57: 0.5542 | AG57: 5.0349 | AI57: 64.2291 | AJ57: 12.0302 | AK57: 7.2732 | AL57: 5.4962 | AM57: 13.3915 | AN57: 10.1198 | AO57: 6.9581 | AP57: 3.7467 | AQ57: 21.3703 | AR57: 16.1492
A58: G - Hudson Valley (Rockland) BESS 2h 0.140.0670.5515Battery0.0797 | B58: 2024-2025 | C58: G - Hudson Valley (Rockland) | D58: BESS 2h | E58: 0.14 | F58: 0.067 | G58: 0.55 | H58: 15 | I58: TRUE | J58: 0.006 | K58: 0.0797 | L58: Battery | N58: 889.4515 | O58: 200 | P58: 200 | Q58: 200 | R58: 1.058 | S58: 0.193193057 | T58: 0.06758461614 | U58: 0.1191612148 | V58: 105.9881 | W58: 69.3274 | X58: 0.15 | Y58: 0.006 | Z58: 17.65 | AA58: 15220 | AB58: 0.81 | AC58: 1.016222968 | AD58: FALSE | AE58: 128.8539 | AF58: 0.5616 | AG58: 5.2158 | AI58: 59.5265 | AJ58: 12.9033 | AK58: 7.2307 | AL58: 6.8735 | AM58: 13.138 | AN58: 12.489 | AO58: 6.4487 | AP58: 3.4724 | AQ58: 23.478 | AR58: 22.3182
A59: G - Hudson Valley (Dutchess) BESS 2h 0.140.0670.5515Battery0.0797 | B59: 2024-2025 | C59: G - Hudson Valley (Dutchess) | D59: BESS 2h | E59: 0.14 | F59: 0.067 | G59: 0.55 | H59: 15 | I59: TRUE | J59: 0.006 | K59: 0.0797 | L59: Battery | N59: 865.7574 | O59: 200 | P59: 200 | Q59: 200 | R59: 1.058 | S59: 0.193193057 | T59: 0.06758461614 | U59: 0.1191612148 | V59: 103.1647 | W59: 70.3861 | X59: 0.15 | Y59: 0.006 | Z59: 17.65 | AA59: 15220 | AB59: 0.81 | AC59: 1.016222968 | AD59: FALSE | AE59: 125.852 | AF59: 0.5616 | AG59: 5.0373 | AI59: 55.4659 | AJ59: 12.0231 | AK59: 6.7375 | AL59: 6.4047 | AM59: 12.2418 | AN59: 11.6371 | AO59: 6.0088 | AP59: 3.2355 | AQ59: 22.931 | AR59: 21.7983
A60: BESS 4h
A61: =C61&" "&D61&" "&E61&F61&G61&H61&L61&K61 -> F - Capital BESS 4h 0.140.0670.5515Battery0.0804 | B61: 2024-2025 | C61: F - Capital | D61: BESS 4h | E61: 0.14 | F61: 0.067 | G61: 0.55 | H61: 15 | I61: TRUE | J61: 0.006 | K61: 0.0804 | L61: Battery | N61: 1359.262 | O61: 200 | P61: 200 | Q61: 200 | R61: 1.033 | S61: 0.193193057 | T61: 0.06758461614 | U61: 0.1191612148 | V61: 161.9713 | W61: 91.808 | X61: 0.12 | Y61: 0.006 | Z61: 28.95 | AA61: 31541.6 | AB61: 1.22 | AC61: 1.005197404 | AD61: FALSE | AE61: 199.6474 | AF61: 0.6447 | AG61: 8.7261 | AI61: 107.8394 | AJ61: 17.3632 | AK61: 12.2115 | AL61: 9.228 | AM61: 19.3279 | AN61: 14.6058 | AO61: 11.6826 | AP61: 6.2906 | AQ61: 33.9115 | AR61: 25.6263
A62: J - New York City BESS 4h 0.140.0670.5515Battery0.0792 | B62: 2024-2025 | C62: J - New York City | D62: BESS 4h | E62: 0.14 | F62: 0.067 | G62: 0.55 | H62: 15 | I62: TRUE | J62: 0.006 | K62: 0.0792 | L62: Battery | N62: 1784.6137 | O62: 200 | P62: 200 | Q62: 200 | R62: 1.067 | S62: 0.193193057 | T62: 0.06506227477 | U62: 0.1209197498 | V62: 215.795 | W62: 81.6805 | X62: 0.18 | Y62: 0.047664 | Z62: 56.13 | AA62: 11167.9 | AB62: 0.804 | AC62: 1.022274216 | AD62: FALSE | AE62: 282.7445 | AF62: 0.6884 | AG62: 10.8195 | AI62: 201.064 | AJ62: 35.9871 | AK62: 24.858 | AL62: 23.2698 | AM62: 36.8468 | AN62: 34.4926 | AO62: 21.7819 | AP62: 11.7287 | AQ62: 52.4345 | AR62: 49.0845
A63: K - Long Island BESS 4h 0.140.0670.5515Battery0.0804 | B63: 2024-2025 | C63: K - Long Island | D63: BESS 4h | E63: 0.14 | F63: 0.067 | G63: 0.55 | H63: 15 | I63: TRUE | J63: 0.006 | K63: 0.0804 | L63: Battery | N63: 1379.8329 | O63: 200 | P63: 200 | Q63: 200 | R63: 1.072 | S63: 0.193193057 | T63: 0.06758461614 | U63: 0.1191612148 | V63: 164.4226 | W63: 118.5038 | X63: 0.18 | Y63: 0.006 | Z63: 28.95 | AA63: 5043.4 | AB63: 1.053 | AC63: 1.037659817 | AD63: FALSE | AE63: 202.4977 | AF63: 0.7894 | AG63: 9.1251 | AI63: 83.9938 | AJ63: 15.315 | AK63: 11.5068 | AL63: 12.5381 | AM63: 14.8741 | AN63: 16.2073 | AO63: 9.0993 | AP63: 4.8996 | AQ63: 41.612 | AR63: 45.3416
A64: C - Central BESS 4h 0.140.0670.5515Battery0.0804 | B64: 2024-2025 | C64: C - Central | D64: BESS 4h | E64: 0.14 | F64: 0.067 | G64: 0.55 | H64: 15 | I64: TRUE | J64: 0.006 | K64: 0.0804 | L64: Battery | N64: 1351.548 | O64: 200 | P64: 200 | Q64: 200 | R64: 1.033 | S64: 0.193193057 | T64: 0.06758461614 | U64: 0.1191612148 | V64: 161.0521 | W64: 71.6789 | X64: 0.12 | Y64: 0.006 | Z64: 28.95 | AA64: 31541.6 | AB64: 1.22 | AC64: 1.005197404 | AD64: FALSE | AE64: 198.6703 | AF64: 0.6447 | AG64: 8.6682 | AI64: 126.9914 | AJ64: 20.4468 | AK64: 14.3802 | AL64: 10.8669 | AM64: 22.7605 | AN64: 17.1997 | AO64: 13.7574 | AP64: 7.4078 | AQ64: 33.7455 | AR64: 25.5009
A65: G - Hudson Valley (Rockland) BESS 4h 0.140.0670.5515Battery0.0804 | B65: 2024-2025 | C65: G - Hudson Valley (Rockland) | D65: BESS 4h | E65: 0.14 | F65: 0.067 | G65: 0.55 | H65: 15 | I65: TRUE | J65: 0.006 | K65: 0.0804 | L65: Battery | N65: 1385.8075 | O65: 200 | P65: 200 | Q65: 200 | R65: 1.058 | S65: 0.193193057 | T65: 0.06758461614 | U65: 0.1191612148 | V65: 165.1345 | W65: 77.1259 | X65: 0.15 | Y65: 0.006 | Z65: 28.95 | AA65: 15220 | AB65: 0.81 | AC65: 1.016222968 | AD65: FALSE | AE65: 203.0104 | AF65: 0.6795 | AG65: 8.9259 | AI65: 125.8845 | AJ65: 22.5528 | AK65: 15.2913 | AL65: 14.5359 | AM65: 22.963 | AN65: 21.8287 | AO65: 13.6375 | AP65: 7.3433 | AQ65: 36.9897 | AR65: 35.1625
A66: G - Hudson Valley (Dutchess) BESS 4h 0.140.0670.5515Battery0.0804 | B66: 2024-2025 | C66: G - Hudson Valley (Dutchess) | D66: BESS 4h | E66: 0.14 | F66: 0.067 | G66: 0.55 | H66: 15 | I66: TRUE | J66: 0.006 | K66: 0.0804 | L66: Battery | N66: 1352.153 | O66: 200 | P66: 200 | Q66: 200 | R66: 1.058 | S66: 0.193193057 | T66: 0.06758461614 | U66: 0.1191612148 | V66: 161.1242 | W66: 78.833 | X66: 0.15 | Y66: 0.006 | Z66: 28.95 | AA66: 15220 | AB66: 0.81 | AC66: 1.016222968 | AD66: FALSE | AE66: 198.7469 | AF66: 0.6795 | AG66: 8.6727 | AI66: 119.9139 | AJ66: 21.4831 | AK66: 14.566 | AL66: 13.8465 | AM66: 21.8739 | AN66: 20.7933 | AO66: 12.9907 | AP66: 6.995 | AQ66: 36.2129 | AR66: 34.4241
A67: BESS 6h
A68: =C68&" "&D68&" "&E68&F68&G68&H68&L68&K68 -> F - Capital BESS 6h 0.140.0670.5515Battery0.0947 | B68: 2024-2025 | C68: F - Capital | D68: BESS 6h | E68: 0.14 | F68: 0.067 | G68: 0.55 | H68: 15 | I68: TRUE | J68: 0.006 | K68: 0.0947 | L68: Battery | N68: 1905.7249 | O68: 200 | P68: 200 | Q68: 200 | R68: 1.033 | S68: 0.1890455673 | T68: 0.06758461614 | U68: 0.1191612148 | V68: 227.0885 | W68: 97.1459 | X68: 0.12 | Y68: 0.006 | Z68: 40.8 | AA68: 31541.6 | AB68: 1.22 | AC68: 1.005197404 | AD68: FALSE | AE68: 280.511 | AF68: 0.9177 | AG68: 12.6225 | AI68: 183.3651 | AJ68: 20.7408 | AK68: 20.7639 | AL68: 15.6909 | AM68: 23.0877 | AN68: 17.447 | AO68: 19.8645 | AP68: 10.6963 | AQ68: 47.6467 | AR68: 36.0058
A69: =C69&" "&D69&" "&E69&F69&G69&H69&L69&K69 -> J - New York City BESS 6h 0.140.0670.5515Battery0.0932 | B69: 2024-2025 | C69: J - New York City | D69: BESS 6h | E69: 0.14 | F69: 0.067 | G69: 0.55 | H69: 15 | I69: TRUE | J69: 0.006 | K69: 0.0932 | L69: Battery | N69: 2422.482 | O69: 200 | P69: 200 | Q69: 200 | R69: 1.067 | S69: 0.1890455673 | T69: 0.06506227477 | U69: 0.1209197498 | V69: 292.9259 | W69: 84.5157 | X69: 0.18 | Y69: 0.047664 | Z69: 77.14 | AA69: 11167.9 | AB69: 0.804 | AC69: 1.022274216 | AD69: FALSE | AE69: 385.4247 | AF69: 0.9041 | AG69: 15.3588 | AI69: 300.909 | AJ69: 41.0083 | AK69: 37.2021 | AL69: 34.8252 | AM69: 41.9879 | AN69: 39.3053 | AO69: 32.5985 | AP69: 17.553 | AQ69: 71.4764 | AR69: 66.9097
A70: K - Long Island BESS 6h 0.140.0670.5515Battery0.0947 | B70: 2024-2025 | C70: K - Long Island | D70: BESS 6h | E70: 0.14 | F70: 0.067 | G70: 0.55 | H70: 15 | I70: TRUE | J70: 0.006 | K70: 0.0947 | L70: Battery | N70: 1951.9322 | O70: 200 | P70: 200 | Q70: 200 | R70: 1.072 | S70: 0.1890455673 | T70: 0.06758461614 | U70: 0.1191612148 | V70: 232.5946 | W70: 128.5496 | X70: 0.18 | Y70: 0.006 | Z70: 40.9 | AA70: 5043.4 | AB70: 1.053 | AC70: 1.037659817 | AD70: FALSE | AE70: 286.7045 | AF70: 0.9153 | AG70: 13.2099 | AI70: 158.1549 | AJ70: 24.8706 | AK70: 21.6665 | AL70: 23.6085 | AM70: 24.1546 | AN70: 26.3196 | AO70: 17.1334 | AP70: 9.2257 | AQ70: 58.9159 | AR70: 64.1965
A71: C - Central BESS 6h 0.140.0670.5515Battery0.0947 | B71: 2024-2025 | C71: C - Central | D71: BESS 6h | E71: 0.14 | F71: 0.067 | G71: 0.55 | H71: 15 | I71: TRUE | J71: 0.006 | K71: 0.0947 | L71: Battery | N71: 1894.767 | O71: 200 | P71: 200 | Q71: 200 | R71: 1.033 | S71: 0.1890455673 | T71: 0.06758461614 | U71: 0.1191612148 | V71: 225.7827 | W71: 75.7411 | X71: 0.12 | Y71: 0.006 | Z71: 40.8 | AA71: 31541.6 | AB71: 1.22 | AC71: 1.005197404 | AD71: FALSE | AE71: 279.1239 | AF71: 0.9177 | AG71: 12.5412 | AI71: 203.3828 | AJ71: 23.005 | AK71: 23.0306 | AL71: 17.4038 | AM71: 25.6082 | AN71: 19.3517 | AO71: 22.0331 | AP71: 11.864 | AQ71: 47.4111 | AR71: 35.8277
A72: G - Hudson Valley (Rockland) BESS 6h 0.140.0670.5515Battery0.0947 | B72: 2024-2025 | C72: G - Hudson Valley (Rockland) | D72: BESS 6h | E72: 0.14 | F72: 0.067 | G72: 0.55 | H72: 15 | I72: TRUE | J72: 0.006 | K72: 0.0947 | L72: Battery | N72: 1943.3498 | O72: 200 | P72: 200 | Q72: 200 | R72: 1.058 | S72: 0.1890455673 | T72: 0.06758461614 | U72: 0.1191612148 | V72: 231.5719 | W72: 80.1994 | X72: 0.15 | Y72: 0.006 | Z72: 40.8 | AA72: 15220 | AB72: 0.81 | AC72: 1.016222968 | AD72: FALSE | AE72: 285.2737 | AF72: 0.9192 | AG72: 12.9018 | AI72: 205.0743 | AJ72: 27.1593 | AK72: 24.9105 | AL72: 23.68 | AM72: 27.6533 | AN72: 26.2873 | AO72: 22.2164 | AP72: 11.9627 | AQ72: 51.9786 | AR72: 49.411
A73: G - Hudson Valley (Dutchess) BESS 6h 0.140.0670.5515Battery0.0947 | B73: 2024-2025 | C73: G - Hudson Valley (Dutchess) | D73: BESS 6h | E73: 0.14 | F73: 0.067 | G73: 0.55 | H73: 15 | I73: TRUE | J73: 0.006 | K73: 0.0947 | L73: Battery | N73: 1895.6482 | O73: 200 | P73: 200 | Q73: 200 | R73: 1.058 | S73: 0.1890455673 | T73: 0.06758461614 | U73: 0.1191612148 | V73: 225.8877 | W73: 83.1487 | X73: 0.15 | Y73: 0.006 | Z73: 40.8 | AA73: 15220 | AB73: 0.81 | AC73: 1.016222968 | AD73: FALSE | AE73: 279.2355 | AF73: 0.9192 | AG73: 12.5478 | AI73: 196.0869 | AJ73: 25.9691 | AK73: 23.8188 | AL73: 22.6422 | AM73: 26.4414 | AN73: 25.1352 | AO73: 21.2427 | AP73: 11.4384 | AQ73: 50.8784 | AR73: 48.3651
A74: BESS 8h
A75: =C75&" "&D75&" "&E75&F75&G75&H75&L75&K75 -> F - Capital BESS 8h 0.140.0670.5515Battery0.1176 | B75: 2024-2025 | C75: F - Capital | D75: BESS 8h | E75: 0.14 | F75: 0.067 | G75: 0.55 | H75: 15 | I75: TRUE | J75: 0.006 | K75: 0.1176 | L75: Battery | N75: 2453.7076 | O75: 200 | P75: 200 | Q75: 200 | R75: 1.033 | S75: 0.186757503 | T75: 0.06758461614 | U75: 0.1191612148 | V75: 292.3868 | W75: 97.2365 | X75: 0.12 | Y75: 0.006 | Z75: 51.85 | AA75: 31541.6 | AB75: 1.22 | AC75: 1.005197404 | AD75: FALSE | AE75: 360.5259 | AF75: 1 | AG75: 16.2891 | AI75: 263.2893 | AJ75: 27.3302 | AK75: 29.8143 | AL75: 22.5302 | AM75: 30.4228 | AN75: 22.99 | AO75: 28.523 | AP75: 15.3585 | AQ75: 61.2378 | AR75: 46.2763
A76: =C76&" "&D76&" "&E76&F76&G76&H76&L76&K76 -> J - New York City BESS 8h 0.140.0670.5515Battery0.1158 | B76: 2024-2025 | C76: J - New York City | D76: BESS 8h | E76: 0.14 | F76: 0.067 | G76: 0.55 | H76: 15 | I76: TRUE | J76: 0.006 | K76: 0.1158 | L76: Battery | N76: 3102.7999 | O76: 200 | P76: 200 | Q76: 200 | R76: 1.067 | S76: 0.186757503 | T76: 0.06506227477 | U76: 0.1209197498 | V76: 375.1898 | W76: 85.4085 | X76: 0.18 | Y76: 0.047664 | Z76: 97.35 | AA76: 11167.9 | AB76: 0.804 | AC76: 1.022274216 | AD76: FALSE | AE76: 492.4562 | AF76: 1 | AG76: 19.9164 | AI76: 407.0477 | AJ76: 50.1532 | AK76: 50.3242 | AL76: 47.109 | AM76: 51.3513 | AN76: 48.0704 | AO76: 44.0968 | AP76: 23.7445 | AQ76: 91.3252 | AR76: 85.4904
A77: K - Long Island BESS 8h 0.140.0670.5515Battery0.1176 | B77: 2024-2025 | C77: K - Long Island | D77: BESS 8h | E77: 0.14 | F77: 0.067 | G77: 0.55 | H77: 15 | I77: TRUE | J77: 0.006 | K77: 0.1176 | L77: Battery | N77: 2526.0722 | O77: 200 | P77: 200 | Q77: 200 | R77: 1.072 | S77: 0.186757503 | T77: 0.06758461614 | U77: 0.1191612148 | V77: 301.0098 | W77: 132.1712 | X77: 0.18 | Y77: 0.006 | Z77: 52.05 | AA77: 5043.4 | AB77: 1.053 | AC77: 1.037659817 | AD77: FALSE | AE77: 370.1193 | AF77: 0.9972 | AG77: 17.0595 | AI77: 237.9481 | AJ77: 34.3453 | AK77: 32.5979 | AL77: 35.5196 | AM77: 33.3565 | AN77: 36.3463 | AO77: 25.7777 | AP77: 13.8803 | AQ77: 76.0572 | AR77: 82.8741
A78: C - Central BESS 8h 0.140.0670.5515Battery0.1176 | B78: 2024-2025 | C78: C - Central | D78: BESS 8h | E78: 0.14 | F78: 0.067 | G78: 0.55 | H78: 15 | I78: TRUE | J78: 0.006 | K78: 0.1176 | L78: Battery | N78: 2439.4693 | O78: 200 | P78: 200 | Q78: 200 | R78: 1.033 | S78: 0.186757503 | T78: 0.06758461614 | U78: 0.1191612148 | V78: 290.6901 | W78: 77.4111 | X78: 0.12 | Y78: 0.006 | Z78: 51.85 | AA78: 31541.6 | AB78: 1.22 | AC78: 1.005197404 | AD78: FALSE | AE78: 358.7254 | AF78: 1 | AG78: 16.1853 | AI78: 281.3143 | AJ78: 29.2012 | AK78: 31.8554 | AL78: 24.0726 | AM78: 32.5055 | AN78: 24.5639 | AO78: 30.4757 | AP78: 16.41 | AQ78: 60.9319 | AR78: 46.0452
A79: G - Hudson Valley (Rockland) BESS 8h 0.140.0670.5515Battery0.1176 | B79: 2024-2025 | C79: G - Hudson Valley (Rockland) | D79: BESS 8h | E79: 0.14 | F79: 0.067 | G79: 0.55 | H79: 15 | I79: TRUE | J79: 0.006 | K79: 0.1176 | L79: Battery | N79: 2502.7981 | O79: 200 | P79: 200 | Q79: 200 | R79: 1.058 | S79: 0.186757503 | T79: 0.06758461614 | U79: 0.1191612148 | V79: 298.2365 | W79: 81.2387 | X79: 0.15 | Y79: 0.006 | Z79: 51.85 | AA79: 15220 | AB79: 0.81 | AC79: 1.016222968 | AD79: FALSE | AE79: 366.7323 | AF79: 1 | AG79: 16.6458 | AI79: 285.4935 | AJ79: 34.7547 | AK79: 34.6791 | AL79: 32.966 | AM79: 35.3869 | AN79: 33.6388 | AO79: 30.9285 | AP79: 16.6538 | AQ79: 66.8209 | AR79: 63.5201
A80: G - Hudson Valley (Dutchess) BESS 8h 0.140.0670.5515Battery0.1176 | B80: 2024-2025 | C80: G - Hudson Valley (Dutchess) | D80: BESS 8h | E80: 0.14 | F80: 0.067 | G80: 0.55 | H80: 15 | I80: TRUE | J80: 0.006 | K80: 0.1176 | L80: Battery | N80: 2440.5255 | O80: 200 | P80: 200 | Q80: 200 | R80: 1.058 | S80: 0.186757503 | T80: 0.06758461614 | U80: 0.1191612148 | V80: 290.816 | W80: 84.7056 | X80: 0.15 | Y80: 0.006 | Z80: 51.85 | AA80: 15220 | AB80: 0.81 | AC80: 1.016222968 | AD80: FALSE | AE80: 358.8591 | AF80: 1 | AG80: 16.1931 | AI80: 274.1535 | AJ80: 33.3743 | AK80: 33.3016 | AL80: 31.6566 | AM80: 33.9813 | AN80: 32.3027 | AO80: 29.7 | AP80: 15.9923 | AQ80: 65.3863 | AR80: 62.1564
A81: Fossil 20 Year No NET EAS - Dual Fuel with SCR
A82: =C82&" "&D82&" "&E82&F82&G82&H82&L82&K82 -> F - Capital SCGT J Class 0.140.0670.5520Dual fuel with SCR0.0926 | B82: 2024-2025 | C82: F - Capital | D82: SCGT J Class | E82: 0.14 | F82: 0.067 | G82: 0.55 | H82: 20 | I82: FALSE | J82: 0.006 | K82: 0.0926 | L82: Dual fuel with SCR | N82: 1656.3476 | O82: 406.5 | P82: 431.7 | Q82: 400.3 | R82: 1.033 | S82: 0.165641337 | T82: 0.06758461614 | U82: 0.1163062297 | V82: 192.6435 | W82: 82.56 | X82: 0.12 | Y82: 0.006 | Z82: 8.0264 | AA82: 31541.6 | AB82: 1.22 | AC82: 1.010402603 | AD82: FALSE | AE82: 207.545 | AF82: 1 | AG82: 6.875 | AI82: 124.9851 | AJ82: 13.4428 | AK82: 14.6206 | AL82: 10.7053 | AM82: 15.2457 | AN82: 11.1629 | AO82: 13.3532 | AP82: 6.8333 | AQ82: 36.4175 | AR82: 26.6651
A83: J - New York City SCGT J Class 0.140.0670.5520Dual fuel with SCR0.0912 | B83: 2024-2025 | C83: J - New York City | D83: SCGT J Class | E83: 0.14 | F83: 0.067 | G83: 0.55 | H83: 20 | I83: TRUE | J83: 0.006 | K83: 0.0912 | L83: Dual fuel with SCR | N83: 1948.4653 | O83: 404.4 | P83: 435 | Q83: 404.1 | R83: 1.067 | S83: 0.165641337 | T83: 0.06506227477 | U83: 0.1211416129 | V83: 236.0402 | W83: 68.6151 | X83: 0.18 | Y83: 0.047664 | Z83: 27.8842 | AA83: 11167.9 | AB83: 0.804 | AC83: 1.045005054 | AD83: FALSE | AE83: 272.1035 | AF83: 1 | AG83: 8.1791 | AI83: 203.4884 | AJ83: 30.5615 | AK83: 29.3793 | AL83: 30.7474 | AM83: 30.6354 | AN83: 32.0619 | AO83: 22.0337 | AP83: 11.6148 | AQ83: 58.9288 | AR83: 61.6728
A84: K - Long Island SCGT J Class 0.140.0670.5520Dual fuel with SCR0.0926 | B84: 2024-2025 | C84: K - Long Island | D84: SCGT J Class | E84: 0.14 | F84: 0.067 | G84: 0.55 | H84: 20 | I84: FALSE | J84: 0.006 | K84: 0.0926 | L84: Dual fuel with SCR | N84: 1823.2862 | O84: 407.1 | P84: 438.1 | Q84: 404 | R84: 1.072 | S84: 0.165641337 | T84: 0.06758461614 | U84: 0.1163062297 | V84: 212.0595 | W84: 114.9287 | X84: 0.18 | Y84: 0.006 | Z84: 9.8824 | AA84: 5043.4 | AB84: 1.053 | AC84: 1.076072831 | AD84: FALSE | AE84: 229.9235 | AF84: 1 | AG84: 7.9815 | AI84: 114.9947 | AJ84: 25.8157 | AK84: 21.5333 | AL84: 43.6546 | AM84: 22.4539 | AN84: 45.521 | AO84: 12.4327 | AP84: 7.7432 | AQ84: 64.5813 | AR84: 130.9263
A85: =C85&" "&D85&" "&E85&F85&G85&H85&L85&K85 -> C - Central SCGT J Class 0.140.0670.5520Dual fuel with SCR0.0926 | B85: 2024-2025 | C85: C - Central | D85: SCGT J Class | E85: 0.14 | F85: 0.067 | G85: 0.55 | H85: 20 | I85: FALSE | J85: 0.006 | K85: 0.0926 | L85: Dual fuel with SCR | N85: 1677.3582 | O85: 394.5 | P85: 419.5 | Q85: 389 | R85: 1.033 | S85: 0.165641337 | T85: 0.06758461614 | U85: 0.1163062297 | V85: 195.0872 | W85: 62.3856 | X85: 0.12 | Y85: 0.006 | Z85: 7.9768 | AA85: 31541.6 | AB85: 1.22 | AC85: 1.01010895 | AD85: FALSE | AE85: 209.9976 | AF85: 1 | AG85: 6.9336 | AI85: 147.6121 | AJ85: 15.8386 | AK85: 17.2413 | AL85: 12.591 | AM85: 17.9784 | AN85: 13.1294 | AO85: 15.7889 | AP85: 8.0678 | AQ85: 36.7921 | AR85: 26.8686
A86: =C86&" "&D86&" "&E86&F86&G86&H86&L86&K86 -> G - Hudson Valley (Rockland) SCGT J Class 0.140.0670.5520Dual fuel with SCR0.0926 | B86: 2024-2025 | C86: G - Hudson Valley (Rockland) | D86: SCGT J Class | E86: 0.14 | F86: 0.067 | G86: 0.55 | H86: 20 | I86: FALSE | J86: 0.006 | K86: 0.0926 | L86: Dual fuel with SCR | N86: 1753.9676 | O86: 400.9 | P86: 428.5 | Q86: 397.4 | R86: 1.058 | S86: 0.165641337 | T86: 0.06758461614 | U86: 0.1163062297 | V86: 203.9974 | W86: 58.1337 | X86: 0.15 | Y86: 0.006 | Z86: 9.5445 | AA86: 15220 | AB86: 0.81 | AC86: 1.032235038 | AD86: FALSE | AE86: 221.0085 | AF86: 1 | AG86: 7.4666 | AI86: 162.8747 | AJ86: 23.171 | AK86: 22.3322 | AL86: 23.0899 | AM86: 23.2869 | AN86: 24.077 | AO86: 17.533 | AP86: 9.1998 | AQ86: 45.4546 | AR86: 46.9968
A87: G - Hudson Valley (Dutchess) SCGT J Class 0.140.0670.5520Dual fuel with SCR0.0926 | B87: 2024-2025 | C87: G - Hudson Valley (Dutchess) | D87: SCGT J Class | E87: 0.14 | F87: 0.067 | G87: 0.55 | H87: 20 | I87: FALSE | J87: 0.006 | K87: 0.0926 | L87: Dual fuel with SCR | N87: 1658.6194 | O87: 400.9 | P87: 428.5 | Q87: 397.4 | R87: 1.058 | S87: 0.165641337 | T87: 0.06758461614 | U87: 0.1163062297 | V87: 192.9078 | W87: 56.599 | X87: 0.15 | Y87: 0.006 | Z87: 8.6386 | AA87: 15220 | AB87: 0.81 | AC87: 1.032235038 | AD87: FALSE | AE87: 208.5166 | AF87: 1 | AG87: 6.9702 | AI87: 151.9176 | AJ87: 21.6122 | AK87: 20.8298 | AL87: 21.5366 | AM87: 21.7203 | AN87: 22.4573 | AO87: 16.3535 | AP87: 8.5809 | AQ87: 42.8854 | AR87: 44.3404
A88: Fossil 20 Year No NET EAS - Gas Only with SCR
A89: =C89&" "&D89&" "&E89&F89&G89&H89&L89&K89 -> F - Capital SCGT J Class 0.140.0670.5520Gas only with SCR0.0926 | B89: 2024-2025 | C89: F - Capital | D89: SCGT J Class | E89: 0.14 | F89: 0.067 | G89: 0.55 | H89: 20 | I89: FALSE | J89: 0.006 | K89: 0.0926 | L89: Gas only with SCR | N89: 1582.9253 | O89: 406.5 | P89: 431.7 | Q89: 400.3 | R89: 1.033 | S89: 0.165641337 | T89: 0.06758461614 | U89: 0.1163062297 | V89: 184.1041 | W89: 82.037 | X89: 0.12 | Y89: 0.006 | Z89: 8.0264 | AA89: 31541.6 | AB89: 1.22 | AC89: 1.010402603 | AD89: FALSE | AE89: 198.6024 | AF89: 1 | AG89: 6.4718 | AI89: 116.5654 | AJ89: 12.5372 | AK89: 13.6357 | AL89: 9.9841 | AM89: 14.2186 | AN89: 10.4109 | AO89: 12.4536 | AP89: 6.373 | AQ89: 34.8484 | AR89: 25.5161
A90: C - Central SCGT J Class 0.140.0670.5520Gas only with SCR0.0926 | B90: 2024-2025 | C90: C - Central | D90: SCGT J Class | E90: 0.14 | F90: 0.067 | G90: 0.55 | H90: 20 | I90: FALSE | J90: 0.006 | K90: 0.0926 | L90: Gas only with SCR | N90: 1601.8031 | O90: 394.5 | P90: 419.5 | Q90: 389 | R90: 1.033 | S90: 0.165641337 | T90: 0.06758461614 | U90: 0.1163062297 | V90: 186.2997 | W90: 62.3856 | X90: 0.12 | Y90: 0.006 | Z90: 7.9768 | AA90: 31541.6 | AB90: 1.22 | AC90: 1.01010895 | AD90: FALSE | AE90: 200.7952 | AF90: 1 | AG90: 6.5187 | AI90: 138.4097 | AJ90: 14.8512 | AK90: 16.1665 | AL90: 11.8061 | AM90: 16.8576 | AN90: 12.3108 | AO90: 14.8046 | AP90: 7.5649 | AQ90: 35.1798 | AR90: 25.6912
A91: G - Hudson Valley (Rockland) SCGT J Class 0.140.0670.5520Gas only with SCR0.0926 | B91: 2024-2025 | C91: G - Hudson Valley (Rockland) | D91: SCGT J Class | E91: 0.14 | F91: 0.067 | G91: 0.55 | H91: 20 | I91: FALSE | J91: 0.006 | K91: 0.0926 | L91: Gas only with SCR | N91: 1680.0095 | O91: 400.9 | P91: 428.5 | Q91: 397.4 | R91: 1.058 | S91: 0.165641337 | T91: 0.06758461614 | U91: 0.1163062297 | V91: 195.3956 | W91: 51.3095 | X91: 0.15 | Y91: 0.006 | Z91: 9.5445 | AA91: 15220 | AB91: 0.81 | AC91: 1.032235038 | AD91: FALSE | AE91: 212.0005 | AF91: 1 | AG91: 7.0605 | AI91: 160.6911 | AJ91: 22.8603 | AK91: 22.0328 | AL91: 22.7803 | AM91: 22.9747 | AN91: 23.7542 | AO91: 17.2979 | AP91: 9.0764 | AQ91: 43.6019 | AR91: 45.0813
A92: G - Hudson Valley (Dutchess) SCGT J Class 0.140.0670.5520Gas only with SCR0.0926 | B92: 2024-2025 | C92: G - Hudson Valley (Dutchess) | D92: SCGT J Class | E92: 0.14 | F92: 0.067 | G92: 0.55 | H92: 20 | I92: FALSE | J92: 0.006 | K92: 0.0926 | L92: Gas only with SCR | N92: 1584.6613 | O92: 400.9 | P92: 428.5 | Q92: 397.4 | R92: 1.058 | S92: 0.165641337 | T92: 0.06758461614 | U92: 0.1163062297 | V92: 184.306 | W92: 50.2394 | X92: 0.15 | Y92: 0.006 | Z92: 8.6386 | AA92: 15220 | AB92: 0.81 | AC92: 1.032235038 | AD92: FALSE | AE92: 199.5087 | AF92: 1 | AG92: 6.5641 | AI92: 149.2693 | AJ92: 21.2354 | AK92: 20.4667 | AL92: 21.1611 | AM92: 21.3417 | AN92: 22.0658 | AO92: 16.0684 | AP92: 8.4313 | AQ92: 41.0327 | AR92: 42.4249
A93: Fossil 20 Year NO NET EAS - Dual Fuel without SCR
A94: =C94&" "&D94&" "&E94&F94&G94&H94&L94&K94 -> F - Capital SCGT 7HA.02 0.140.0670.5520Dual fuel without SCR0.0926 | B94: 2024-2025 | C94: F - Capital | D94: SCGT 7HA.02 | E94: 0.14 | F94: 0.067 | G94: 0.55 | H94: 20 | I94: FALSE | J94: 0.006 | K94: 0.0926 | L94: Dual fuel without SCR | N94: 1737.6977 | O94: 335.79449 | P94: 363.72214 | Q94: 330.68231 | R94: 1.033 | S94: 0.165641337 | T94: 0.06758461614 | U94: 0.1163062297 | V94: 202.1051 | W94: 62.4108 | X94: 0.12 | Y94: 0.006 | Z94: 9.6255 | AA94: 31541.6 | AB94: 1.22 | AC94: 1.008593447 | AD94: FALSE | AE94: 218.661 | AF94: 1 | AG94: 6.9304 | AI94: 156.2501 | AJ94: 16.3446 | AK94: 17.9766 | AL94: 12.823 | AM94: 18.7452 | AN94: 13.3712 | AO94: 16.6893 | AP94: 8.3784 | AQ94: 37.7356 | AR94: 26.9173
A95: C - Central SCGT 7HA.02 0.140.0670.5520Dual fuel without SCR0.0926 | B95: 2024-2025 | C95: C - Central | D95: SCGT 7HA.02 | E95: 0.14 | F95: 0.067 | G95: 0.55 | H95: 20 | I95: FALSE | J95: 0.006 | K95: 0.0926 | L95: Dual fuel without SCR | N95: 1760.4954 | O95: 325.6648 | P95: 352.1724 | Q95: 321.02597 | R95: 1.033 | S95: 0.165641337 | T95: 0.06758461614 | U95: 0.1163062297 | V95: 204.7566 | W95: 56.1585 | X95: 0.12 | Y95: 0.006 | Z95: 9.6035 | AA95: 31541.6 | AB95: 1.22 | AC95: 1.008342508 | AD95: FALSE | AE95: 221.3455 | AF95: 1 | AG95: 6.9854 | AI95: 165.1871 | AJ95: 17.2629 | AK95: 18.9789 | AL95: 13.5398 | AM95: 19.7903 | AN95: 14.1186 | AO95: 17.6594 | AP95: 8.875 | AQ95: 38.1466 | AR95: 27.2143
A96: =C96&" "&D96&" "&E96&F96&G96&H96&L96&K96 -> G - Hudson Valley (Dutchess) SCGT 7HA.02 0.140.0670.5520Dual fuel without SCR0.0926 | B96: 2024-2025 | C96: G - Hudson Valley (Dutchess) | D96: SCGT 7HA.02 | E96: 0.14 | F96: 0.067 | G96: 0.55 | H96: 20 | I96: FALSE | J96: 0.006 | K96: 0.0926 | L96: Dual fuel without SCR | N96: 1734.0558 | O96: 331.25033 | P96: 331.25033 | Q96: 328.12622 | R96: 1.058 | S96: 0.165641337 | T96: 0.06758461614 | U96: 0.1163062297 | V96: 201.6815 | W96: 54.7771 | X96: 0.15 | Y96: 0.006 | Z96: 9.7005 | AA96: 15220 | AB96: 0.81 | AC96: 1.026615907 | AD96: FALSE | AE96: 218.3934 | AF96: 1 | AG96: 7.0114 | AI96: 163.6163 | AJ96: 22.3823 | AK96: 21.3894 | AL96: 21.7738 | AM96: 22.3038 | AN96: 22.7047 | AO96: 17.5941 | AP96: 9.4911 | AQ96: 42.8255 | AR96: 43.5951
A97: Fossil 20 Year NO NET EAS - Gas Only without SCR
A98: =C98&" "&D98&" "&E98&F98&G98&H98&L98&K98 -> F - Capital SCGT 7HA.02 0.140.0670.5520Gas only without SCR0.0926 | B98: 2024-2025 | C98: F - Capital | D98: SCGT 7HA.02 | E98: 0.14 | F98: 0.067 | G98: 0.55 | H98: 20 | I98: FALSE | J98: 0.006 | K98: 0.0926 | L98: Gas only without SCR | N98: 1648.818 | O98: 335.79449 | P98: 363.72214 | Q98: 330.68231 | R98: 1.033 | S98: 0.165641337 | T98: 0.06758461614 | U98: 0.1163062297 | V98: 191.7678 | W98: 54.0014 | X98: 0.12 | Y98: 0.006 | Z98: 9.6255 | AA98: 31541.6 | AB98: 1.22 | AC98: 1.008593447 | AD98: FALSE | AE98: 207.8356 | AF98: 1 | AG98: 6.4423 | AI98: 153.8342 | AJ98: 16.0919 | AK98: 17.6987 | AL98: 12.6247 | AM98: 18.4554 | AN98: 13.1645 | AO98: 16.4313 | AP98: 8.2488 | AQ98: 35.8674 | AR98: 25.5847
A99: C - Central SCGT 7HA.02 0.140.0670.5520Gas only without SCR0.0926 | B99: 2024-2025 | C99: C - Central | D99: SCGT 7HA.02 | E99: 0.14 | F99: 0.067 | G99: 0.55 | H99: 20 | I99: FALSE | J99: 0.006 | K99: 0.0926 | L99: Gas only without SCR | N99: 1668.9423 | O99: 325.6648 | P99: 352.1724 | Q99: 321.02597 | R99: 1.033 | S99: 0.165641337 | T99: 0.06758461614 | U99: 0.1163062297 | V99: 194.1084 | W99: 48.1095 | X99: 0.12 | Y99: 0.006 | Z99: 9.6035 | AA99: 31541.6 | AB99: 1.22 | AC99: 1.008342508 | AD99: FALSE | AE99: 210.1946 | AF99: 1 | AG99: 6.4827 | AI99: 162.0851 | AJ99: 16.9387 | AK99: 18.6225 | AL99: 13.2855 | AM99: 19.4186 | AN99: 13.8535 | AO99: 17.3278 | AP99: 8.7084 | AQ99: 36.2249 | AR99: 25.8433
A100: =C100&" "&D100&" "&E100&F100&G100&H100&L100&K100 -> G - Hudson Valley (Dutchess) SCGT 7HA.02 0.140.0670.5520Gas only without SCR0.0926 | B100: 2024-2025 | C100: G - Hudson Valley (Dutchess) | D100: SCGT 7HA.02 | E100: 0.14 | F100: 0.067 | G100: 0.55 | H100: 20 | I100: FALSE | J100: 0.006 | K100: 0.0926 | L100: Gas only without SCR | N100: 1644.4837 | O100: 331.25033 | P100: 331.25033 | Q100: 328.12622 | R100: 1.058 | S100: 0.165641337 | T100: 0.06758461614 | U100: 0.1163062297 | V100: 191.2637 | W100: 38.7497 | X100: 0.15 | Y100: 0.006 | Z100: 9.7005 | AA100: 15220 | AB100: 0.81 | AC100: 1.026615907 | AD100: FALSE | AE100: 207.4837 | AF100: 1 | AG100: 6.5196 | AI100: 168.734 | AJ100: 23.0823 | AK100: 22.0584 | AL100: 22.4548 | AM100: 23.0015 | AN100: 23.4148 | AO100: 18.1444 | AP100: 9.7879 | AQ100: 40.6862 | AR100: 41.4174

Sheet Data Updated Annually-->

Sheet Net EAS
K1: Project: | L1: NYISO ICAP Demand Curve
K2: Date: | L2: 2024-06-01
K3: Worksheet: | L3: Net EAS Revenues
K5: Instructions: | L5: Current data reflect the most recent net EAS results from the Net EAS Revenues model.
L6: To update net EAS results, select between standard results and 5-minute results using the toggle below.
K9: Annual Net EAS Revenue Estimates
N12: Net EAS Revenues ($/kW-Year)
B13: Unit Type | C13: Lookups | H13: Gas Matrix | I13: zone | K13: Zone | L13: Technology | M13: Capability Year | N13: Dual fuel with SCR | O13: Gas only with SCR | P13: Dual fuel without SCR | Q13: Gas only without SCR | R13: Battery
B14: j25 | C14: =$B14&"_"&$I14&"_"&"Yes_No_"&$H14 -> j25_C_Yes_No_1 | D14: =$B14&"_"&$I14&"_"&"Yes_Yes_"&$H14 -> j25_C_Yes_Yes_1 | E14: =$B14&"_"&$I14&"_"&"No_No_"&$H14 -> j25_C_No_No_1 | F14: =$B14&"_"&$I14&"_"&"No_Yes_"&$H14 -> j25_C_No_Yes_1 | G14: =$B14&"_"&$I14 -> j25_C | H14: 1 | I14: C | J14: =K14&L14&M14 -> C - CentralSCGT J Class2024-2025 | K14: C - Central | L14: SCGT J Class | M14: 2024-2025 | N14: 64.1856064 | O14: 64.1856064 | P14: - | Q14: - | R14: -
B15: j25 | C15: j25_F_Yes_No_1 | D15: j25_F_Yes_Yes_1 | E15: j25_F_No_No_1 | F15: j25_F_No_Yes_1 | G15: j25_F | H15: 1 | I15: F | J15: F - CapitalSCGT J Class2024-2025 | K15: F - Capital | L15: SCGT J Class | M15: 2024-2025 | N15: 85.74410975 | O15: 85.18522191 | P15: - | Q15: - | R15: -
B16: j25 | C16: j25_G1_Yes_No_1 | D16: j25_G1_Yes_Yes_1 | E16: j25_G1_No_No_1 | F16: j25_G1_No_Yes_1 | G16: j25_G1 | H16: 1 | I16: G1 | J16: G - Hudson Valley (Dutchess)SCGT J Class2024-2025 | K16: G - Hudson Valley (Dutchess) | L16: SCGT J Class | M16: 2024-2025 | N16: 58.00204142 | O16: 51.20614751 | P16: - | Q16: - | R16: -
B17: j25 | C17: j25_G2_Yes_No_1 | D17: j25_G2_Yes_Yes_1 | E17: j25_G2_No_No_1 | F17: j25_G2_No_Yes_1 | G17: j25_G2 | H17: 1 | I17: G2 | J17: =K17&L17&M17 -> G - Hudson Valley (Rockland)SCGT J Class2024-2025 | K17: G - Hudson Valley (Rockland) | L17: SCGT J Class | M17: 2024-2025 | N17: 59.6420874 | O17: 52.34965175 | P17: - | Q17: - | R17: -
B18: j25 | C18: j25_J_Yes_No_1 | D18: j25_J_Yes_Yes_1 | E18: j25_J_No_No_1 | F18: j25_J_No_Yes_1 | G18: j25_J | H18: 1 | I18: J | J18: =K18&L18&M18 -> J - New York CitySCGT J Class2024-2025 | K18: J - New York City | L18: SCGT J Class | M18: 2024-2025 | N18: 71.12087605 | O18: - | P18: - | Q18: - | R18: -
B19: j25 | C19: j25_K_Yes_No_1 | D19: j25_K_Yes_Yes_1 | E19: j25_K_No_No_1 | F19: j25_K_No_Yes_1 | G19: j25_K | H19: 1 | I19: K | J19: K - Long IslandSCGT J Class2024-2025 | K19: K - Long Island | L19: SCGT J Class | M19: 2024-2025 | N19: 120.333593 | O19: - | P19: - | Q19: - | R19: -
B20: 7ha02 | C20: 7ha02_K_Yes_No_1 | D20: 7ha02_K_Yes_Yes_1 | E20: 7ha02_K_No_No_1 | F20: 7ha02_K_No_Yes_1 | G20: 7ha02_K | H20: 1 | I20: K | J20: =K20&L20&M20 -> C - CentralSCGT 7HA.022024-2025 | K20: C - Central | L20: SCGT 7HA.02 | M20: 2024-2025 | N20: - | O20: - | P20: 48.93007234 | Q20: 48.93007234 | R20: -
B21: 7ha02 | C21: 7ha02_K_Yes_No_1 | D21: 7ha02_K_Yes_Yes_1 | E21: 7ha02_K_No_No_1 | F21: 7ha02_K_No_Yes_1 | G21: 7ha02_K | H21: 1 | I21: K | J21: F - CapitalSCGT 7HA.022024-2025 | K21: F - Capital | L21: SCGT 7HA.02 | M21: 2024-2025 | N21: - | O21: - | P21: 54.65378238 | Q21: 55.22624394 | R21: -
B22: 7ha02 | C22: 7ha02_K_Yes_No_1 | D22: 7ha02_K_Yes_Yes_1 | E22: 7ha02_K_No_No_1 | F22: 7ha02_K_No_Yes_1 | G22: 7ha02_K | H22: 1 | I22: K | J22: G - Hudson Valley (Dutchess)SCGT 7HA.022024-2025 | K22: G - Hudson Valley (Dutchess) | L22: SCGT 7HA.02 | M22: 2024-2025 | N22: - | O22: - | P22: 47.66547634 | Q22: 38.92823434 | R22: -
B23: 7ha02 | C23: 7ha02_K_Yes_No_1 | D23: 7ha02_K_Yes_Yes_1 | E23: 7ha02_K_No_No_1 | F23: 7ha02_K_No_Yes_1 | G23: 7ha02_K | H23: 1 | I23: K | J23: G - Hudson Valley (Rockland)SCGT 7HA.022024-2025 | K23: G - Hudson Valley (Rockland) | L23: SCGT 7HA.02 | M23: 2024-2025 | N23: - | O23: - | P23: - | Q23: - | R23: -
B24: 7ha02 | C24: 7ha02_K_Yes_No_1 | D24: 7ha02_K_Yes_Yes_1 | E24: 7ha02_K_No_No_1 | F24: 7ha02_K_No_Yes_1 | G24: 7ha02_K | H24: 1 | I24: K | J24: J - New York CitySCGT 7HA.022024-2025 | K24: J - New York City | L24: SCGT 7HA.02 | M24: 2024-2025 | N24: - | O24: - | P24: - | Q24: - | R24: -
B25: 7ha02 | C25: 7ha02_K_Yes_No_1 | D25: 7ha02_K_Yes_Yes_1 | E25: 7ha02_K_No_No_1 | F25: 7ha02_K_No_Yes_1 | G25: 7ha02_K | H25: 1 | I25: K | J25: K - Long IslandSCGT 7HA.022024-2025 | K25: K - Long Island | L25: SCGT 7HA.02 | M25: 2024-2025 | N25: - | O25: - | P25: - | Q25: - | R25: -
B26: bat2 | C26: bat2_C_Yes_No_1 | D26: bat2_C_Yes_Yes_1 | E26: bat2_C_No_No_1 | F26: bat2_C_No_Yes_1 | G26: bat2_C | H26: 1 | I26: C | J26: C - CentralBESS 2h2024-2025 | K26: C - Central | L26: BESS 2h | M26: 2024-2025 | N26: - | O26: - | P26: - | Q26: - | R26: 53.89733207
B27: bat2 | C27: bat2_F_Yes_No_1 | D27: bat2_F_Yes_Yes_1 | E27: bat2_F_No_No_1 | F27: bat2_F_No_Yes_1 | G27: bat2_F | H27: 1 | I27: F | J27: F - CapitalBESS 2h2024-2025 | K27: F - Capital | L27: BESS 2h | M27: 2024-2025 | N27: - | O27: - | P27: - | Q27: - | R27: 69.63928626
B28: bat2 | C28: bat2_G1_Yes_No_1 | D28: bat2_G1_Yes_Yes_1 | E28: bat2_G1_No_No_1 | F28: bat2_G1_No_Yes_1 | G28: bat2_G1 | H28: 1 | I28: G1 | J28: G - Hudson Valley (Dutchess)BESS 2h2024-2025 | K28: G - Hudson Valley (Dutchess) | L28: BESS 2h | M28: 2024-2025 | N28: - | O28: - | P28: - | Q28: - | R28: 61.95471922
B29: bat2 | C29: bat2_G2_Yes_No_1 | D29: bat2_G2_Yes_Yes_1 | E29: bat2_G2_No_No_1 | F29: bat2_G2_No_Yes_1 | G29: bat2_G2 | H29: 1 | I29: G2 | J29: G - Hudson Valley (Rockland)BESS 2h2024-2025 | K29: G - Hudson Valley (Rockland) | L29: BESS 2h | M29: 2024-2025 | N29: - | O29: - | P29: - | Q29: - | R29: 60.98553555
B30: bat2 | C30: bat2_J_Yes_No_1 | D30: bat2_J_Yes_Yes_1 | E30: bat2_J_No_No_1 | F30: bat2_J_No_Yes_1 | G30: bat2_J | H30: 1 | I30: J | J30: J - New York CityBESS 2h2024-2025 | K30: J - New York City | L30: BESS 2h | M30: 2024-2025 | N30: - | O30: - | P30: - | Q30: - | R30: 65.26233691
B31: bat2 | C31: bat2_K_Yes_No_1 | D31: bat2_K_Yes_Yes_1 | E31: bat2_K_No_No_1 | F31: bat2_K_No_Yes_1 | G31: bat2_K | H31: 1 | I31: K | J31: K - Long IslandBESS 2h2024-2025 | K31: K - Long Island | L31: BESS 2h | M31: 2024-2025 | N31: - | O31: - | P31: - | Q31: - | R31: 88.02968452
B32: bat4 | C32: bat4_C_Yes_No_1 | D32: bat4_C_Yes_Yes_1 | E32: bat4_C_No_No_1 | F32: bat4_C_No_Yes_1 | G32: bat4_C | H32: 1 | I32: C | J32: =K32&L32&M32 -> C - CentralBESS 4h2024-2025 | K32: C - Central | L32: BESS 4h | M32: 2024-2025 | N32: - | O32: - | P32: - | Q32: - | R32: 63.13821127
B33: bat4 | C33: bat4_F_Yes_No_1 | D33: bat4_F_Yes_Yes_1 | E33: bat4_F_No_No_1 | F33: bat4_F_No_Yes_1 | G33: bat4_F | H33: 1 | I33: F | J33: F - CapitalBESS 4h2024-2025 | K33: F - Capital | L33: BESS 4h | M33: 2024-2025 | N33: - | O33: - | P33: - | Q33: - | R33: 81.56528253
B34: bat4 | C34: bat4_G1_Yes_No_1 | D34: bat4_G1_Yes_Yes_1 | E34: bat4_G1_No_No_1 | F34: bat4_G1_No_Yes_1 | G34: bat4_G1 | H34: 1 | I34: G1 | J34: G - Hudson Valley (Dutchess)BESS 4h2024-2025 | K34: G - Hudson Valley (Dutchess) | L34: BESS 4h | M34: 2024-2025 | N34: - | O34: - | P34: - | Q34: - | R34: 69.68742799
B35: bat4 | C35: bat4_G2_Yes_No_1 | D35: bat4_G2_Yes_Yes_1 | E35: bat4_G2_No_No_1 | F35: bat4_G2_No_Yes_1 | G35: bat4_G2 | H35: 1 | I35: G2 | J35: =K35&L35&M35 -> G - Hudson Valley (Rockland)BESS 4h2024-2025 | K35: G - Hudson Valley (Rockland) | L35: BESS 4h | M35: 2024-2025 | N35: - | O35: - | P35: - | Q35: - | R35: 68.12462865
B36: bat4 | C36: bat4_J_Yes_No_1 | D36: bat4_J_Yes_Yes_1 | E36: bat4_J_No_No_1 | F36: bat4_J_No_Yes_1 | G36: bat4_J | H36: 1 | I36: J | J36: =K36&L36&M36 -> J - New York CityBESS 4h2024-2025 | K36: J - New York City | L36: BESS 4h | M36: 2024-2025 | N36: - | O36: - | P36: - | Q36: - | R36: 72.29412133
B37: bat4 | C37: bat4_K_Yes_No_1 | D37: bat4_K_Yes_Yes_1 | E37: bat4_K_No_No_1 | F37: bat4_K_No_Yes_1 | G37: bat4_K | H37: 1 | I37: K | J37: K - Long IslandBESS 4h2024-2025 | K37: K - Long Island | L37: BESS 4h | M37: 2024-2025 | N37: - | O37: - | P37: - | Q37: - | R37: 106.0038982
B38: bat6 | C38: bat6_C_Yes_No_1 | D38: bat6_C_Yes_Yes_1 | E38: bat6_C_No_No_1 | F38: bat6_C_No_Yes_1 | G38: bat6_C | H38: 1 | I38: =LEFT(K38,1) -> C | J38: =K38&L38&M38 -> C - CentralBESS 6h2024-2025 | K38: C - Central | L38: BESS 6h | M38: 2024-2025 | N38: - | O38: - | P38: - | Q38: - | R38: 66.85690786
B39: bat6 | C39: bat6_F_Yes_No_1 | D39: bat6_F_Yes_Yes_1 | E39: bat6_F_No_No_1 | F39: bat6_F_No_Yes_1 | G39: bat6_F | H39: 1 | I39: =LEFT(K39,1) -> F | J39: F - CapitalBESS 6h2024-2025 | K39: F - Capital | L39: BESS 6h | M39: 2024-2025 | N39: - | O39: - | P39: - | Q39: - | R39: 86.45189119
B40: bat6 | C40: bat6_G1_Yes_No_1 | D40: bat6_G1_Yes_Yes_1 | E40: bat6_G1_No_No_1 | F40: bat6_G1_No_Yes_1 | G40: bat6_G1 | H40: 1 | I40: G1 | J40: G - Hudson Valley (Dutchess)BESS 6h2024-2025 | K40: G - Hudson Valley (Dutchess) | L40: BESS 6h | M40: 2024-2025 | N40: - | O40: - | P40: - | Q40: - | R40: 73.63815338
B41: bat6 | C41: bat6_G2_Yes_No_1 | D41: bat6_G2_Yes_Yes_1 | E41: bat6_G2_No_No_1 | F41: bat6_G2_No_Yes_1 | G41: bat6_G2 | H41: 1 | I41: G2 | J41: =K41&L41&M41 -> G - Hudson Valley (Rockland)BESS 6h2024-2025 | K41: G - Hudson Valley (Rockland) | L41: BESS 6h | M41: 2024-2025 | N41: - | O41: - | P41: - | Q41: - | R41: 70.93828133
B42: bat6 | C42: bat6_J_Yes_No_1 | D42: bat6_J_Yes_Yes_1 | E42: bat6_J_No_No_1 | F42: bat6_J_No_Yes_1 | G42: bat6_J | H42: 1 | I42: =LEFT(K42,1) -> J | J42: =K42&L42&M42 -> J - New York CityBESS 6h2024-2025 | K42: J - New York City | L42: BESS 6h | M42: 2024-2025 | N42: - | O42: - | P42: - | Q42: - | R42: 74.88957812
B43: bat6 | C43: bat6_K_Yes_No_1 | D43: bat6_K_Yes_Yes_1 | E43: bat6_K_No_No_1 | F43: bat6_K_No_Yes_1 | G43: bat6_K | H43: 1 | I43: =LEFT(K43,1) -> K | J43: K - Long IslandBESS 6h2024-2025 | K43: K - Long Island | L43: BESS 6h | M43: 2024-2025 | N43: - | O43: - | P43: - | Q43: - | R43: 115.2003022
B44: bat8 | C44: bat8_C_Yes_No_1 | D44: bat8_C_Yes_Yes_1 | E44: bat8_C_No_No_1 | F44: bat8_C_No_Yes_1 | G44: bat8_C | H44: 1 | I44: =LEFT(K44,1) -> C | J44: C - CentralBESS 8h2024-2025 | K44: C - Central | L44: BESS 8h | M44: 2024-2025 | N44: - | O44: - | P44: - | Q44: - | R44: 68.38573138
B45: bat8 | C45: bat8_F_Yes_No_1 | D45: bat8_F_Yes_Yes_1 | E45: bat8_F_No_No_1 | F45: bat8_F_No_Yes_1 | G45: bat8_F | H45: 1 | I45: =LEFT(K45,1) -> F | J45: F - CapitalBESS 8h2024-2025 | K45: F - Capital | L45: BESS 8h | M45: 2024-2025 | N45: - | O45: - | P45: - | Q45: - | R45: 86.53483955
B46: bat8 | C46: bat8_G1_Yes_No_1 | D46: bat8_G1_Yes_Yes_1 | E46: bat8_G1_No_No_1 | F46: bat8_G1_No_Yes_1 | G46: bat8_G1 | H46: 1 | I46: G1 | J46: G - Hudson Valley (Dutchess)BESS 8h2024-2025 | K46: G - Hudson Valley (Dutchess) | L46: BESS 8h | M46: 2024-2025 | N46: - | O46: - | P46: - | Q46: - | R46: 75.06342647
B47: bat8 | C47: bat8_G2_Yes_No_1 | D47: bat8_G2_Yes_Yes_1 | E47: bat8_G2_No_No_1 | F47: bat8_G2_No_Yes_1 | G47: bat8_G2 | H47: 1 | I47: G2 | J47: =K47&L47&M47 -> G - Hudson Valley (Rockland)BESS 8h2024-2025 | K47: G - Hudson Valley (Rockland) | L47: BESS 8h | M47: 2024-2025 | N47: - | O47: - | P47: - | Q47: - | R47: 71.8897089
B48: bat8 | C48: bat8_J_Yes_No_1 | D48: bat8_J_Yes_Yes_1 | E48: bat8_J_No_No_1 | F48: bat8_J_No_Yes_1 | G48: bat8_J | H48: 1 | I48: =LEFT(K48,1) -> J | J48: =K48&L48&M48 -> J - New York CityBESS 8h2024-2025 | K48: J - New York City | L48: BESS 8h | M48: 2024-2025 | N48: - | O48: - | P48: - | Q48: - | R48: 75.70686325
B49: bat8 | C49: bat8_K_Yes_No_1 | D49: bat8_K_Yes_Yes_1 | E49: bat8_K_No_No_1 | F49: bat8_K_No_Yes_1 | G49: bat8_K | H49: 1 | I49: =LEFT(K49,1) -> K | J49: K - Long IslandBESS 8h2024-2025 | K49: K - Long Island | L49: BESS 8h | M49: 2024-2025 | N49: - | O49: - | P49: - | Q49: - | R49: 118.5156475

Sheet Escalation Factor
C1: Project: | D1: NYISO ICAP Demand Curve
C2: Date: | D2: 2024-06-01
C3: Worksheet: | D3: Escalation Factor
C5: Instructions: | D5: To update the escalation factor for each annual update, access updated data through the source links provided.
D6: If the source is the BLS, ensure that the Series ID provided on this worksheet matches the Series ID of the source of the index.
D7: If the source is the BEA (for the GDP Deflator), ensure that the table and line number match the information provided in this worksheet.
D8: Enter all currently available data from the index in the yellow cells.
C11: Calculation of Escalation Factor
C14: Escalation Factor for Currently Selected Zone, Technology, and Capability Year
C15: Zone: | D15: =Region -> C - Central
C16: Technology: | D16: =Unit -> SCGT J Class
C17: Capability Year: | D17: =Capability_Year -> 2024-2025 | I17: Linked to model. Values will update based on selected capability year.
A18: Base year: | E18: Construction Labor Cost | F18: Materials Cost | G18: Gas and Steam Turbine or Battery Cost | H18: GDP Deflator
A19: =IF(Capability_Year="2021-2022",2018,2020) -> 2020 | C19: Base Year | D19: [A] | E19: =INDEX($C$119:$S$134, MATCH(A19-1, $C$119:$C$134, 0), MATCH("Construction Labor Cost", $C$119:$S$119, 0)) -> 107893 | F19: =INDEX($C$88:$S$102, MATCH(A19, $C$88:$C$102, 0), MATCH("Materials Index", $C$88:$S$88, 0)) -> 253.3333333 | G19: =IF(LEFT(Unit,4)="BESS",INDEX($C$150:$S$164, MATCH($A$19, $C$150:$C$164, 0), MATCH("Battery Index",$C$150:$S$150, 0)),INDEX($C$179:$S$193, MATCH($A$19, $C$179:$C$193, 0), MATCH("Turbine Index", $C$179:$S$179, 0))) -> 238.7333333 | H19: =INDEX($C$209:$S$223, MATCH(A19, $C$209:$C$223, 0), MATCH("GDP Deflator", $C$209:$S$209, 0)) -> 106.275
A20: Lookup year: | C20: Escalation Year | D20: [B] | E20: =INDEX($C$119:$S$134, MATCH(A21-1, $C$119:$C$134, 0), MATCH("Construction Labor Cost", $C$119:$S$119, 0)) -> 112634 | F20: =INDEX($C$88:$S$102, MATCH(A21, $C$88:$C$102, 0), MATCH("Materials Index", $C$88:$S$88, 0)) -> 350.7103333 | G20: =IF(LEFT(Unit,4)="BESS",INDEX($C$150:$S$164, MATCH($A$21, $C$150:$C$164, 0), MATCH("Battery Index",$C$150:$S$150, 0)),INDEX($C$179:$S$193, MATCH($A$21, $C$179:$C$193, 0), MATCH("Turbine Index", $C$179:$S$179, 0))) -> 263.314 | H20: =INDEX($C$209:$S$223, MATCH(A21, $C$209:$C$223, 0), MATCH("GDP Deflator", $C$209:$S$209, 0)) -> 123.271
A21: =VALUE(LEFT(Capability_Year,4))-1 -> 2023 | C21: Growth Rate | D21: [B]/[A]-1 | E21: =IF(Capability_Year="2021-2022",((E20/E19)^(5/8))-1,(E20/E19)-1) -> 0.04394168296 | F21: =F20/F19-1 -> 0.3843828947 | G21: 0.1029628595 | H21: 0.1599247236 | I21: Note: In the 2021-2022 capability year the Construction Labor Cost growth rate is calculated as ([B]/[A]^5/8)-1 to account for 5 quarters of growth.
C22: Weights (By Technology) | E22: =INDEX($C$62:$G$69, MATCH(Unit, $C$62:$C$69, 0), MATCH(E$18, $C$62:$G$62, 0)) -> 0.2725645392 | F22: =INDEX($C$62:$G$69, MATCH(Unit, $C$62:$C$69, 0), MATCH(F$18, $C$62:$G$62, 0)) -> 0.2313080155 | G22: =INDEX($C$62:$G$69, MATCH(Unit, $C$62:$C$69, 0), MATCH(G$18, $C$62:$G$62, 0)) -> 0.2561274453 | H22: =INDEX($C$62:$G$69, MATCH(Unit, $C$62:$C$69, 0), MATCH(H$18, $C$62:$G$62, 0)) -> 0.24
C24: Escalation Factor: | E24: =TEXT(E22,"0%")&"*"&TEXT(E21,"0.00%")&" + "&TEXT(F22,"0%")& "*"&TEXT(F21,"0.00%")&" + "&TEXT(G22,"0%")&"*"&TEXT(G21,"0.00%")&" + "&TEXT(H22,"0%")&"*"&TEXT(H21,"0.00%")&" =" -> 27%*4.39% + 23%*38.44% + 26%*10.30% + 24%*15.99% =
E25: =IFERROR(E21*E22+F21*F22+G21*G22+H21*H22, "-") -> 0.165641337
A27: =A21-1 -> 2022 | C27: ="Previous Year (Q2 "&A27&")" -> Previous Year (Q2 2022) | D27: =INDEX($C$209:$E$223, MATCH(A27, $C$209:$C$223, 0), MATCH("II", $C$209:$E$209, 0)) -> 117.671
C28: ="Current Year (Q2 "&A21&")" -> Current Year (Q2 2023) | D28: =INDEX($C$209:$E$223, MATCH(A21, $C$209:$C$223, 0), MATCH("II", $C$209:$E$209, 0)) -> 121.766
C29: Annual GDP Deflator Growth Rate | D29: =(D28/D27)-1 -> 0.03480041811 | E29: Note: Annual GDP Deflator Growth Rate provides the growth of the GDP Deflator from the 2nd quarter of the previous year to the current year of data available at the time References Prices are released for each capability year.
C33: Escalation Factors by Year and Technology
C36: Capability Year | F36: SCGT J Class | G36: SCGT 7HA.02 | H36: BESS 2h | I36: BESS 4h | J36: BESS 6h | K36: BESS 8h
C37: 2021-2022 | F37: =IFERROR((($D51/$D$49)^(5/8)-1)*$D$64+($E51/$E$49-1)*$E$64+($F51/$F$49-1)*$F$64+(($H51/$H$49)-1)*$G$64, "-") -> 0.03413631989 | G37: =IFERROR((($D51/$D$49)^(5/8)-1)*$D$64+($E51/$E$49-1)*$E$64+($F51/$F$49-1)*$F$64+(($H51/$H$49)-1)*$G$64, "-") -> 0.03413631989 | H37: =IFERROR((($D51/$D$49)^(5/8)-1)*$D$66+($E51/$E$49-1)*$E$66+($G51/$G$49-1)*$F$66+(($H51/$H$49)-1)*$G$66, "-") -> 0.01097199711 | I37: =IFERROR((($D51/$D$49)^(5/8)-1)*$D$67+($E51/$E$49-1)*$E$67+($G51/$G$49-1)*$F$67+(($H51/$H$49)-1)*$G$67, "-") -> 0.01097199711 | J37: =IFERROR((($D51/$D$49)^(5/8)-1)*$D$68+($E51/$E$49-1)*$E$68+($G51/$G$49-1)*$F$68+(($H51/$H$49)-1)*$G$68, "-") -> 0.0104241308 | K37: =IFERROR((($D51/$D$49)^(5/8)-1)*$D$69+($E51/$E$49-1)*$E$69+($G51/$G$49-1)*$F$69+(($H51/$H$49)-1)*$G$69, "-") -> 0.01013241798 | L37: Note: The model uses the five most recently released quarters of index data to calculate growth for the 2021-2022 capability year escalation factors.
C38: 2022-2023 | F38: =IFERROR(($D52/$D$51-1)*$D$64+($E52/$E$51-1)*$E$64+($F52/$F$51-1)*$F$64+(($H52/$H$51)-1)*$G$64, "-") -> 0.0397946045 | G38: 0.0397946045 | H38: =IFERROR(($D52/$D$51-1)*$D$66+($E52/$E$51-1)*$E$66+($G52/$G$51-1)*$F$66+(($H52/$H$51)-1)*$G$66, "-") -> 0.02137231047 | I38: =IFERROR(($D52/$D$51-1)*$D$67+($E52/$E$51-1)*$E$67+($G52/$G$51-1)*$F$67+(($H52/$H$51)-1)*$G$67, "-") -> 0.02137231047 | J38: =IFERROR(($D52/$D$51-1)*$D$68+($E52/$E$51-1)*$E$68+($G52/$G$51-1)*$F$68+(($H52/$H$51)-1)*$G$68, "-") -> 0.01862934616 | K38: =IFERROR(($D52/$D$51-1)*$D$69+($E52/$E$51-1)*$E$69+($G52/$G$51-1)*$F$69+(($H52/$H$51)-1)*$G$69, "-") -> 0.01713787049
C39: 2023-2024 | F39: 0.1302864392 | G39: 0.1302864392 | H39: =IFERROR(($D53/$D$51-1)*$D$66+($E53/$E$51-1)*$E$66+($G53/$G$51-1)*$F$66+(($H53/$H$51)-1)*$G$66, "-") -> 0.1418443753 | I39: =IFERROR(($D53/$D$51-1)*$D$67+($E53/$E$51-1)*$E$67+($G53/$G$51-1)*$F$67+(($H53/$H$51)-1)*$G$67, "-") -> 0.1418443753 | J39: =IFERROR(($D53/$D$51-1)*$D$68+($E53/$E$51-1)*$E$68+($G53/$G$51-1)*$F$68+(($H53/$H$51)-1)*$G$68, "-") -> 0.1365412037 | K39: =IFERROR(($D53/$D$51-1)*$D$69+($E53/$E$51-1)*$E$69+($G53/$G$51-1)*$F$69+(($H53/$H$51)-1)*$G$69, "-") -> 0.1336271199
C40: 2024-2025 | F40: 0.165641337 | G40: 0.165641337 | H40: =IFERROR(($D54/$D$51-1)*$D$66+($E54/$E$51-1)*$E$66+($G54/$G$51-1)*$F$66+(($H54/$H$51)-1)*$G$66, "-") -> 0.193193057 | I40: =IFERROR(($D54/$D$51-1)*$D$67+($E54/$E$51-1)*$E$67+($G54/$G$51-1)*$F$67+(($H54/$H$51)-1)*$G$67, "-") -> 0.193193057 | J40: =IFERROR(($D54/$D$51-1)*$D$68+($E54/$E$51-1)*$E$68+($G54/$G$51-1)*$F$68+(($H54/$H$51)-1)*$G$68, "-") -> 0.1890455673 | K40: =IFERROR(($D54/$D$51-1)*$D$69+($E54/$E$51-1)*$E$69+($G54/$G$51-1)*$F$69+(($H54/$H$51)-1)*$G$69, "-") -> 0.186757503
C41: Note: Years with missing data or missing escalation factors will automatically update when indices below are updated with new data.
C45: Indices Over Time
A48: Lookup | C48: Capability Year | D48: Construction Labor Cost | E48: Materials Cost | F48: Gas and Steam Turbine Cost | G48: Storage Battery Cost | H48: GDP Deflator
A49: 2018 | C49: 2019-2020 | D49: =INDEX($C$119:$S$134, MATCH(A49-1, $C$119:$C$134, 0), MATCH("Construction Labor Cost", $C$119:$S$119, 0)) -> 101108 | E49: =INDEX($C$88:$S$102, MATCH(A49, $C$88:$C$102, 0), MATCH("Materials Index", $C$88:$S$88, 0)) -> 249.8333333 | F49: =INDEX($C$179:$S$195, MATCH(A49, $C$179:$C$195, 0), MATCH("Turbine Index", $C$179:$S$179, 0)) -> 228.0333333 | G49: =INDEX($C$150:$S$165, MATCH(A49,$C$150:$C$165, 0), MATCH("Battery Index", $C$150:$S$150, 0)) -> 205.8333333 | H49: =INDEX($C$209:$S$224, MATCH(A49, $C$209:$C$224, 0), MATCH("GDP Deflator", $C$209:$S$209, 0)) -> 103.019 | I49: Note: The model uses index values from midway through the 2019-2020 capability year because the 2021-2022 capability year escalates costs for five quarters.
A50: =+A49+1 -> 2019 | C50: 2020-2021 | D50: 105039 | E50: 251.5333333 | F50: =INDEX($C$179:$S$195, MATCH(A50, $C$179:$C$195, 0), MATCH("Turbine Index", $C$179:$S$179, 0)) -> 231.2333333 | G50: =INDEX($C$150:$S$165, MATCH(A50,$C$150:$C$165, 0), MATCH("Battery Index", $C$150:$S$150, 0)) -> 203.9333333 | H50: =INDEX($C$209:$S$224, MATCH(A50, $C$209:$C$224, 0), MATCH("GDP Deflator", $C$209:$S$209, 0)) -> 104.541
A51: 2020 | C51: 2021-2022 | D51: 107893 | E51: 253.3333333 | F51: =INDEX($C$179:$S$195, MATCH(A51, $C$179:$C$195, 0), MATCH("Turbine Index", $C$179:$S$179, 0)) -> 238.7333333 | G51: =INDEX($C$150:$S$165, MATCH(A51,$C$150:$C$165, 0), MATCH("Battery Index", $C$150:$S$150, 0)) -> 204.8 | H51: =INDEX($C$209:$S$224, MATCH(A51, $C$209:$C$224, 0), MATCH("GDP Deflator", $C$209:$S$209, 0)) -> 106.275
A52: 2021 | C52: 2022-2023 | D52: 105547 | E52: 280.7666667 | F52: =INDEX($C$179:$S$195, MATCH(A52, $C$179:$C$195, 0), MATCH("Turbine Index", $C$179:$S$179, 0)) -> 244.1666667 | G52: =INDEX($C$150:$S$165, MATCH(A52,$C$150:$C$165, 0), MATCH("Battery Index", $C$150:$S$150, 0)) -> 203.8333333 | H52: =INDEX($C$209:$S$224, MATCH(A52, $C$209:$C$224, 0), MATCH("GDP Deflator", $C$209:$S$209, 0)) -> 112.848
A53: 2022 | C53: 2023-2024 | D53: 106961 | E53: 345.5203333 | F53: =INDEX($C$179:$S$193, MATCH(A53, $C$179:$C$193, 0), MATCH("Turbine Index", $C$179:$S$179, 0)) -> 254.8246667 | G53: =INDEX($C$150:$S$164, MATCH(A53,$C$150:$C$164, 0), MATCH("Battery Index", $C$150:$S$150, 0)) -> 229.578 | H53: =INDEX($C$209:$S$223, MATCH(A53, $C$209:$C$223, 0), MATCH("GDP Deflator", $C$209:$S$209, 0)) -> 120.093
A54: 2023 | C54: 2024-2025 | D54: 112634 | E54: 350.7103333 | F54: =INDEX($C$179:$S$193, MATCH(A54, $C$179:$C$193, 0), MATCH("Turbine Index", $C$179:$S$179, 0)) -> 263.314 | G54: =INDEX($C$150:$S$164, MATCH(A54,$C$150:$C$164, 0), MATCH("Battery Index", $C$150:$S$150, 0)) -> 243.268 | H54: =INDEX($C$209:$S$223, MATCH(A54, $C$209:$C$223, 0), MATCH("GDP Deflator", $C$209:$S$209, 0)) -> 123.271
C55: Note: Years with missing data or missing escalation factors will automatically update when indices below are updated with new data.
C59: Weights by Technology
C62: Technology | D62: Construction Labor Cost | E62: Materials Cost | F62: Gas and Steam Turbine or Battery Cost | G62: GDP Deflator
C64: SCGT J Class | D64: 0.2725645392 | E64: 0.2313080155 | F64: 0.2561274453 | G64: 0.24
C65: SCGT 7HA.02 | D65: 0.2725645392 | E65: 0.2313080155 | F65: 0.2561274453 | G65: 0.24
C66: BESS 2h | D66: 0.1553037357 | E66: 0.1629774935 | F66: 0.5267187708 | G66: 0.155
C67: BESS 4h | D67: 0.1553037357 | E67: 0.1629774935 | F67: 0.5267187708 | G67: 0.155
C68: BESS 6h | D68: 0.1561371729 | E68: 0.1417763518 | F68: 0.5520864753 | G68: 0.15
C69: BESS 8h | D69: 0.1566030832 | E69: 0.1301213911 | F69: 0.5657755258 | G69: 0.1475
C73: Index Inputs
C76: Materials Cost Index
C78: Source: | D78: BLS Producer Price Index - Commodities
C79: Seasonal: | D79: Not Seasonally Adjusted
C80: Series Id: | D80: WPUID612
C81: Group: | D81: (ID6) Intermediate demand by commodity type
C82: Item: | D82: (12) Materials and components for construction
C83: Base Date: | D83: 198200
C84: Years: | D84: 2010 to 2022
C85: Access: | D85: http://data.bls.gov/cgi-bin/dsrv?wp
C86: Date Updated: | D86: 2024-05-06
C88: Year | D88: Jan | E88: Feb | F88: Mar | G88: Apr | H88: May | I88: Jun | J88: Jul | K88: Aug | L88: Sep | M88: Oct | N88: Nov | O88: Dec | S88: Materials Index | U88: Note: Italicized values are preliminary and are subject to revision up to four months after original publication.
C89: 2010 | D89: 202.3 | E89: 203.5 | F89: 204.6 | G89: 206.1 | H89: 207.4 | I89: 206.6 | J89: 206.3 | K89: 206.2 | L89: 205.9 | M89: 205.9 | N89: 206.3 | O89: 207 | S89: =IFERROR(AVERAGE(E89:G89), "-") -> 204.7333333
C90: 2011 | D90: 208.3 | E90: 209.5 | F90: 210.9 | G90: 212.1 | H90: 212.8 | I90: 213.7 | J90: 214.7 | K90: 214.6 | L90: 214.5 | M90: 214.4 | N90: 214.2 | O90: 214.2 | S90: 210.8333333
C91: 2012 | D91: 215.3 | E91: 216.9 | F91: 217.4 | G91: 218.3 | H91: 219.1 | I91: 219.2 | J91: 218.5 | K91: 218.7 | L91: 219.2 | M91: 219.1 | N91: 219.5 | O91: 219.9 | S91: 217.5333333
C92: 2013 | D92: 221.2 | E92: 222.2 | F92: 222.7 | G92: 223.4 | H92: 222.9 | I92: 222.6 | J92: 222.4 | K92: 223 | L92: 222.9 | M92: 222.9 | N92: 223 | O92: 223.1 | S92: 222.7666667
C93: 2014 | D93: 224.8 | E93: 225.8 | F93: 226.6 | G93: 226.9 | H93: 227.4 | I93: 227.4 | J93: 227.7 | K93: 228.2 | L93: 228.5 | M93: 228.6 | N93: 228.5 | O93: 228.4 | S93: 226.4333333
C94: 2015 | D94: 229 | E94: 229.1 | F94: 229.1 | G94: 229.4 | H94: 229.1 | I94: 229 | J94: 228.8 | K94: 228 | L94: 227.5 | M94: 227.7 | N94: 227.6 | O94: 227.2 | S94: 229.2
C95: 2016 | D95: 227.5 | E95: 227.5 | F95: 227.8 | G95: 228.3 | H95: 228.7 | I95: 229.1 | J95: 229.7 | K95: 230.3 | L95: 230 | M95: 229.7 | N95: 229.7 | O95: 230.1 | S95: 227.8666667
C96: 2017 | D96: 231.5 | E96: 232.5 | F96: 233.2 | G96: 234.4 | H96: 234.6 | I96: 234.8 | J96: 234.7 | K96: 235.6 | L96: 236 | M96: 237 | N96: 237.5 | O96: 237.7 | S96: 233.3666667
C97: 2018 | D97: 239.7 | E97: 241.2 | F97: 244.3 | G97: 245.4 | H97: 248.1 | I97: 249 | J97: 249.4 | K97: 249.2 | L97: 249.6 | M97: 249.6 | N97: 249.1 | O97: 249.7 | S97: =IFERROR(AVERAGE(N97:O97,D98), "-") -> 249.8333333 | T97: Note: The 2018 materials index is calculated with values from Nov. 2018-Jan. 2019 because the 2021-2022 capability year escalates costs for five quarters.
C98: 2019 | D98: 250.7 | E98: 251.5 | F98: 251.2 | G98: 251.9 | H98: 251.7 | I98: 251.2 | J98: 252.3 | K98: 251.3 | L98: 251.1 | M98: 250.8 | N98: 250.8 | O98: 250.8 | S98: =IFERROR(AVERAGE(E98:G98), "-") -> 251.5333333
C99: 2020 | D99: 252.1 | E99: 252.8 | F99: 254.3 | G99: 252.9 | H99: 252.8 | I99: 253.8 | J99: 255.3 | K99: 258.8 | L99: 263.2 | M99: 262.5 | N99: 261.4 | O99: 263.4 | S99: =IFERROR(AVERAGE(E99:G99), "-") -> 253.3333333
C100: 2021 | D100: 269.1 | E100: 273.8 | F100: 280.4 | G100: 288.1 | H100: 298.4 | I100: 306 | J100: 306.649 | K100: 306.394 | L100: 307.483 | M100: 311.36 | N100: 316.861 | O100: 322.954 | S100: =IFERROR(AVERAGE(E100:G100), "-") -> 280.7666667
C101: 2022 | D101: 334.225 | E101: 340.583 | F101: 347.214 | G101: 348.764 | H101: 351.756 | I101: 351.005 | J101: 351.767 | K101: 353.142 | L101: 351.515 | M101: 350.185 | N101: 348.774 | O101: 347.45 | S101: =IFERROR(AVERAGE(E101:G101), "-") -> 345.5203333
C102: 2023 | D102: 349.592 | E102: 349.622 | F102: 351.214 | G102: 351.295 | H102: 350.461 | I102: 350.184 | J102: 351.34 | K102: 351.707 | L102: 352.329 | M102: 351.443 | N102: 351.469 | O102: 351.81 | S102: =IFERROR(AVERAGE(E102:G102), "-") -> 350.7103333
C105: Construction Labor Cost Index
C107: Source: | D107: BLS Quarterly Census of Employment and Wages
C108: Series Id: | D108: ENU360005052371
C109: State: | D109: New York
C110: Area: | D110: New York -- Statewide
C111: Industry: | D111: NAICS 2371 Utility system construction
C112: Owner: | D112: Private
C113: Size | D113: All establishment sizes
C114: Type | D114: Average Annual Pay
C115: Years: | D115: 2010 to 2022
C116: Access: | D116: http://data.bls.gov/cgi-bin/dsrv?en
C117: Date Updated: | D117: 2024-05-06
C119: Year | D119: Annual | S119: Construction Labor Cost | U119: Note: Italicized values are preliminary and are subject to revision.
C120: 2010 | D120: 78635 | S120: =IF(D120="", "-", D120) -> 78635
C121: 2011 | D121: 79665 | S121: 79665
C122: 2012 | D122: 87406 | S122: 87406
C123: 2013 | D123: 88850 | S123: 88850
C124: 2014 | D124: 92531 | S124: 92531
C125: 2015 | D125: 97529 | S125: 97529
C126: 2016 | D126: 102788 | S126: 102788
C127: 2017 | D127: 101108 | S127: 101108
C128: 2018 | D128: 105039 | S128: 105039
C129: 2019 | D129: 107893 | S129: 107893
C130: 2020 | D130: 105547 | S130: 105547
C131: 2021 | D131: 106961 | S131: =IF(D131="", "-", D131) -> 106961
C132: 2022 | D132: 112634 | S132: 112634
C133: 2023 | S133: -
C138: Storage Battery Index
C140: Source: | D140: BLS Producer Price Index - Commodities
C141: Seasonal: | D141: Not Seasonally Adjusted
C142: Group: | D142: (11) Machinery and Equipment
C143: Item: | D143: (7901) Storage Batteries
C144: Series ID: | D144: WPU117901
C145: Base Date: | D145: 198200
C146: Years: | D146: 2007 to 2020
C147: Access: | D147: http://data.bls.gov/cgi-bin/dsrv?wp
C148: Date Updated: | D148: 2024-05-06
C150: Year | D150: Jan | E150: Feb | F150: Mar | G150: Apr | H150: May | I150: Jun | J150: Jul | K150: Aug | L150: Sep | M150: Oct | N150: Nov | O150: Dec | S150: Battery Index | U150: Note: Italicized values are preliminary and are subject to revision up to four months after original publication.
C151: 2010 | D151: 167.6 | E151: 168.4 | F151: 168.6 | G151: 169.2 | H151: 169.4 | I151: 169.4 | J151: 166.6 | K151: 167.6 | L151: 167.7 | M151: 168.2 | N151: 168.2 | O151: 171.7 | S151: =IFERROR(AVERAGE(E151:G151), "-") -> 168.7333333
C152: 2011 | D152: 173.1 | E152: 173.6 | F152: 174.6 | G152: 175 | H152: 175.5 | I152: 176.8 | J152: 178.7 | K152: 179.5 | L152: 179.3 | M152: 179.9 | N152: 178.8 | O152: 178.2 | S152: 174.4
C153: 2012 | D153: 179.2 | E153: 179.1 | F153: 179.3 | G153: 179.7 | H153: 183.8 | I153: 183.4 | J153: 183.2 | K153: 183.4 | L153: 183.6 | M153: 183.2 | N153: 183.4 | O153: 183 | S153: 179.3666667
C154: 2013 | D154: 183 | E154: 184.3 | F154: 185.4 | G154: 185.5 | H154: 184.6 | I154: 183.7 | J154: 183.7 | K154: 183.7 | L154: 185.4 | M154: 185.6 | N154: 185.1 | O154: 185.1 | S154: 185.0666667
C155: 2014 | D155: 184 | E155: 184.4 | F155: 184.1 | G155: 184.5 | H155: 184.5 | I155: 184.6 | J155: 184.1 | K155: 184.6 | L155: 184.9 | M155: 184.5 | N155: 184.5 | O155: 184.6 | S155: 184.3333333
C156: 2015 | D156: 184.5 | E156: 184.4 | F156: 184.5 | G156: 184 | H156: 184.2 | I156: 185.1 | J156: 185.2 | K156: 185.2 | L156: 185.1 | M156: 185.1 | N156: 185.1 | O156: 185 | S156: 184.3
C157: 2016 | D157: 184.9 | E157: 182.3 | F157: 182.6 | G157: 182.6 | H157: 182.6 | I157: 182.9 | J157: 182.9 | K157: 182.9 | L157: 182.9 | M157: 183.9 | N157: 183.9 | O157: 184.2 | S157: 182.5
C158: 2017 | D158: 188 | E158: 188.9 | F158: 188.9 | G158: 192.8 | H158: 192.8 | I158: 193.2 | J158: 193.5 | K158: 194.4 | L158: 195 | M158: 196.3 | N158: 198.5 | O158: 198.5 | S158: 190.2
C159: 2018 | D159: 202.9 | E159: 203.2 | F159: 203.5 | G159: 207.2 | H159: 208.3 | I159: 208.5 | J159: 207.2 | K159: 207.5 | L159: 207.8 | M159: 206.7 | N159: 206.3 | O159: 206.3 | S159: =IFERROR(AVERAGE(N159:O159,D160), "-") -> 205.8333333 | T159: Note: The 2018 battery index is calculated with values from Nov. 2018-Jan. 2019 because the 2021-2022 capability year escalates costs for five quarters.
C160: 2019 | D160: 204.9 | E160: 205.1 | F160: 203.5 | G160: 203.2 | H160: 203.2 | I160: 204.7 | J160: 204.3 | K160: 204.3 | L160: 204.3 | M160: 205.1 | N160: 204.6 | O160: 204.6 | S160: =IFERROR(AVERAGE(E160:G160), "-") -> 203.9333333
C161: 2020 | D161: 205.1 | E161: 205.2 | F161: 205.2 | G161: 204 | H161: 204.7 | I161: 204.3 | J161: 201.9 | K161: 201.9 | L161: 201.9 | M161: 202.7 | N161: 202.1 | O161: 202.1 | S161: 204.8
C162: 2021 | D162: 202.5 | E162: 202.6 | F162: 203.1 | G162: 205.8 | H162: 207.2 | I162: 209.1 | J162: 211.497 | K162: 213.329 | L162: 212.84 | M162: 219.249 | N162: 219.803 | O162: 222.323 | S162: 203.8333333
C163: 2022 | D163: 228.073 | E163: 228.579 | F163: 229.141 | G163: 231.014 | H163: 236.271 | I163: 239.657 | J163: 241.471 | K163: 241.461 | L163: 241.461 | M163: 241.624 | N163: 242.787 | O163: 242.922 | S163: 229.578
C164: 2023 | D164: 242.716 | E164: 242.629 | F164: 242.413 | G164: 244.762 | H164: 244.762 | I164: 245.053 | J164: 244.718 | K164: 244.718 | L164: 244.718 | M164: 244.192 | N164: 244.192 | O164: 244.192 | S164: 243.268
C167: Gas and Steam Turbine Index
C169: Source: | D169: BLS Producer Price Index - Commodities
C170: Seasonal: | D170: Not Seasonally Adjusted
C171: Group: | D171: (11) Machinery and Equipment
C172: Item: | D172: (97) Turbines and Turbine Generator Sets
C173: Series ID: | D173: WPU1197
C174: Base Date: | D174: 198706
C175: Years: | D175: 2010 to 2022
C176: Access: | D176: http://data.bls.gov/cgi-bin/dsrv?wp
C177: Date Updated: | D177: 2024-05-06
C179: Year | D179: Jan | E179: Feb | F179: Mar | G179: Apr | H179: May | I179: Jun | J179: Jul | K179: Aug | L179: Sep | M179: Oct | N179: Nov | O179: Dec | S179: Turbine Index | U179: Note: Italicized values are preliminary and are subject to revision up to four months after original publication.
C180: 2010 | D180: 222.9 | E180: 221.2 | F180: 220.2 | G180: 220.5 | H180: 221.6 | I180: 221.5 | J180: 221.8 | K180: 222.1 | L180: 221.9 | M180: 223 | N180: 223 | O180: 223.8 | S180: =IFERROR(AVERAGE(E180:G180), "-") -> 220.6333333
C181: 2011 | D181: 225.5 | E181: 224.9 | F181: 224.5 | G181: 225.7 | H181: 227.7 | I181: 228.8 | J181: 225.9 | K181: 224.2 | L181: 226 | M181: 223.7 | N181: 221.7 | O181: 223.5 | S181: 225.0333333
C182: 2012 | D182: 218.9 | E182: 220 | F182: 222.1 | G182: 222.3 | H182: 224.3 | I182: 225.2 | J182: 225.4 | K182: 224.4 | L182: 222.9 | M182: 225.1 | N182: 226.2 | O182: 225.7 | S182: 221.4666667
C183: 2013 | D183: 225.4 | E183: 225.4 | F183: 226.3 | G183: 226.4 | H183: 227.2 | I183: 226.6 | J183: 228.8 | K183: 227.8 | L183: 229.1 | M183: 229 | N183: 232 | O183: 231.7 | S183: 226.0333333
C184: 2014 | D184: 230.8 | E184: 231.2 | F184: 232.7 | G184: 232.2 | H184: 231.7 | I184: 232.2 | J184: 231.6 | K184: 233.6 | L184: 236.1 | M184: 237.2 | N184: 237.5 | O184: 238.5 | S184: 232.0333333
C185: 2015 | D185: 229.7 | E185: 230.9 | F185: 234.4 | G185: 230.9 | H185: 231.7 | I185: 227.9 | J185: 233.5 | K185: 230 | L185: 232.9 | M185: 232.8 | N185: 232.4 | O185: 233.1 | S185: 232.0666667
C186: 2016 | D186: 231.9 | E186: 232.2 | F186: 232.5 | G186: 231.2 | H186: 231.4 | I186: 233.2 | J186: 233.5 | K186: 232.7 | L186: 232.5 | M186: NA | N186: NA | O186: NA | S186: 231.9666667
C187: 2017 | D187: NA | E187: 224.3 | F187: 223.9 | G187: 223.4 | H187: 223.5 | I187: 227.7 | J187: 225.6 | K187: 225.8 | L187: 225.8 | M187: 224.5 | N187: 217.5 | O187: 211.6 | S187: 223.8666667
C188: 2018 | D188: 210.1 | E188: 215.1 | F188: 221 | G188: 221 | H188: 219.4 | I188: 219.7 | J188: 219.8 | K188: 221.4 | L188: 221 | M188: 224.4 | N188: 225.9 | O188: 228.8 | S188: =IFERROR(AVERAGE(N188:O188,D189), "-") -> 228.0333333 | T188: Note: The 2018 turbine index is calculated with values from Nov. 2018-Jan. 2019 because the 2021-2022 capability year escalates costs for five quarters.
C189: 2019 | D189: 229.4 | E189: 231 | F189: 231.1 | G189: 231.6 | H189: 232.7 | I189: 233.3 | J189: 233.7 | K189: 234.4 | L189: 234.8 | M189: 234.3 | N189: 234.9 | O189: 236.3 | S189: 231.2333333
C190: 2020 | D190: 237.8 | E190: 238.4 | F190: 238.9 | G190: 238.9 | H190: 239.5 | I190: 241.3 | J190: 242 | K190: 241.4 | L190: 241.2 | M190: 241.6 | N190: 242.3 | O190: 242.7 | S190: 238.7333333
C191: 2021 | D191: 243.1 | E191: 243.8 | F191: 244.2 | G191: 244.5 | H191: 247.1 | I191: 246.7 | J191: 247.138 | K191: 246.826 | L191: 248.932 | M191: 249.63 | N191: 250.015 | O191: 250.701 | S191: 244.1666667
C192: 2022 | D192: 253.184 | E192: 252.358 | F192: 255.324 | G192: 256.792 | H192: 257.169 | I192: 258.169 | J192: 257.389 | K192: 255.179 | L192: 253.476 | M192: 253.822 | N192: 254.347 | O192: 255.002 | S192: 254.8246667
C193: 2023 | D193: 255.701 | E193: 256.383 | F193: 266.493 | G193: 267.066 | H193: 267.598 | I193: 267.025 | J193: 263.617 | K193: 269.529 | L193: 270.672 | M193: 271.943 | N193: 273.181 | O193: 273.467 | S193: 263.314
D194: Note: BLS has not released data in months with the value "NA".
C198: Non-EPC Cost Index
C200: Source: | D200: Bureau of Economic Analysis: Gross Domestic Product Implicit Price Deflator, Index 2017 = 100.
C201: Seasonal: | D201: Seasonally Adjusted
C202: Timing: | D202: Quarterly
C203: Table: | D203: 1.1.9
C204: Table Location: | D204: Line 1
C205: Access: | D205: https://apps.bea.gov/iTable/index_nipa.cfm
C206: Date Updated: | D206: 2022-10-13
D208: Quarter
C209: Year | D209: I | E209: II | F209: III | G209: IV | S209: GDP Deflator | U209: Note: Italicized values are preliminary and are subject to revision.
C210: 2010 | D210: 89.036 | E210: 89.471 | F210: 89.743 | G210: 90.264 | S210: =IF(G210="", "-", G210) -> 90.264
C211: 2011 | D211: 90.726 | E211: 91.326 | F211: 91.876 | G211: 91.985 | S211: =IF(G211="", "-", G211) -> 91.985
C212: 2012 | D212: 92.525 | E212: 92.907 | F212: 93.417 | G212: 93.885 | S212: 93.885
C213: 2013 | D213: 94.258 | E213: 94.461 | F213: 94.924 | G213: 95.426 | S213: 95.426
C214: 2014 | D214: 95.788 | E214: 96.33 | F214: 96.726 | G214: 96.822 | S214: 96.822
C215: 2015 | D215: 96.769 | E215: 97.325 | F215: 97.583 | G215: 97.581 | S215: 97.581
C216: 2016 | D216: 97.496 | E216: 98.159 | F216: 98.41 | G216: 98.886 | S216: 98.886
C217: 2017 | D217: 99.39 | E217: 99.65 | F217: 100.162 | G217: 100.778 | S217: 100.778
C218: 2018 | D218: 101.419 | E218: 102.136 | F218: 102.577 | G218: 103.019 | S218: 103.019 | T218: Note: The 2018 GDP deflator is calculated with Q1 2019 data because the 2021-2022 capability year escalates costs for five quarters.
C219: 2019 | D219: 103.375 | E219: 103.888 | F219: 104.211 | G219: 104.541 | S219: 104.541
C220: 2020 | D220: 105.037 | E220: 104.614 | F220: 105.538 | G220: 106.275 | S220: 106.275
C221: 2021 | D221: 107.668 | E221: 109.305 | F221: 110.92 | G221: 112.848 | S221: 112.848
C222: 2022 | D222: 115.135 | E222: 117.671 | F222: 118.962 | G222: 120.093 | S222: 120.093
C223: 2023 | D223: 121.261 | E223: 121.766 | F223: 122.762 | G223: 123.271 | S223: =IF(G223="", "-", G223) -> 123.271

Sheet Winter-to-Summer Ratio
B1: Project: | C1: NYISO ICAP Demand Curve
B2: Date: | C2: 2024-06-01
B3: Worksheet: | C3: Winter-to-Summer Ratio
B5: Instructions: | C5: Update WSR annually for each zone.
C6: Paste updated WSR values into yellow cells next to the correct zone.
B8: Annual Winter-to-Summmer Ratios
B11: Zone | C11: Capability Year | D11: Lookup | E11: Winter-to-Summer Ratio
B12: C - Central | C12: 2024-2025 | D12: =B12&C12 -> C - Central2024-2025 | E12: 1.033
B13: F - Capital | C13: 2024-2025 | D13: F - Capital2024-2025 | E13: 1.033
B14: G - Hudson Valley (Dutchess) | C14: 2024-2025 | D14: G - Hudson Valley (Dutchess)2024-2025 | E14: 1.058
B15: G - Hudson Valley (Rockland) | C15: 2024-2025 | D15: G - Hudson Valley (Rockland)2024-2025 | E15: 1.058
B16: J - New York City | C16: 2024-2025 | D16: J - New York City2024-2025 | E16: 1.067
B17: K - Long Island | C17: 2024-2025 | D17: K - Long Island2024-2025 | E17: 1.072

Sheet Fixed Inputs-->

Sheet Levelized Factor
B1: Project: | C1: NYISO ICAP Demand Curve
B2: Date: | C2: 2024-06-01
B3: Worksheet: | C3: Levelized Factor
B5: Calculation of Levelized Factor
B8: Input
B10: Property Tax Rate | C10: =Property_Tax_Rate -> 0.006 | D10: Linked to "Model"
B11: Total Project Capitalized Cost | C11: =Capital_Costs*DMNC_ICAP*1000 -> 652492350.1
B13: Calendar
B14: Operating Year | C14: 1 | D14: 2 | E14: 3 | F14: 4 | G14: 5 | H14: 6 | I14: 7 | J14: 8 | K14: 9 | L14: 10 | M14: 11 | N14: 12 | O14: 13 | P14: 14 | Q14: 15 | R14: 16 | S14: 17 | T14: 18 | U14: 19 | V14: 20 | W14: 21 | X14: 22 | Y14: 23 | Z14: 24 | AA14: 25 | AB14: 26 | AC14: 27 | AD14: 28 | AE14: 29 | AF14: 30
B15: Discount Rate Adjustment | C15: =IF(C14<=Plant_Life,1/(1+ATWACC_Real)^(C14), 0) -> 0.9366939022 | D15: 0.8773954664 | E15: 0.8218509832 | F15: 0.7698228044 | G15: 0.7210883267 | H15: 0.6754390385 | I15: 0.6326796287 | J15: 0.5926271502 | K15: 0.5551102379 | L15: 0.5199683749 | M15: 0.4870512061 | N15: 0.4562178948 | O15: 0.4273365201 | P15: 0 | Q15: 0 | R15: 0 | S15: 0 | T15: 0 | U15: 0 | V15: 0 | W15: 0 | X15: 0 | Y15: 0 | Z15: 0 | AA15: 0 | AB15: 0 | AC15: 0 | AD15: 0 | AE15: 0 | AF15: 0
B17: Parameters and Exemptions
B18: Loan Period Parameter | C18: 1 | D18: 1 | E18: 1 | F18: 1 | G18: 1 | H18: 1 | I18: 1 | J18: 1 | K18: 1 | L18: 1 | M18: 1 | N18: 1 | O18: 1 | P18: 1 | Q18: 1 | R18: 1 | S18: 1 | T18: 1 | U18: 1 | V18: 1 | W18: 1 | X18: 1 | Y18: 1 | Z18: 1 | AA18: 1 | AB18: 1 | AC18: 1 | AD18: 1 | AE18: 1 | AF18: 1
B19: NYC Property Tax Exemption and Battery Exemption active for 15 years | C19: =IF(OR(AND(Region="J - New York City",PropTax_Abate),AND(LEFT(Unit,4)="BESS",PropTax_Abate)), 1, 0) -> 0 | D19: 0 | E19: 0 | F19: 0 | G19: 0 | H19: 0 | I19: =IF(OR(AND(Region="J - New York City",PropTax_Abate),AND(LEFT(Unit,4)="BESS",PropTax_Abate)), 1, 0) -> 0 | J19: 0 | K19: 0 | L19: 0 | M19: 0 | N19: 0 | O19: 0 | P19: 0 | Q19: 0 | R19: 0 | S19: 0 | T19: 0 | U19: 0 | V19: 0 | W19: 0 | X19: 0 | Y19: 0 | Z19: 0 | AA19: 0 | AB19: 0 | AC19: 0 | AD19: 0 | AE19: 0 | AF19: 0
B21: Depreciation
B22: Effective Tax Depreciation | C22: =IF(LEFT(Unit,4)="BESS",C23,IF(CC_Flag=TRUE,#REF!, C24)) -> 0.05 | D22: =IF(LEFT(Unit,4)="BESS",D23,IF(CC_Flag=TRUE,#REF!, D24)) -> 0.095 | E22: =IF(LEFT(Unit,4)="BESS",E23,IF(CC_Flag=TRUE,#REF!, E24)) -> 0.0855 | F22: =IF(LEFT(Unit,4)="BESS",F23,IF(CC_Flag=TRUE,#REF!, F24)) -> 0.077 | G22: =IF(LEFT(Unit,4)="BESS",G23,IF(CC_Flag=TRUE,#REF!, G24)) -> 0.0693 | H22: =IF(LEFT(Unit,4)="BESS",H23,IF(CC_Flag=TRUE,#REF!, H24)) -> 0.0623 | I22: =IF(LEFT(Unit,4)="BESS",I23,IF(CC_Flag=TRUE,#REF!, I24)) -> 0.059 | J22: =IF(LEFT(Unit,4)="BESS",J23,IF(CC_Flag=TRUE,#REF!, J24)) -> 0.059 | K22: =IF(LEFT(Unit,4)="BESS",K23,IF(CC_Flag=TRUE,#REF!, K24)) -> 0.0591 | L22: =IF(LEFT(Unit,4)="BESS",L23,IF(CC_Flag=TRUE,#REF!, L24)) -> 0.059 | M22: =IF(LEFT(Unit,4)="BESS",M23,IF(CC_Flag=TRUE,#REF!, M24)) -> 0.0591 | N22: =IF(LEFT(Unit,4)="BESS",N23,IF(CC_Flag=TRUE,#REF!, N24)) -> 0.059 | O22: =IF(LEFT(Unit,4)="BESS",O23,IF(CC_Flag=TRUE,#REF!, O24)) -> 0.0591 | P22: =IF(LEFT(Unit,4)="BESS",P23,IF(CC_Flag=TRUE,#REF!, P24)) -> 0.059 | Q22: =IF(LEFT(Unit,4)="BESS",Q23,IF(CC_Flag=TRUE,#REF!, Q24)) -> 0.0591 | R22: =IF(LEFT(Unit,4)="BESS",R23,IF(CC_Flag=TRUE,#REF!, R24)) -> 0.0295 | S22: =IF(LEFT(Unit,4)="BESS",S23,IF(CC_Flag=TRUE,#REF!, S24)) -> 0 | T22: =IF(LEFT(Unit,4)="BESS",T23,IF(CC_Flag=TRUE,#REF!, T24)) -> 0 | U22: =IF(LEFT(Unit,4)="BESS",U23,IF(CC_Flag=TRUE,#REF!, U24)) -> 0 | V22: =IF(LEFT(Unit,4)="BESS",V23,IF(CC_Flag=TRUE,#REF!, V24)) -> 0 | W22: =IF(LEFT(Unit,4)="BESS",W23,IF(CC_Flag=TRUE,#REF!, W24)) -> 0 | X22: =IF(LEFT(Unit,4)="BESS",X23,IF(CC_Flag=TRUE,#REF!, X24)) -> 0 | Y22: =IF(LEFT(Unit,4)="BESS",Y23,IF(CC_Flag=TRUE,#REF!, Y24)) -> 0 | Z22: =IF(LEFT(Unit,4)="BESS",Z23,IF(CC_Flag=TRUE,#REF!, Z24)) -> 0 | AA22: =IF(LEFT(Unit,4)="BESS",AA23,IF(CC_Flag=TRUE,#REF!, AA24)) -> 0 | AB22: =IF(LEFT(Unit,4)="BESS",AB23,IF(CC_Flag=TRUE,#REF!, AB24)) -> 0 | AC22: =IF(LEFT(Unit,4)="BESS",AC23,IF(CC_Flag=TRUE,#REF!, AC24)) -> 0 | AD22: =IF(LEFT(Unit,4)="BESS",AD23,IF(CC_Flag=TRUE,#REF!, AD24)) -> 0 | AE22: =IF(LEFT(Unit,4)="BESS",AE23,IF(CC_Flag=TRUE,#REF!, AE24)) -> 0 | AF22: =IF(LEFT(Unit,4)="BESS",AF23,IF(CC_Flag=TRUE,#REF!, AF24)) -> 0
B23: Tax Depreciation (5 year Bat) | C23: 0.2 | D23: 0.32 | E23: 0.192 | F23: 0.1152 | G23: 0.1152 | H23: 0.0576 | I23: 0 | J23: 0 | K23: 0 | L23: 0 | M23: 0 | N23: 0 | O23: 0 | P23: 0 | Q23: 0 | R23: 0 | S23: 0 | T23: 0 | U23: 0 | V23: 0 | W23: 0 | X23: 0 | Y23: 0 | Z23: 0 | AA23: 0 | AB23: 0 | AC23: 0 | AD23: 0 | AE23: 0 | AF23: 0
B24: Tax Depreciation (15 year SC) | C24: 0.05 | D24: 0.095 | E24: 0.0855 | F24: 0.077 | G24: 0.0693 | H24: 0.0623 | I24: 0.059 | J24: 0.059 | K24: 0.0591 | L24: 0.059 | M24: 0.0591 | N24: 0.059 | O24: 0.0591 | P24: 0.059 | Q24: 0.0591 | R24: 0.0295 | S24: 0 | T24: 0 | U24: 0 | V24: 0 | W24: 0 | X24: 0 | Y24: 0 | Z24: 0 | AA24: 0 | AB24: 0 | AC24: 0 | AD24: 0 | AE24: 0 | AF24: 0
B27: Financing
B28: Equity | C28: =C11*(1-Debt_Fraction) -> 293621557.6
B29: Target Cash Flow to Equity | C29: =IF(C14<=Plant_Life,PMT(Equity_Rate_Real,Plant_Life,(-1*$C$28),,0),0) -> 44894871.87 | D29: 44894871.87 | E29: 44894871.87 | F29: 44894871.87 | G29: 44894871.87 | H29: 44894871.87 | I29: 44894871.87 | J29: 44894871.87 | K29: 44894871.87 | L29: 44894871.87 | M29: 44894871.87 | N29: 44894871.87 | O29: 44894871.87 | P29: 0 | Q29: 0 | R29: 0 | S29: 0 | T29: 0 | U29: 0 | V29: 0 | W29: 0 | X29: 0 | Y29: 0 | Z29: 0 | AA29: 0 | AB29: 0 | AC29: 0 | AD29: 0 | AE29: 0 | AF29: 0
B31: Debt Service | C31: =C11*Debt_Fraction -> 358870792.6
B32: Principal | C32: =IF(C14<=Plant_Life,PPMT(Debt_Rate_Real,C14,Plant_Life,-1*$C$31,,0),0) -> 20933287.56 | D32: 21872128.7 | E32: 22853076.11 | F32: 23878018.23 | G32: 24948928.17 | H32: 26067867.56 | I32: 27236990.49 | J32: 28458547.65 | K32: 29734890.66 | L32: 31068476.63 | M32: 32461872.86 | N32: 33917761.79 | O32: 35438946.17 | P32: 0 | Q32: 0 | R32: 0 | S32: 0 | T32: 0 | U32: 0 | V32: 0 | W32: 0 | X32: 0 | Y32: 0 | Z32: 0 | AA32: 0 | AB32: 0 | AC32: 0 | AD32: 0 | AE32: 0 | AF32: 0
B33: Loan Balance Start of Year | C33: =C31 -> 358870792.6 | D33: =C33-C32 -> 337937505 | E33: 316065376.3 | F33: 293212300.2 | G33: 269334282 | H33: 244385353.8 | I33: 218317486.2 | J33: 191080495.7 | K33: 162621948.1 | L33: 132887057.4 | M33: 101818580.8 | N33: 69356707.95 | O33: 35438946.17 | P33: 0 | Q33: 0 | R33: 0 | S33: 0 | T33: 0 | U33: 0 | V33: 0 | W33: 0 | X33: 0 | Y33: 0 | Z33: 0 | AA33: 0 | AB33: 0 | AC33: 0 | AD33: 0 | AE33: 0 | AF33: 0
B34: Interest | C34: =IF(C14<=Plant_Life,IPMT(Debt_Rate_Real,C18,Plant_Life,-1*C33,,0),0) -> 16095066.88 | D34: 15156225.74 | E34: 14175278.33 | F34: 13150336.22 | G34: 12079426.28 | H34: 10960486.88 | I34: 9791363.954 | J34: 8569806.801 | K34: 7293463.79 | L34: 5959877.821 | M34: 4566481.591 | N34: 3110592.66 | O34: 1589408.279 | P34: 0 | Q34: 0 | R34: 0 | S34: 0 | T34: 0 | U34: 0 | V34: 0 | W34: 0 | X34: 0 | Y34: 0 | Z34: 0 | AA34: 0 | AB34: 0 | AC34: 0 | AD34: 0 | AE34: 0 | AF34: 0
B36: Yearly Debt Service (Principal + Interest) | C36: =SUM(C32,C34) -> 37028354.45 | D36: 37028354.45 | E36: 37028354.45 | F36: 37028354.45 | G36: 37028354.45 | H36: 37028354.45 | I36: 37028354.45 | J36: 37028354.45 | K36: 37028354.45 | L36: 37028354.45 | M36: 37028354.45 | N36: 37028354.45 | O36: 37028354.45 | P36: 0 | Q36: 0 | R36: 0 | S36: 0 | T36: 0 | U36: 0 | V36: 0 | W36: 0 | X36: 0 | Y36: 0 | Z36: 0 | AA36: 0 | AB36: 0 | AC36: 0 | AD36: 0 | AE36: 0 | AF36: 0
B38: Capital Related Expenses
B39: Property Taxes | C39: =IF(C19,0,IF(C14<=Plant_Life,$C$10*$C$11,0)) -> 3914954.101 | D39: 3914954.101 | E39: 3914954.101 | F39: 3914954.101 | G39: 3914954.101 | H39: 3914954.101 | I39: 3914954.101 | J39: 3914954.101 | K39: 3914954.101 | L39: 3914954.101 | M39: 3914954.101 | N39: 3914954.101 | O39: 3914954.101 | P39: 0 | Q39: 0 | R39: 0 | S39: 0 | T39: 0 | U39: 0 | V39: 0 | W39: 0 | X39: 0 | Y39: 0 | Z39: 0 | AA39: 0 | AB39: 0 | AC39: 0 | AD39: 0 | AE39: 0 | AF39: 0
B40: Tax Depreciation | C40: =$C$11*C22 -> 32624617.51 | D40: 61986773.26 | E40: 55788095.94 | F40: 50241910.96 | G40: 45217719.86 | H40: 40650273.41 | I40: 38497048.66 | J40: 38497048.66 | K40: 38562297.89 | L40: 38497048.66 | M40: 38562297.89 | N40: 38497048.66 | O40: 38562297.89 | P40: 38497048.66 | Q40: 38562297.89 | R40: 19248524.33 | S40: 0 | T40: 0 | U40: 0 | V40: 0 | W40: 0 | X40: 0 | Y40: 0 | Z40: 0 | AA40: 0 | AB40: 0 | AC40: 0 | AD40: 0 | AE40: 0 | AF40: 0
B42: Derivation of Carrying Charges
B43: Target Equity IRR | C43: =Equity_Rate_Real -> 0.116333725
B44: Principal | C44: =C32 -> 20933287.56 | D44: 21872128.7 | E44: 22853076.11 | F44: 23878018.23 | G44: 24948928.17 | H44: 26067867.56 | I44: 27236990.49 | J44: 28458547.65 | K44: 29734890.66 | L44: 31068476.63 | M44: 32461872.86 | N44: 33917761.79 | O44: 35438946.17 | P44: 0 | Q44: 0 | R44: 0 | S44: 0 | T44: 0 | U44: 0 | V44: 0 | W44: 0 | X44: 0 | Y44: 0 | Z44: 0 | AA44: 0 | AB44: 0 | AC44: 0 | AD44: 0 | AE44: 0 | AF44: 0
B45: Interest | C45: =C34 -> 16095066.88 | D45: 15156225.74 | E45: 14175278.33 | F45: 13150336.22 | G45: 12079426.28 | H45: 10960486.88 | I45: 9791363.954 | J45: 8569806.801 | K45: 7293463.79 | L45: 5959877.821 | M45: 4566481.591 | N45: 3110592.66 | O45: 1589408.279 | P45: 0 | Q45: 0 | R45: 0 | S45: 0 | T45: 0 | U45: 0 | V45: 0 | W45: 0 | X45: 0 | Y45: 0 | Z45: 0 | AA45: 0 | AB45: 0 | AC45: 0 | AD45: 0 | AE45: 0 | AF45: 0
B46: Target Cash Flow to Equity | C46: =C29 -> 44894871.87 | D46: 44894871.87 | E46: 44894871.87 | F46: 44894871.87 | G46: 44894871.87 | H46: 44894871.87 | I46: 44894871.87 | J46: 44894871.87 | K46: 44894871.87 | L46: 44894871.87 | M46: 44894871.87 | N46: 44894871.87 | O46: 44894871.87 | P46: 0 | Q46: 0 | R46: 0 | S46: 0 | T46: 0 | U46: 0 | V46: 0 | W46: 0 | X46: 0 | Y46: 0 | Z46: 0 | AA46: 0 | AB46: 0 | AC46: 0 | AD46: 0 | AE46: 0 | AF46: 0
B47: Income Taxes | C47: =(Effective_Tax_Rate/(1-Effective_Tax_Rate))*(C46+C44-C40) -> 11751158.76 | D47: =(Effective_Tax_Rate/(1-Effective_Tax_Rate))*(D46+D44-D40) -> 1691783.672 | E47: 4232744.823 | F47: 6558350.863 | G47: 8715485.187 | H47: 10727969.97 | I47: 11903791.37 | J47: 12336116.09 | K47: 12764737.69 | L47: 13259803.38 | M47: 13729851.62 | N47: 14268201.9 | O47: 14783475.99 | P47: =(Effective_Tax_Rate/(1-Effective_Tax_Rate))*(P46+P44-P40) -> -13624598.59 | Q47: -13647691.13 | R47: -6812299.295 | S47: 0 | T47: 0 | U47: 0 | V47: 0 | W47: 0 | X47: 0 | Y47: 0 | Z47: 0 | AA47: 0 | AB47: =(Effective_Tax_Rate/(1-Effective_Tax_Rate))*(AB46+AB44-AB40) -> 0 | AC47: =(Effective_Tax_Rate/(1-Effective_Tax_Rate))*(AC46+AC44-AC40) -> 0 | AD47: =(Effective_Tax_Rate/(1-Effective_Tax_Rate))*(AD46+AD44-AD40) -> 0 | AE47: =(Effective_Tax_Rate/(1-Effective_Tax_Rate))*(AE46+AE44-AE40) -> 0 | AF47: =(Effective_Tax_Rate/(1-Effective_Tax_Rate))*(AF46+AF44-AF40) -> 0
B48: Property Taxes | C48: =C39 -> 3914954.101 | D48: =D39 -> 3914954.101 | E48: 3914954.101 | F48: 3914954.101 | G48: 3914954.101 | H48: 3914954.101 | I48: 3914954.101 | J48: 3914954.101 | K48: 3914954.101 | L48: =L39 -> 3914954.101 | M48: 3914954.101 | N48: 3914954.101 | O48: 3914954.101 | P48: 0 | Q48: 0 | R48: 0 | S48: 0 | T48: 0 | U48: 0 | V48: 0 | W48: 0 | X48: 0 | Y48: 0 | Z48: 0 | AA48: 0 | AB48: 0 | AC48: 0 | AD48: 0 | AE48: 0 | AF48: 0
B50: Total Carrying Charges | C50: =SUM(C44:C48) -> 97589339.18 | D50: =SUM(D44:D48) -> 87529964.09 | E50: =SUM(E44:E48) -> 90070925.24 | F50: 92396531.28 | G50: 94553665.61 | H50: 96566150.39 | I50: 97741971.79 | J50: 98174296.51 | K50: 98602918.11 | L50: 99097983.81 | M50: 99568032.04 | N50: 100106382.3 | O50: 100621656.4 | P50: -13624598.59 | Q50: -13647691.13 | R50: -6812299.295 | S50: 0 | T50: 0 | U50: 0 | V50: 0 | W50: 0 | X50: 0 | Y50: 0 | Z50: 0 | AA50: 0 | AB50: =SUM(AB44:AB48) -> 0 | AC50: =SUM(AC44:AC48) -> 0 | AD50: =SUM(AD44:AD48) -> 0 | AE50: =SUM(AE44:AE48) -> 0 | AF50: =SUM(AF44:AF48) -> 0
B52: Cumulative Present Value | C52: =SUMPRODUCT(C50:AF50, C15:AF15) -> 810217436.7
B53: Levelized Carrying Charges (Real) | C53: =-1*PMT(ATWACC_Real,Plant_Life,$C$52,,0) -> 95620266.3
B54: Levelized Carrying Charge Rate (Real) | C54: =C53/C11 -> 0.1465461875

Sheet Peak Load and IRM
C1: Project: | D1: NYISO ICAP Demand Curve
C2: Date: | D2: 2024-06-01
C3: Worksheet: | D3: Peak Load and IRM
C5: Peak Load and IRM
B8: Lookup | C8: Zone | D8: Peak Load (2024) | E8: Installed Reserve Margin / Locational Capacity Requirement
B10: K | C10: K - Long Island | D10: 5043.4 | E10: 1.053
B11: J | C11: J - New York City | D11: 11167.9 | E11: 0.804
B12: NYCA | C12: NYCA | D12: 31541.6 | E12: 1.22
B13: G | C13: G-J | D13: 15220 | E13: 0.81
C17: Sources:
C18: 2024 Gold Book, Tables I-3a, I-4a, and I-5.
C19: 2024 - 2025 Locational Minimum Installed Capacity Requirement Study. NYISO.

Sheet AS Adders
B1: Project: | C1: NYISO ICAP Demand Curve
B2: Date: | C2: 2024-06-01
B3: Worksheet: | C3: AS Adders
B5: AS Adders
B7: Adder Type | C7: Adder ($/kW-Year)
B8: VSS Adder | C8: 2.48

Sheet Performance and O&M
D1: Project: | F1: NYISO ICAP Demand Curve
D2: Date: | F2: 2024-06-01
D3: Worksheet: | F3: Performance and O&M
D5: Performance and O&M Data
F8: SCGT J Class | G8: SCGT J Class | H8: SCGT J Class | I8: SCGT J Class | J8: SCGT J Class | K8: SCGT J Class | M8: SCGT 7HA.02 | N8: SCGT 7HA.02 | O8: SCGT 7HA.02 | Q8: BESS 2h | R8: BESS 2h | S8: BESS 2h | T8: BESS 2h | U8: BESS 2h | V8: BESS 2h | X8: BESS 4h | Y8: BESS 4h | Z8: BESS 4h | AA8: BESS 4h | AB8: BESS 4h | AC8: BESS 4h | AE8: BESS 6h | AF8: BESS 6h | AG8: BESS 6h | AH8: BESS 6h | AI8: BESS 6h | AJ8: BESS 6h | AL8: BESS 8h | AM8: BESS 8h | AN8: BESS 8h | AO8: BESS 8h | AP8: BESS 8h | AQ8: BESS 8h
D9: Technology | F9: SCGT J Class | M9: SCGT 7HA.02 | Q9: BESS 2h | X9: BESS 4h | AE9: BESS 6h | AL9: BESS 8h
D10: Plant Capacity (MW) | F10: =AVERAGE(F21:K21) -> 398.7 | M10: =AVERAGE(M21:O21) -> 326.6115 | Q10: =AVERAGE(Q21:V21) -> 200 | X10: =AVERAGE(X21:AC21) -> 200 | AE10: =AVERAGE(AE21:AJ21) -> 200 | AL10: =AVERAGE(AL21:AQ21) -> 200
D12: Lookup | F12: =F13&F8 -> C - CentralSCGT J Class | G12: =G13&F8 -> F - CapitalSCGT J Class | H12: =H13&F8 -> G - Hudson Valley (Dutchess)SCGT J Class | I12: =I13&F8 -> G - Hudson Valley (Rockland)SCGT J Class | J12: =J13&F8 -> J - New York CitySCGT J Class | K12: =K13&F8 -> K - Long IslandSCGT J Class | M12: =M13&M8 -> C - CentralSCGT 7HA.02 | N12: =N13&N8 -> F - CapitalSCGT 7HA.02 | O12: G - Hudson Valley (Dutchess)SCGT 7HA.02 | Q12: =Q13&Q8 -> C - CentralBESS 2h | R12: =R13&R8 -> F - CapitalBESS 2h | S12: G - Hudson Valley (Dutchess)BESS 2h | T12: G - Hudson Valley (Rockland)BESS 2h | U12: J - New York CityBESS 2h | V12: K - Long IslandBESS 2h | X12: =X13&X8 -> C - CentralBESS 4h | Y12: =Y13&X8 -> F - CapitalBESS 4h | Z12: =Z13&X8 -> G - Hudson Valley (Dutchess)BESS 4h | AA12: =AA13&X8 -> G - Hudson Valley (Rockland)BESS 4h | AB12: =AB13&X8 -> J - New York CityBESS 4h | AC12: =AC13&X8 -> K - Long IslandBESS 4h | AE12: =AE13&AE8 -> C - CentralBESS 6h | AF12: =AF13&AE8 -> F - CapitalBESS 6h | AG12: =AG13&AE8 -> G - Hudson Valley (Dutchess)BESS 6h | AH12: =AH13&AE8 -> G - Hudson Valley (Rockland)BESS 6h | AI12: =AI13&AE8 -> J - New York CityBESS 6h | AJ12: =AJ13&AE8 -> K - Long IslandBESS 6h | AL12: =AL13&AL8 -> C - CentralBESS 8h | AM12: =AM13&AL8 -> F - CapitalBESS 8h | AN12: =AN13&AL8 -> G - Hudson Valley (Dutchess)BESS 8h | AO12: =AO13&AL8 -> G - Hudson Valley (Rockland)BESS 8h | AP12: =AP13&AL8 -> J - New York CityBESS 8h | AQ12: =AQ13&AL8 -> K - Long IslandBESS 8h
D13: Zone | F13: C - Central | G13: F - Capital | H13: G - Hudson Valley (Dutchess) | I13: G - Hudson Valley (Rockland) | J13: J - New York City | K13: K - Long Island | M13: C - Central | N13: F - Capital | O13: G - Hudson Valley (Dutchess) | Q13: C - Central | R13: F - Capital | S13: G - Hudson Valley (Dutchess) | T13: G - Hudson Valley (Rockland) | U13: J - New York City | V13: K - Long Island | X13: C - Central | Y13: F - Capital | Z13: G - Hudson Valley (Dutchess) | AA13: G - Hudson Valley (Rockland) | AB13: J - New York City | AC13: K - Long Island | AE13: C - Central | AF13: F - Capital | AG13: G - Hudson Valley (Dutchess) | AH13: G - Hudson Valley (Rockland) | AI13: J - New York City | AJ13: K - Long Island | AL13: C - Central | AM13: F - Capital | AN13: G - Hudson Valley (Dutchess) | AO13: G - Hudson Valley (Rockland) | AP13: J - New York City | AQ13: K - Long Island
D15: Plant Capacities
C17: Capacity- based on average temp (Summer, MW) | D17: Net Plant Capacity - Summer | F17: 400.2 | G17: 411.8 | H17: 408 | I17: 408 | J17: 413.9 | K17: 417 | M17: 330.96632 | N17: 340.71733 | O17: 337.40388 | Q17: 200 | R17: 200 | S17: 200 | T17: 200 | U17: 200 | V17: 200 | X17: 200 | Y17: 200 | Z17: 200 | AA17: 200 | AB17: 200 | AC17: 200 | AE17: 200 | AF17: 200 | AG17: 200 | AH17: 200 | AI17: 200 | AJ17: 200 | AL17: 200 | AM17: 200 | AN17: 200 | AO17: 200 | AP17: 200 | AQ17: 200
C18: Capacity- based on average temp (Winter, MW) | D18: Net Plant Capacity - Winer | F18: 414.3 | G18: 429.1 | H18: 426.9 | I18: 426.9 | J18: 434.7 | K18: 438.1 | M18: 357.00057 | N18: 365.04752 | O18: 360.97671 | Q18: 200 | R18: 200 | S18: 200 | T18: 200 | U18: 200 | V18: 200 | X18: 200 | Y18: 200 | Z18: 200 | AA18: 200 | AB18: 200 | AC18: 200 | AE18: 200 | AF18: 200 | AG18: 200 | AH18: 200 | AI18: 200 | AJ18: 200 | AL18: 200 | AM18: 200 | AN18: 200 | AO18: 200 | AP18: 200 | AQ18: 200
C19: DMNC Summer (MW) | D19: DMNC Summer | F19: 394.5 | G19: 406.5 | H19: 400.9 | I19: 400.9 | J19: 404.4 | K19: 407.1 | M19: 325.6648 | N19: 335.79449 | O19: 331.25033 | Q19: 200 | R19: 200 | S19: 200 | T19: 200 | U19: 200 | V19: 200 | X19: 200 | Y19: 200 | Z19: 200 | AA19: 200 | AB19: 200 | AC19: 200 | AE19: 200 | AF19: 200 | AG19: 200 | AH19: 200 | AI19: 200 | AJ19: 200 | AL19: 200 | AM19: 200 | AN19: 200 | AO19: 200 | AP19: 200 | AQ19: 200
C20: DMNC Winter (MW) | D20: DMNC Winter | F20: 419.5 | G20: 431.7 | H20: 428.5 | I20: 428.5 | J20: 435 | K20: 438.1 | M20: 352.1724 | N20: 363.72214 | O20: 331.25033 | Q20: 200 | R20: 200 | S20: 200 | T20: 200 | U20: 200 | V20: 200 | X20: 200 | Y20: 200 | Z20: 200 | AA20: 200 | AB20: 200 | AC20: 200 | AE20: 200 | AF20: 200 | AG20: 200 | AH20: 200 | AI20: 200 | AJ20: 200 | AL20: 200 | AM20: 200 | AN20: 200 | AO20: 200 | AP20: 200 | AQ20: 200
C21: DMNC ICAP (MW) | D21: DMNC ICAP | F21: 389 | G21: 400.3 | H21: 397.4 | I21: 397.4 | J21: 404.1 | K21: 404 | M21: 321.02597 | N21: 330.68231 | O21: 328.12622 | Q21: 200 | R21: 200 | S21: 200 | T21: 200 | U21: 200 | V21: 200 | X21: 200 | Y21: 200 | Z21: 200 | AA21: 200 | AB21: 200 | AC21: 200 | AE21: 200 | AF21: 200 | AG21: 200 | AH21: 200 | AI21: 200 | AJ21: 200 | AL21: 200 | AM21: 200 | AN21: 200 | AO21: 200 | AP21: 200 | AQ21: 200
D23: Fixed O&M Costs
D25: Fixed O&M and Site Leasing Costs, Excluding Insurance and Property Taxes (2024) | F25: 7.976812339 | G25: 8.026430177 | H25: 8.638600906 | I25: 9.544473283 | J25: 27.88418708 | K25: 9.882438119 | M25: 9.603522108 | N25: 9.625492213 | O25: 9.700474409 | Q25: 17.65 | R25: 17.65 | S25: 17.65 | T25: 17.65 | U25: 35.67 | V25: 17.7 | X25: 28.95 | Y25: 28.95 | Z25: 28.95 | AA25: 28.95 | AB25: 56.13 | AC25: 28.95 | AE25: 40.8 | AF25: 40.8 | AG25: 40.8 | AH25: 40.8 | AI25: 77.14 | AJ25: 40.9 | AL25: 51.85 | AM25: 51.85 | AN25: 51.85 | AO25: 51.85 | AP25: 97.35 | AQ25: 52.05
B33: 2024-2025 | C33: ="FO&M Costs "&B33 -> FO&M Costs 2024-2025 | D33: ="Fixed O&M and Site Leasing Costs, Excluding Insurance and Property Taxes ("&B33&")" -> Fixed O&M and Site Leasing Costs, Excluding Insurance and Property Taxes (2024-2025) | F33: =F25 -> 7.976812339 | G33: =G25 -> 8.026430177 | H33: 8.638600906 | I33: 9.544473283 | J33: 27.88418708 | K33: 9.882438119 | M33: 9.603522108 | N33: 9.625492213 | O33: 9.700474409 | Q33: =Q25 -> 17.65 | R33: =R25 -> 17.65 | S33: 17.65 | T33: 17.65 | U33: 35.67 | V33: 17.7 | X33: =X25 -> 28.95 | Y33: =Y25 -> 28.95 | Z33: 28.95 | AA33: 28.95 | AB33: 56.13 | AC33: 28.95 | AE33: =AE25 -> 40.8 | AF33: =AF25 -> 40.8 | AG33: 40.8 | AH33: 40.8 | AI33: 77.14 | AJ33: 40.9 | AL33: =AL25 -> 51.85 | AM33: =AM25 -> 51.85 | AN33: 51.85 | AO33: 51.85 | AP33: 97.35 | AQ33: 52.05

Sheet Capital Costs
D1: Project: | E1: NYISO ICAP Demand Curve
D2: Date: | E2: 2024-06-01
D3: Worksheet: | E3: Capital Costs
D5: Capital Costs
E8: SCGT J Class | F8: SCGT J Class | G8: SCGT J Class | H8: SCGT J Class | I8: SCGT J Class | J8: SCGT J Class | L8: SCGT J Class | M8: SCGT J Class | N8: SCGT J Class | O8: SCGT J Class | P8: SCGT J Class | Q8: SCGT J Class | S8: SCGT 7HA.02 | T8: SCGT 7HA.02 | U8: SCGT 7HA.02 | V8: SCGT 7HA.02 | W8: SCGT 7HA.02 | X8: SCGT 7HA.02 | Z8: SCGT 7HA.02 | AA8: SCGT 7HA.02 | AB8: SCGT 7HA.02 | AC8: SCGT 7HA.02 | AD8: SCGT 7HA.02 | AE8: SCGT 7HA.02 | AG8: BESS 2h | AH8: BESS 2h | AI8: BESS 2h | AJ8: BESS 2h | AK8: BESS 2h | AL8: BESS 2h | AN8: BESS 4h | AO8: BESS 4h | AP8: BESS 4h | AQ8: BESS 4h | AR8: BESS 4h | AS8: BESS 4h | AU8: BESS 6h | AV8: BESS 6h | AW8: BESS 6h | AX8: BESS 6h | AY8: BESS 6h | AZ8: BESS 6h | BB8: BESS 8h | BC8: BESS 8h | BD8: BESS 8h | BE8: BESS 8h | BF8: BESS 8h | BG8: BESS 8h
E9: Dual fuel with SCR | F9: Dual fuel with SCR | G9: Dual fuel with SCR | H9: Dual fuel with SCR | I9: Dual fuel with SCR | J9: Dual fuel with SCR | L9: Gas only with SCR | M9: Gas only with SCR | N9: Gas only with SCR | O9: Gas only with SCR | P9: Gas only with SCR | Q9: Gas only with SCR | S9: Dual fuel without SCR | T9: Dual fuel without SCR | U9: Dual fuel without SCR | V9: Dual fuel without SCR | W9: Dual fuel without SCR | X9: Dual fuel without SCR | Z9: Gas only without SCR | AA9: Gas only without SCR | AB9: Gas only without SCR | AC9: Gas only without SCR | AD9: Gas only without SCR | AE9: Gas only without SCR | AG9: Battery | AH9: Battery | AI9: Battery | AJ9: Battery | AK9: Battery | AL9: Battery | AN9: Battery | AO9: Battery | AP9: Battery | AQ9: Battery | AR9: Battery | AS9: Battery | AU9: Battery | AV9: Battery | AW9: Battery | AX9: Battery | AY9: Battery | AZ9: Battery | BB9: Battery | BC9: Battery | BD9: Battery | BE9: Battery | BF9: Battery | BG9: Battery
D10: Technology | E10: SCGT J Class (Dual fuel with SCR) | L10: SCGT J Class (Gas Only with SCR) | S10: SCGT 7HA.02 (Dual Fuel without SCR) | Z10: SCGT 7HA.02 (Gas Only without SCR) | AG10: BESS 2h | AN10: BESS 4h | AU10: BESS 6h | BB10: BESS 8h
D11: Plant Capacity (MW) average of zone-specific DMNC ICAP | E11: =AVERAGE(E13:J13) -> 398.7 | L11: =AVERAGE(L13:Q13) -> 398.7 | S11: =AVERAGE(S13:U13) -> 326.6115 | Z11: =AVERAGE(Z13:AB13) -> 326.6115 | AG11: =AVERAGE(AG13:AL13) -> 200 | AN11: =AVERAGE(AN13:AS13) -> 200 | AU11: =AVERAGE(AU13:AZ13) -> 200 | BB11: =AVERAGE(BB13:BG13) -> 200
D13: DMNC ICAP (MW) | E13: =INDEX('Performance and O&M'!$C$12:$AQ$21, MATCH("DMNC ICAP (MW)", 'Performance and O&M'!$C$12:$C$21, 0), MATCH(E15&E8, 'Performance and O&M'!$C$12:$AQ$12, 0)) -> 389 | F13: =INDEX('Performance and O&M'!$C$12:$AQ$21, MATCH("DMNC ICAP (MW)", 'Performance and O&M'!$C$12:$C$21, 0), MATCH(F15&F8, 'Performance and O&M'!$C$12:$AQ$12, 0)) -> 400.3 | G13: =INDEX('Performance and O&M'!$C$12:$AQ$21, MATCH("DMNC ICAP (MW)", 'Performance and O&M'!$C$12:$C$21, 0), MATCH(G15&G8, 'Performance and O&M'!$C$12:$AQ$12, 0)) -> 397.4 | H13: =INDEX('Performance and O&M'!$C$12:$AQ$21, MATCH("DMNC ICAP (MW)", 'Performance and O&M'!$C$12:$C$21, 0), MATCH(H15&H8, 'Performance and O&M'!$C$12:$AQ$12, 0)) -> 397.4 | I13: =INDEX('Performance and O&M'!$C$12:$AQ$21, MATCH("DMNC ICAP (MW)", 'Performance and O&M'!$C$12:$C$21, 0), MATCH(I15&I8, 'Performance and O&M'!$C$12:$AQ$12, 0)) -> 404.1 | J13: =INDEX('Performance and O&M'!$C$12:$AQ$21, MATCH("DMNC ICAP (MW)", 'Performance and O&M'!$C$12:$C$21, 0), MATCH(J15&J8, 'Performance and O&M'!$C$12:$AQ$12, 0)) -> 404 | L13: =INDEX('Performance and O&M'!$C$12:$AQ$21, MATCH("DMNC ICAP (MW)", 'Performance and O&M'!$C$12:$C$21, 0), MATCH(L15&L8, 'Performance and O&M'!$C$12:$AQ$12, 0)) -> 389 | M13: =INDEX('Performance and O&M'!$C$12:$AQ$21, MATCH("DMNC ICAP (MW)", 'Performance and O&M'!$C$12:$C$21, 0), MATCH(M15&M8, 'Performance and O&M'!$C$12:$AQ$12, 0)) -> 400.3 | N13: =INDEX('Performance and O&M'!$C$12:$AQ$21, MATCH("DMNC ICAP (MW)", 'Performance and O&M'!$C$12:$C$21, 0), MATCH(N15&N8, 'Performance and O&M'!$C$12:$AQ$12, 0)) -> 397.4 | O13: =INDEX('Performance and O&M'!$C$12:$AQ$21, MATCH("DMNC ICAP (MW)", 'Performance and O&M'!$C$12:$C$21, 0), MATCH(O15&O8, 'Performance and O&M'!$C$12:$AQ$12, 0)) -> 397.4 | P13: =INDEX('Performance and O&M'!$C$12:$AQ$21, MATCH("DMNC ICAP (MW)", 'Performance and O&M'!$C$12:$C$21, 0), MATCH(P15&P8, 'Performance and O&M'!$C$12:$AQ$12, 0)) -> 404.1 | Q13: =INDEX('Performance and O&M'!$C$12:$AQ$21, MATCH("DMNC ICAP (MW)", 'Performance and O&M'!$C$12:$C$21, 0), MATCH(Q15&Q8, 'Performance and O&M'!$C$12:$AQ$12, 0)) -> 404 | S13: =INDEX('Performance and O&M'!$C$12:$AQ$21, MATCH("DMNC ICAP (MW)", 'Performance and O&M'!$C$12:$C$21, 0), MATCH(S15&S8, 'Performance and O&M'!$C$12:$AQ$12, 0)) -> 321.02597 | T13: =INDEX('Performance and O&M'!$C$12:$AQ$21, MATCH("DMNC ICAP (MW)", 'Performance and O&M'!$C$12:$C$21, 0), MATCH(T15&T8, 'Performance and O&M'!$C$12:$AQ$12, 0)) -> 330.68231 | U13: =INDEX('Performance and O&M'!$C$12:$AQ$21, MATCH("DMNC ICAP (MW)", 'Performance and O&M'!$C$12:$C$21, 0), MATCH(U15&U8, 'Performance and O&M'!$C$12:$AQ$12, 0)) -> 328.12622 | V13: =INDEX('Performance and O&M'!$C$12:$AQ$21, MATCH("DMNC ICAP (MW)", 'Performance and O&M'!$C$12:$C$21, 0), MATCH(V15&V8, 'Performance and O&M'!$C$12:$AQ$12, 0)) ->  | W13: =INDEX('Performance and O&M'!$C$12:$AQ$21, MATCH("DMNC ICAP (MW)", 'Performance and O&M'!$C$12:$C$21, 0), MATCH(W15&W8, 'Performance and O&M'!$C$12:$AQ$12, 0)) ->  | X13: =INDEX('Performance and O&M'!$C$12:$AQ$21, MATCH("DMNC ICAP (MW)", 'Performance and O&M'!$C$12:$C$21, 0), MATCH(X15&X8, 'Performance and O&M'!$C$12:$AQ$12, 0)) ->  | Z13: =INDEX('Performance and O&M'!$C$12:$AQ$21, MATCH("DMNC ICAP (MW)", 'Performance and O&M'!$C$12:$C$21, 0), MATCH(Z15&Z8, 'Performance and O&M'!$C$12:$AQ$12, 0)) -> 321.02597 | AA13: =INDEX('Performance and O&M'!$C$12:$AQ$21, MATCH("DMNC ICAP (MW)", 'Performance and O&M'!$C$12:$C$21, 0), MATCH(AA15&AA8, 'Performance and O&M'!$C$12:$AQ$12, 0)) -> 330.68231 | AB13: =INDEX('Performance and O&M'!$C$12:$AQ$21, MATCH("DMNC ICAP (MW)", 'Performance and O&M'!$C$12:$C$21, 0), MATCH(AB15&AB8, 'Performance and O&M'!$C$12:$AQ$12, 0)) -> 328.12622 | AC13: =INDEX('Performance and O&M'!$C$12:$AQ$21, MATCH("DMNC ICAP (MW)", 'Performance and O&M'!$C$12:$C$21, 0), MATCH(AC15&AC8, 'Performance and O&M'!$C$12:$AQ$12, 0)) ->  | AD13: =INDEX('Performance and O&M'!$C$12:$AQ$21, MATCH("DMNC ICAP (MW)", 'Performance and O&M'!$C$12:$C$21, 0), MATCH(AD15&AD8, 'Performance and O&M'!$C$12:$AQ$12, 0)) ->  | AE13: =INDEX('Performance and O&M'!$C$12:$AQ$21, MATCH("DMNC ICAP (MW)", 'Performance and O&M'!$C$12:$C$21, 0), MATCH(AE15&AE8, 'Performance and O&M'!$C$12:$AQ$12, 0)) ->  | AG13: =INDEX('Performance and O&M'!$C$12:$AQ$21, MATCH("DMNC ICAP (MW)", 'Performance and O&M'!$C$12:$C$21, 0), MATCH(AG15&AG8, 'Performance and O&M'!$C$12:$AQ$12, 0)) -> 200 | AH13: =INDEX('Performance and O&M'!$C$12:$AQ$21, MATCH("DMNC ICAP (MW)", 'Performance and O&M'!$C$12:$C$21, 0), MATCH(AH15&AH8, 'Performance and O&M'!$C$12:$AQ$12, 0)) -> 200 | AI13: =INDEX('Performance and O&M'!$C$12:$AQ$21, MATCH("DMNC ICAP (MW)", 'Performance and O&M'!$C$12:$C$21, 0), MATCH(AI15&AI8, 'Performance and O&M'!$C$12:$AQ$12, 0)) -> 200 | AJ13: =INDEX('Performance and O&M'!$C$12:$AQ$21, MATCH("DMNC ICAP (MW)", 'Performance and O&M'!$C$12:$C$21, 0), MATCH(AJ15&AJ8, 'Performance and O&M'!$C$12:$AQ$12, 0)) -> 200 | AK13: =INDEX('Performance and O&M'!$C$12:$AQ$21, MATCH("DMNC ICAP (MW)", 'Performance and O&M'!$C$12:$C$21, 0), MATCH(AK15&AK8, 'Performance and O&M'!$C$12:$AQ$12, 0)) -> 200 | AL13: =INDEX('Performance and O&M'!$C$12:$AQ$21, MATCH("DMNC ICAP (MW)", 'Performance and O&M'!$C$12:$C$21, 0), MATCH(AL15&AL8, 'Performance and O&M'!$C$12:$AQ$12, 0)) -> 200 | AN13: =INDEX('Performance and O&M'!$C$12:$AQ$21, MATCH("DMNC ICAP (MW)", 'Performance and O&M'!$C$12:$C$21, 0), MATCH(AN15&AN8, 'Performance and O&M'!$C$12:$AQ$12, 0)) -> 200 | AO13: =INDEX('Performance and O&M'!$C$12:$AQ$21, MATCH("DMNC ICAP (MW)", 'Performance and O&M'!$C$12:$C$21, 0), MATCH(AO15&AO8, 'Performance and O&M'!$C$12:$AQ$12, 0)) -> 200 | AP13: =INDEX('Performance and O&M'!$C$12:$AQ$21, MATCH("DMNC ICAP (MW)", 'Performance and O&M'!$C$12:$C$21, 0), MATCH(AP15&AP8, 'Performance and O&M'!$C$12:$AQ$12, 0)) -> 200 | AQ13: =INDEX('Performance and O&M'!$C$12:$AQ$21, MATCH("DMNC ICAP (MW)", 'Performance and O&M'!$C$12:$C$21, 0), MATCH(AQ15&AQ8, 'Performance and O&M'!$C$12:$AQ$12, 0)) -> 200 | AR13: =INDEX('Performance and O&M'!$C$12:$AQ$21, MATCH("DMNC ICAP (MW)", 'Performance and O&M'!$C$12:$C$21, 0), MATCH(AR15&AR8, 'Performance and O&M'!$C$12:$AQ$12, 0)) -> 200 | AS13: =INDEX('Performance and O&M'!$C$12:$AQ$21, MATCH("DMNC ICAP (MW)", 'Performance and O&M'!$C$12:$C$21, 0), MATCH(AS15&AS8, 'Performance and O&M'!$C$12:$AQ$12, 0)) -> 200 | AU13: =INDEX('Performance and O&M'!$C$12:$AQ$21, MATCH("DMNC ICAP (MW)", 'Performance and O&M'!$C$12:$C$21, 0), MATCH(AU15&AU8, 'Performance and O&M'!$C$12:$AQ$12, 0)) -> 200 | AV13: =INDEX('Performance and O&M'!$C$12:$AQ$21, MATCH("DMNC ICAP (MW)", 'Performance and O&M'!$C$12:$C$21, 0), MATCH(AV15&AV8, 'Performance and O&M'!$C$12:$AQ$12, 0)) -> 200 | AW13: =INDEX('Performance and O&M'!$C$12:$AQ$21, MATCH("DMNC ICAP (MW)", 'Performance and O&M'!$C$12:$C$21, 0), MATCH(AW15&AW8, 'Performance and O&M'!$C$12:$AQ$12, 0)) -> 200 | AX13: =INDEX('Performance and O&M'!$C$12:$AQ$21, MATCH("DMNC ICAP (MW)", 'Performance and O&M'!$C$12:$C$21, 0), MATCH(AX15&AX8, 'Performance and O&M'!$C$12:$AQ$12, 0)) -> 200 | AY13: =INDEX('Performance and O&M'!$C$12:$AQ$21, MATCH("DMNC ICAP (MW)", 'Performance and O&M'!$C$12:$C$21, 0), MATCH(AY15&AY8, 'Performance and O&M'!$C$12:$AQ$12, 0)) -> 200 | AZ13: =INDEX('Performance and O&M'!$C$12:$AQ$21, MATCH("DMNC ICAP (MW)", 'Performance and O&M'!$C$12:$C$21, 0), MATCH(AZ15&AZ8, 'Performance and O&M'!$C$12:$AQ$12, 0)) -> 200 | BB13: =INDEX('Performance and O&M'!$C$12:$AQ$21, MATCH("DMNC ICAP (MW)", 'Performance and O&M'!$C$12:$C$21, 0), MATCH(BB15&BB8, 'Performance and O&M'!$C$12:$AQ$12, 0)) -> 200 | BC13: =INDEX('Performance and O&M'!$C$12:$AQ$21, MATCH("DMNC ICAP (MW)", 'Performance and O&M'!$C$12:$C$21, 0), MATCH(BC15&BC8, 'Performance and O&M'!$C$12:$AQ$12, 0)) -> 200 | BD13: =INDEX('Performance and O&M'!$C$12:$AQ$21, MATCH("DMNC ICAP (MW)", 'Performance and O&M'!$C$12:$C$21, 0), MATCH(BD15&BD8, 'Performance and O&M'!$C$12:$AQ$12, 0)) -> 200 | BE13: =INDEX('Performance and O&M'!$C$12:$AQ$21, MATCH("DMNC ICAP (MW)", 'Performance and O&M'!$C$12:$C$21, 0), MATCH(BE15&BE8, 'Performance and O&M'!$C$12:$AQ$12, 0)) -> 200 | BF13: =INDEX('Performance and O&M'!$C$12:$AQ$21, MATCH("DMNC ICAP (MW)", 'Performance and O&M'!$C$12:$C$21, 0), MATCH(BF15&BF8, 'Performance and O&M'!$C$12:$AQ$12, 0)) -> 200 | BG13: =INDEX('Performance and O&M'!$C$12:$AQ$21, MATCH("DMNC ICAP (MW)", 'Performance and O&M'!$C$12:$C$21, 0), MATCH(BG15&BG8, 'Performance and O&M'!$C$12:$AQ$12, 0)) -> 200
D14: Lookup | E14: =E15&E8&E9 -> C - CentralSCGT J ClassDual fuel with SCR | F14: =F15&F8&F9 -> F - CapitalSCGT J ClassDual fuel with SCR | G14: G - Hudson Valley (Dutchess)SCGT J ClassDual fuel with SCR | H14: G - Hudson Valley (Rockland)SCGT J ClassDual fuel with SCR | I14: J - New York CitySCGT J ClassDual fuel with SCR | J14: K - Long IslandSCGT J ClassDual fuel with SCR | L14: =L15&L8&L9 -> C - CentralSCGT J ClassGas only with SCR | M14: =M15&M8&M9 -> F - CapitalSCGT J ClassGas only with SCR | N14: G - Hudson Valley (Dutchess)SCGT J ClassGas only with SCR | O14: G - Hudson Valley (Rockland)SCGT J ClassGas only with SCR | P14: J - New York CitySCGT J ClassGas only with SCR | Q14: K - Long IslandSCGT J ClassGas only with SCR | S14: =S15&S8&S9 -> C - CentralSCGT 7HA.02Dual fuel without SCR | T14: =T15&T8&T9 -> F - CapitalSCGT 7HA.02Dual fuel without SCR | U14: G - Hudson Valley (Dutchess)SCGT 7HA.02Dual fuel without SCR | V14: G - Hudson Valley (Rockland)SCGT 7HA.02Dual fuel without SCR | W14: J - New York CitySCGT 7HA.02Dual fuel without SCR | X14: K - Long IslandSCGT 7HA.02Dual fuel without SCR | Z14: =Z15&Z8&Z9 -> C - CentralSCGT 7HA.02Gas only without SCR | AA14: =AA15&AA8&AA9 -> F - CapitalSCGT 7HA.02Gas only without SCR | AB14: G - Hudson Valley (Dutchess)SCGT 7HA.02Gas only without SCR | AC14: G - Hudson Valley (Rockland)SCGT 7HA.02Gas only without SCR | AD14: J - New York CitySCGT 7HA.02Gas only without SCR | AE14: K - Long IslandSCGT 7HA.02Gas only without SCR | AG14: =AG15&AG8&AG9 -> C - CentralBESS 2hBattery | AH14: =AH15&AH8&AH9 -> F - CapitalBESS 2hBattery | AI14: G - Hudson Valley (Dutchess)BESS 2hBattery | AJ14: G - Hudson Valley (Rockland)BESS 2hBattery | AK14: J - New York CityBESS 2hBattery | AL14: K - Long IslandBESS 2hBattery | AN14: =AN15&AN8&AN9 -> C - CentralBESS 4hBattery | AO14: =AO15&AO8&AO9 -> F - CapitalBESS 4hBattery | AP14: =AP15&AP8&AP9 -> G - Hudson Valley (Dutchess)BESS 4hBattery | AQ14: G - Hudson Valley (Rockland)BESS 4hBattery | AR14: J - New York CityBESS 4hBattery | AS14: K - Long IslandBESS 4hBattery | AU14: =AU15&AU8&AU9 -> C - CentralBESS 6hBattery | AV14: =AV15&AV8&AV9 -> F - CapitalBESS 6hBattery | AW14: =AW15&AW8&AW9 -> G - Hudson Valley (Dutchess)BESS 6hBattery | AX14: G - Hudson Valley (Rockland)BESS 6hBattery | AY14: J - New York CityBESS 6hBattery | AZ14: K - Long IslandBESS 6hBattery | BB14: =BB15&BB8&BB9 -> C - CentralBESS 8hBattery | BC14: =BC15&BC8&BC9 -> F - CapitalBESS 8hBattery | BD14: =BD15&BD8&BD9 -> G - Hudson Valley (Dutchess)BESS 8hBattery | BE14: G - Hudson Valley (Rockland)BESS 8hBattery | BF14: J - New York CityBESS 8hBattery | BG14: K - Long IslandBESS 8hBattery
D15: Zone | E15: C - Central | F15: F - Capital | G15: G - Hudson Valley (Dutchess) | H15: G - Hudson Valley (Rockland) | I15: J - New York City | J15: K - Long Island | L15: C - Central | M15: F - Capital | N15: G - Hudson Valley (Dutchess) | O15: G - Hudson Valley (Rockland) | P15: J - New York City | Q15: K - Long Island | S15: C - Central | T15: F - Capital | U15: G - Hudson Valley (Dutchess) | V15: G - Hudson Valley (Rockland) | W15: J - New York City | X15: K - Long Island | Z15: C - Central | AA15: F - Capital | AB15: G - Hudson Valley (Dutchess) | AC15: G - Hudson Valley (Rockland) | AD15: J - New York City | AE15: K - Long Island | AG15: C - Central | AH15: F - Capital | AI15: G - Hudson Valley (Dutchess) | AJ15: G - Hudson Valley (Rockland) | AK15: J - New York City | AL15: K - Long Island | AN15: C - Central | AO15: F - Capital | AP15: G - Hudson Valley (Dutchess) | AQ15: G - Hudson Valley (Rockland) | AR15: J - New York City | AS15: K - Long Island | AU15: C - Central | AV15: F - Capital | AW15: G - Hudson Valley (Dutchess) | AX15: G - Hudson Valley (Rockland) | AY15: J - New York City | AZ15: K - Long Island | BB15: C - Central | BC15: F - Capital | BD15: G - Hudson Valley (Dutchess) | BE15: G - Hudson Valley (Rockland) | BF15: J - New York City | BG15: K - Long Island
D17: EPC Costs
D19: EPC Project Capital Costs, 2024 MM$ (w/o Owner's Costs) | E19: 422.63 | F19: 431.78 | G19: 434.76 | H19: 494.54 | I19: 550.86 | J19: 537.42 | L19: 422.63 | M19: 431.78 | N19: 434.76 | O19: 494.54 | P19: 550.86 | Q19: 537.42 | S19: 346.85 | T19: 355.06 | U19: 356.54 | Z19: 346.85 | AA19: 355.06 | AB19: 356.54 | AG19: 167.83 | AH19: 169.19 | AI19: 167.91 | AJ19: 173.86 | AK19: 206.1 | AL19: 177.82 | AN19: 288.94 | AO19: 290.87 | AP19: 289.09 | AQ19: 297.53 | AR19: 360.65 | AS19: 304.17 | AU19: 418.04 | AV19: 420.75 | AW19: 418.26 | AX19: 430.06 | AY19: 511.96 | AZ19: 440.33 | BB19: 539.51 | BC19: 542.97 | BD19: 539.77 | BE19: 554.86 | BF19: 663.88 | BG19: 568.65
D20: Dual Fuel Breakout Costs, 2024 MM$ (w/o Owner's Costs) | E20: 26.9 | F20: 26.9 | G20: 26.9 | H20: Included | I20: Included | J20: Included | L20: 26.9 | M20: 26.9 | N20: 26.9 | O20: Included | P20: Included | Q20: Included | S20: 26.9 | T20: 26.9 | U20: 26.9 | Z20: 26.9 | AA20: 26.9 | AB20: 26.9
O21: 26.9 | P21: 26.9 | Q21: 26.9
D22: Total EPC Costs | E22: =(E19+E20) * 1000000 -> 449530000 | F22: =(F19+F20) * 1000000 -> 458680000 | G22: 461660000 | H22: =H19*1000000 -> 494540000 | I22: =I19*1000000 -> 550860000 | J22: 537420000 | L22: =(L19) * 1000000 -> 422630000 | M22: =(M19) * 1000000 -> 431780000 | N22: =(N19) * 1000000 -> 434760000 | O22: =(O19-O21)*1000000 -> 467640000 | P22: =(P19-P21)*1000000 -> 523960000 | Q22: =(Q19-Q21)*1000000 -> 510520000 | S22: =(S19 + S20) * 1000000 -> 373750000 | T22: =(T19 + T20) * 1000000 -> 381960000 | U22: =(U19 + U20) * 1000000 -> 383440000 | Z22: =Z19*1000000 -> 346850000 | AA22: =AA19*1000000 -> 355060000 | AB22: =AB19*1000000 -> 356540000 | AG22: =AG19*1000000 -> 167830000 | AH22: =AH19*1000000 -> 169190000 | AI22: 167910000 | AJ22: 173860000 | AK22: 206100000 | AL22: =AL19*1000000 -> 177820000 | AN22: =AN19*1000000 -> 288940000 | AO22: =AO19*1000000 -> 290870000 | AP22: 289090000 | AQ22: 297530000 | AR22: 360650000 | AS22: =AS19*1000000 -> 304170000 | AU22: =AU19*1000000 -> 418040000 | AV22: =AV19*1000000 -> 420750000 | AW22: 418260000 | AX22: 430060000 | AY22: 511960000 | AZ22: 440330000 | BB22: =BB19*1000000 -> 539510000 | BC22: =BC19*1000000 -> 542970000 | BD22: 539770000 | BE22: 554860000 | BF22: 663880000 | BG22: 568650000
D24: Owner's Cost Allowances, 2024 MM$ | E24: 147.6623395 | F24: 148.1623395 | G24: 141.6123395 | H24: 143.4123395 | I24: 170.7078404 | J24: 136.7586927 | L24: 147.6623395 | M24: 148.1623395 | N24: 141.6123395 | O24: 143.4123395 | P24: 170.7078404 | Q24: 136.7586927 | S24: 143.5159252 | T24: 143.9652175 | U24: 137.3262105 | Z24: 143.5159252 | AA24: 143.9652175 | AB24: 137.3262105 | AG24: 61.19 | AH24: 61.25 | AI24: 61.19 | AJ24: 61.51 | AK24: 102.65 | AL24: 53.14 | AN24: 68.48 | AO24: 68.59 | AP24: 68.49 | AQ24: 68.95 | AR24: 111.82 | AS24: 60.73 | AU24: 76.49 | AV24: 76.64 | AW24: 76.5 | AX24: 77.15 | AY24: 121.17 | AZ24: 69.12 | BB24: 84.14 | BC24: 84.32 | BD24: 84.15 | BE24: 84.98 | BF24: 130.63 | BG24: 77.14
D25: Owner's Costs | E25: =E24*1000000 -> 147662339.5 | F25: =F24*1000000 -> 148162339.5 | G25: 141612339.5 | H25: 143412339.5 | I25: 170707840.4 | J25: 136758692.7 | L25: =L24*1000000 -> 147662339.5 | M25: =M24*1000000 -> 148162339.5 | N25: 141612339.5 | O25: 143412339.5 | P25: 170707840.4 | Q25: 136758692.7 | S25: =S24*1000000 -> 143515925.2 | T25: =T24*1000000 -> 143965217.5 | U25: 137326210.5 | Z25: =Z24*1000000 -> 143515925.2 | AA25: =AA24*1000000 -> 143965217.5 | AB25: =AB24*1000000 -> 137326210.5 | AG25: =AG24*1000000 -> 61190000 | AH25: =AH24*1000000 -> 61250000 | AI25: 61190000 | AJ25: 61510000 | AK25: 102650000 | AL25: =AL24*1000000 -> 53140000 | AN25: =AN24*1000000 -> 68480000 | AO25: =AO24*1000000 -> 68590000 | AP25: 68490000 | AQ25: 68950000 | AR25: 111820000 | AS25: =AS24*1000000 -> 60730000 | AU25: =AU24*1000000 -> 76490000 | AV25: =AV24*1000000 -> 76640000 | AW25: 76500000 | AX25: 77150000 | AY25: 121170000 | AZ25: 69120000 | BB25: =BB24*1000000 -> 84140000 | BC25: =BC24*1000000 -> 84320000 | BD25: 84150000 | BE25: 84980000 | BF25: 130630000 | BG25: 77140000
D49: Total Owner's Costs | E49: =E25 -> 147662339.5 | F49: =F25 -> 148162339.5 | G49: 141612339.5 | H49: 143412339.5 | I49: 170707840.4 | J49: 136758692.7 | L49: =L25 -> 147662339.5 | M49: =M25 -> 148162339.5 | N49: 141612339.5 | O49: 143412339.5 | P49: 170707840.4 | Q49: 136758692.7 | S49: =S25 -> 143515925.2 | T49: =T25 -> 143965217.5 | U49: 137326210.5 | V49: 0 | W49: 0 | X49: 0 | Z49: =Z25 -> 143515925.2 | AA49: =AA25 -> 143965217.5 | AB49: 137326210.5 | AC49: 0 | AD49: 0 | AE49: 0 | AG49: 61190000 | AH49: 61250000 | AI49: 61190000 | AJ49: 61510000 | AK49: 102650000 | AL49: 53140000 | AN49: =AN25 -> 68480000 | AO49: =AO25 -> 68590000 | AP49: 68490000 | AQ49: 68950000 | AR49: 111820000 | AS49: 60730000 | AU49: =AU25 -> 76490000 | AV49: =AV25 -> 76640000 | AW49: 76500000 | AX49: 77150000 | AY49: 121170000 | AZ49: 69120000 | BB49: =BB25 -> 84140000 | BC49: =BC25 -> 84320000 | BD49: 84150000 | BE49: 84980000 | BF49: 130630000 | BG49: 77140000
D50: Pre ITC Credit Applied | E50: =SUM(E22,E49) -> 597192339.5 | F50: =SUM(F22,F49) -> 606842339.5 | G50: 603272339.5 | H50: 637952339.5 | I50: 721567840.4 | J50: 674178692.7 | L50: =SUM(L22,L49) -> 570292339.5 | M50: =SUM(M22,M49) -> 579942339.5 | N50: 576372339.5 | O50: 611052339.5 | P50: 694667840.4 | Q50: 647278692.7 | S50: =SUM(S22,S49) -> 517265925.2 | T50: =SUM(T22,T49) -> 525925217.5 | U50: 520766210.5 | V50: 0 | W50: 0 | X50: 0 | Z50: =SUM(Z22,Z49) -> 490365925.2 | AA50: =SUM(AA22,AA49) -> 499025217.5 | AB50: 493866210.5 | AC50: 0 | AD50: 0 | AE50: 0 | AG50: 229020000 | AH50: 230440000 | AI50: 229100000 | AJ50: 235370000 | AK50: 308750000 | AL50: 230960000 | AN50: =SUM(AN22,AN49) -> 357420000 | AO50: =SUM(AO22,AO49) -> 359460000 | AP50: 357580000 | AQ50: 366480000 | AR50: 472470000 | AS50: 364900000 | AU50: =SUM(AU22,AU49) -> 494530000 | AV50: =SUM(AV22,AV49) -> 497390000 | AW50: =SUM(AW22,AW49) -> 494760000 | AX50: =SUM(AX22,AX49) -> 507210000 | AY50: =SUM(AY22,AY49) -> 633130000 | AZ50: =SUM(AZ22,AZ49) -> 509450000 | BB50: =SUM(BB22,BB49) -> 623650000 | BC50: =SUM(BC22,BC49) -> 627290000 | BD50: =SUM(BD22,BD49) -> 623920000 | BE50: =SUM(BE22,BE49) -> 639840000 | BF50: =SUM(BF22,BF49) -> 794510000 | BG50: =SUM(BG22,BG49) -> 645790000
D51: Capital Costs without AFUDC ($2024) | E51: =SUM(E22,E49) -> 597192339.5 | F51: 606842339.5 | G51: 603272339.5 | H51: 637952339.5 | I51: 721567840.4 | J51: 674178692.7 | L51: =SUM(L22,L49) -> 570292339.5 | M51: 579942339.5 | N51: 576372339.5 | O51: 611052339.5 | P51: 694667840.4 | Q51: 647278692.7 | S51: =SUM(S22,S49) -> 517265925.2 | T51: 525925217.5 | U51: 520766210.5 | V51: 0 | W51: 0 | X51: 0 | Z51: =SUM(Z22,Z49) -> 490365925.2 | AA51: 499025217.5 | AB51: 493866210.5 | AC51: 0 | AD51: 0 | AE51: 0 | AG51: =AG50*0.7 -> 160314000 | AH51: =AH50*0.7 -> 161308000 | AI51: 160370000 | AJ51: 164759000 | AK51: 216125000 | AL51: 161672000 | AN51: =AN50*0.7 -> 250194000 | AO51: =AO50*0.7 -> 251622000 | AP51: 250306000 | AQ51: 256536000 | AR51: 330729000 | AS51: 255430000 | AU51: =AU50*0.7 -> 346171000 | AV51: 348173000 | AW51: 346332000 | AX51: 355047000 | AY51: 443191000 | AZ51: 356615000 | BB51: =BB50*0.7 -> 436555000 | BC51: 439103000 | BD51: 436744000 | BE51: 447888000 | BF51: 556157000 | BG51: 452053000
D52: Capital Costs without AFUDC ($2024/ICAP kW) | E52: =E51/(E13*1000) -> 1535.198816 | F52: =F51/(F13*1000) -> 1515.968872 | G52: 1518.048162 | H52: 1605.315399 | I52: 1785.617026 | J52: 1668.75914 | L52: =L51/(L13*1000) -> 1466.047145 | M52: =M51/(M13*1000) -> 1448.769272 | N52: 1450.358177 | O52: 1537.625414 | P52: 1719.049345 | Q52: 1602.174982 | S52: =S51/(S13*1000) -> 1611.289969 | T52: =T51/(T13*1000) -> 1590.424409 | U52: 1587.091121 | Z52: =Z51/(Z13*1000) -> 1527.496125 | AA52: =AA51/(AA13*1000) -> 1509.077451 | AB52: 1505.110474 | AG52: =AG51/(AG13*1000) -> 801.57 | AH52: =AH51/(AH13*1000) -> 806.54 | AI52: 801.85 | AJ52: 823.795 | AK52: 1080.625 | AL52: 808.36 | AN52: =AN51/(AN13*1000) -> 1250.97 | AO52: =AO51/(AO13*1000) -> 1258.11 | AP52: 1251.53 | AQ52: 1282.68 | AR52: 1653.645 | AS52: 1277.15 | AU52: =AU51/(AU13*1000) -> 1730.855 | AV52: 1740.865 | AW52: 1731.66 | AX52: 1775.235 | AY52: 2215.955 | AZ52: 1783.075 | BB52: =BB51/(BB13*1000) -> 2182.775 | BC52: 2195.515 | BD52: 2183.72 | BE52: 2239.44 | BF52: 2780.785 | BG52: 2260.265
B69: 2024-2025 | D69: ="Capital Costs without AFUDC ($"&B69&")" -> Capital Costs without AFUDC ($2024-2025) | E69: =E51 -> 597192339.5 | F69: =F51 -> 606842339.5 | G69: 603272339.5 | H69: 637952339.5 | I69: 721567840.4 | J69: 674178692.7 | L69: =L51 -> 570292339.5 | M69: =M51 -> 579942339.5 | N69: 576372339.5 | O69: 611052339.5 | P69: 694667840.4 | Q69: 647278692.7 | S69: 517265925.2 | T69: 525925217.5 | U69: 520766210.5 | V69: 0 | W69: 0 | X69: 0 | Z69: =Z51 -> 490365925.2 | AA69: 499025217.5 | AB69: 493866210.5 | AC69: 0 | AD69: 0 | AE69: 0 | AG69: =AG51 -> 160314000 | AH69: =AH51 -> 161308000 | AI69: 160370000 | AJ69: 164759000 | AK69: 216125000 | AL69: 161672000 | AN69: =AN51 -> 250194000 | AO69: =AO51 -> 251622000 | AP69: 250306000 | AQ69: 256536000 | AR69: 330729000 | AS69: 255430000 | AU69: =AU51 -> 346171000 | AV69: =AV51 -> 348173000 | AW69: 346332000 | AX69: 355047000 | AY69: 443191000 | AZ69: 356615000 | BB69: =BB51 -> 436555000 | BC69: =BC51 -> 439103000 | BD69: 436744000 | BE69: 447888000 | BF69: 556157000 | BG69: 452053000
B70: 2024-2025 | C70: Capital Costs without AFUDC2024-2025 | D70: ="Capital Costs without AFUDC ($"&B70&"/ICAP kW)" -> Capital Costs without AFUDC ($2024-2025/ICAP kW) | E70: =E52 -> 1535.198816 | F70: =F52 -> 1515.968872 | G70: 1518.048162 | H70: 1605.315399 | I70: 1785.617026 | J70: 1668.75914 | L70: =L52 -> 1466.047145 | M70: 1448.769272 | N70: 1450.358177 | O70: 1537.625414 | P70: 1719.049345 | Q70: 1602.174982 | S70: 1611.289969 | T70: 1590.424409 | U70: 1587.091121 | Z70: =Z52 -> 1527.496125 | AA70: 1509.077451 | AB70: 1505.110474 | AG70: =AG52 -> 801.57 | AH70: =AH52 -> 806.54 | AI70: 801.85 | AJ70: 823.795 | AK70: 1080.625 | AL70: 808.36 | AN70: =AN52 -> 1250.97 | AO70: =AO52 -> 1258.11 | AP70: 1251.53 | AQ70: 1282.68 | AR70: 1653.645 | AS70: 1277.15 | AU70: =AU52 -> 1730.855 | AV70: =AV52 -> 1740.865 | AW70: 1731.66 | AX70: 1775.235 | AY70: 2215.955 | AZ70: 1783.075 | BB70: =BB52 -> 2182.775 | BC70: =BC52 -> 2195.515 | BD70: 2183.72 | BE70: 2239.44 | BF70: 2780.785 | BG70: 2260.265
B71: 2024-2025 | D71: ="Total EPC Costs ($"&B69&")" -> Total EPC Costs ($2024-2025) | E71: =E22 -> 449530000 | F71: =F22 -> 458680000 | G71: 461660000 | H71: 494540000 | I71: 550860000 | J71: 537420000 | L71: =L22 -> 422630000 | M71: =M22 -> 431780000 | N71: 434760000 | O71: 467640000 | P71: 523960000 | Q71: 510520000 | S71: 373750000 | T71: 381960000 | U71: 383440000 | V71: 0 | W71: 0 | X71: 0 | Z71: =Z22 -> 346850000 | AA71: 355060000 | AB71: 356540000 | AC71: 0 | AD71: 0 | AE71: 0 | AG71: =AG22 -> 167830000 | AH71: =AH22 -> 169190000 | AI71: 167910000 | AJ71: 173860000 | AK71: 206100000 | AL71: 177820000 | AN71: =AN22 -> 288940000 | AO71: =AO22 -> 290870000 | AP71: 289090000 | AQ71: 297530000 | AR71: 360650000 | AS71: 304170000 | AU71: =AU22 -> 418040000 | AV71: =AV22 -> 420750000 | AW71: 418260000 | AX71: 430060000 | AY71: 511960000 | AZ71: 440330000 | BB71: =BB22 -> 539510000 | BC71: =BC22 -> 542970000 | BD71: 539770000 | BE71: 554860000 | BF71: 663880000 | BG71: 568650000
B72: 2024-2025 | C72: Total EPC Costs2024-2025 | D72: ="Total EPC Costs ($"&B70&"/ICAP kW)" -> Total EPC Costs ($2024-2025/ICAP kW) | E72: =IFERROR(E71/(E$13*1000),"-") -> 1155.604113 | F72: =IFERROR(F71/(F$13*1000),"-") -> 1145.84062 | G72: 1161.701057 | H72: 1244.438853 | I72: 1363.177431 | J72: 1330.247525 | L72: =IFERROR(L71/(L$13*1000),"-") -> 1086.452442 | M72: =IFERROR(M71/(M$13*1000),"-") -> 1078.641019 | N72: 1094.011072 | O72: 1176.748868 | P72: 1296.60975 | Q72: 1263.663366 | S72: 1164.236027 | T72: 1155.066323 | U72: 1168.574703 | V72: - | W72: - | X72: - | Z72: =IFERROR(Z71/(Z$13*1000),"-") -> 1080.442184 | AA72: 1073.719365 | AB72: 1086.594055 | AC72: - | AD72: - | AE72: - | AG72: 839.15 | AH72: 845.95 | AI72: 839.55 | AJ72: 869.3 | AK72: 1030.5 | AL72: 889.1 | AN72: =IFERROR(AN71/(AN$13*1000),"-") -> 1444.7 | AO72: =IFERROR(AO71/(AO$13*1000),"-") -> 1454.35 | AP72: =IFERROR(AP71/(AP$13*1000),"-") -> 1445.45 | AQ72: 1487.65 | AR72: =IFERROR(AR71/(AR$13*1000),"-") -> 1803.25 | AS72: 1520.85 | AU72: =IFERROR(AU71/(AU$13*1000),"-") -> 2090.2 | AV72: 2103.75 | AW72: 2091.3 | AX72: 2150.3 | AY72: 2559.8 | AZ72: 2201.65 | BB72: =IFERROR(BB71/(BB$13*1000),"-") -> 2697.55 | BC72: 2714.85 | BD72: 2698.85 | BE72: 2774.3 | BF72: 3319.4 | BG72: 2843.25
